Organisation Code,Organisation Label,Effective Date,Organisational Unit,Service Division Label,Category Internal Name,Purpose,Detailed Expenditure Code,Payment Date,Transaction Number,Irrecoverable VAT Amount,Amount,Capital Or Revenue,Benificiary Name,Procurement Card
Http://opendatacommunities.org/id/metropolitan-district-council/leeds,Leeds City Council,31/12/2017,Resources and Housing,Commercial Services  ,Supplies and Services,Operational Furniture And Equipment,203,09/11/2017,1712-00001,0.00,1464.55,R,A & D-S W Supplies,Yes
Http://opendatacommunities.org/id/metropolitan-district-council/leeds,Leeds City Council,31/12/2017,Insurance,Insurance,Supplies and Services,Insurance Claims,248,21/12/2017,1712-00002,0.00,8000.00,R,A A Law Solicitors,No
Http://opendatacommunities.org/id/metropolitan-district-council/leeds,Leeds City Council,31/12/2017,Resources and Housing,Leeds Building Services,Supplies and Services,Operational Materials,205,08/12/2017,1712-00003,0.00,6.60,R,A Andrews & Sons (Marbles & Tiles),No
Http://opendatacommunities.org/id/metropolitan-district-council/leeds,Leeds City Council,31/12/2017,Resources and Housing,Leeds Building Services,Supplies and Services,Operational Materials,205,15/12/2017,1712-00004,0.00,15.99,R,A Andrews & Sons (Marbles & Tiles),No
Http://opendatacommunities.org/id/metropolitan-district-council/leeds,Leeds City Council,31/12/2017,Resources and Housing,Leeds Building Services,Supplies and Services,Operational Materials,205,15/12/2017,1712-00005,0.00,41.12,R,A Andrews & Sons (Marbles & Tiles),No
Http://opendatacommunities.org/id/metropolitan-district-council/leeds,Leeds City Council,31/12/2017,Resources and Housing,Leeds Building Services,Supplies and Services,Operational Materials,205,15/12/2017,1712-00006,0.00,34.28,R,A Andrews & Sons (Marbles & Tiles),No
Http://opendatacommunities.org/id/metropolitan-district-council/leeds,Leeds City Council,31/12/2017,Resources and Housing,Leeds Building Services,Supplies and Services,Operational Materials,205,19/12/2017,1712-00007,0.00,88.00,R,A Andrews & Sons (Marbles & Tiles),No
Http://opendatacommunities.org/id/metropolitan-district-council/leeds,Leeds City Council,31/12/2017,Resources and Housing,Leeds Building Services,Supplies and Services,Operational Materials,205,19/12/2017,1712-00008,0.00,12.36,R,A Andrews & Sons (Marbles & Tiles),No
Http://opendatacommunities.org/id/metropolitan-district-council/leeds,Leeds City Council,31/12/2017,Resources and Housing,Leeds Building Services,Supplies and Services,Operational Materials,205,19/12/2017,1712-00009,0.00,37.40,R,A Andrews & Sons (Marbles & Tiles),No
Http://opendatacommunities.org/id/metropolitan-district-council/leeds,Leeds City Council,31/12/2017,Resources and Housing,Leeds Building Services,Supplies and Services,Operational Materials,205,28/12/2017,1712-00010,0.00,14.98,R,A Andrews & Sons (Marbles & Tiles),No
Http://opendatacommunities.org/id/metropolitan-district-council/leeds,Leeds City Council,31/12/2017,Resources and Housing,Leeds Building Services,Supplies and Services,Operational Materials,205,28/12/2017,1712-00011,0.00,8.52,R,A Andrews & Sons (Marbles & Tiles),No
Http://opendatacommunities.org/id/metropolitan-district-council/leeds,Leeds City Council,31/12/2017,Communities and Environment,Parks and Countryside,Supplies and Services,Other Hired And Contracted Services,265,06/12/2017,1712-00012,0.00,270.00,R,A B Jones,No
Http://opendatacommunities.org/id/metropolitan-district-council/leeds,Leeds City Council,31/12/2017,Children and Families,Safeguarding Targeted & Specialist,Third Party Payments,Services Rendered By Other Organisations,511,01/12/2017,1712-00013,0.00,424.20,R,REDACTED PERSONAL DATA,No
Http://opendatacommunities.org/id/metropolitan-district-council/leeds,Leeds City Council,31/12/2017,City Development,Libraries  Arts & Heritage,Supplies and Services,Operational Furniture And Equipment,203,29/12/2017,1712-00014,0.00,185.94,R,A C Entertainment Technologies Ltd,No
Http://opendatacommunities.org/id/metropolitan-district-council/leeds,Leeds City Council,31/12/2017,Children and Families,Safeguarding Targeted & Specialist,Third Party Payments,Services Rendered By Other Organisations,511,08/12/2017,1712-00015,0.00,705.60,R,REDACTED PERSONAL DATA,No
Http://opendatacommunities.org/id/metropolitan-district-council/leeds,Leeds City Council,31/12/2017,Communities and Environment,Parks and Countryside,Supplies and Services,Operational Furniture And Equipment,203,22/12/2017,1712-00016,0.00,652.62,R,A D Golf Management Ltd,No
Http://opendatacommunities.org/id/metropolitan-district-council/leeds,Leeds City Council,31/12/2017,City Development,Libraries  Arts & Heritage,Supplies and Services,Publication And Promotion,267,15/12/2017,1712-00017,0.00,100.00,R,A E Northing,No
Http://opendatacommunities.org/id/metropolitan-district-council/leeds,Leeds City Council,31/12/2017,Children and Families,Safeguarding Targeted & Specialist,Third Party Payments,Services Rendered By Voluntary Sector,505,01/12/2017,1712-00018,0.00,2474.50,R,REDACTED PERSONAL DATA,No
Http://opendatacommunities.org/id/metropolitan-district-council/leeds,Leeds City Council,31/12/2017,Children and Families,Safeguarding Targeted & Specialist,Third Party Payments,Services Rendered By Voluntary Sector,505,08/12/2017,1712-00019,0.00,2046.24,R,REDACTED PERSONAL DATA,No
Http://opendatacommunities.org/id/metropolitan-district-council/leeds,Leeds City Council,31/12/2017,Children and Families,Safeguarding Targeted & Specialist,Third Party Payments,Services Rendered By Voluntary Sector,505,08/12/2017,1712-00020,0.00,222.60,R,REDACTED PERSONAL DATA,No
Http://opendatacommunities.org/id/metropolitan-district-council/leeds,Leeds City Council,31/12/2017,Children and Families,Safeguarding Targeted & Specialist,Supplies and Services,Food & Drink,231,01/12/2017,1712-00021,0.00,174.86,R,A F Blakemore & Son Ltd,No
Http://opendatacommunities.org/id/metropolitan-district-council/leeds,Leeds City Council,31/12/2017,Adults and Health,Services For Older People Under 65 P/Dis,Supplies and Services,Food & Drink,231,01/12/2017,1712-00022,0.00,49.50,R,A F Blakemore & Son Ltd,No
Http://opendatacommunities.org/id/metropolitan-district-council/leeds,Leeds City Council,31/12/2017,City Development,Libraries  Arts & Heritage,Supplies and Services,Food & Drink,231,01/12/2017,1712-00023,0.00,17.99,R,A F Blakemore & Son Ltd,No
Http://opendatacommunities.org/id/metropolitan-district-council/leeds,Leeds City Council,31/12/2017,Adults and Health,Services For Older People Under 65 P/Dis,Supplies and Services,Food & Drink,231,01/12/2017,1712-00024,0.00,35.40,R,A F Blakemore & Son Ltd,No
Http://opendatacommunities.org/id/metropolitan-district-council/leeds,Leeds City Council,31/12/2017,Adults and Health,Services For Older People Under 65 P/Dis,Supplies and Services,Food & Drink,231,01/12/2017,1712-00025,0.00,15.13,R,A F Blakemore & Son Ltd,No
Http://opendatacommunities.org/id/metropolitan-district-council/leeds,Leeds City Council,31/12/2017,City Development,Libraries  Arts & Heritage,Supplies and Services,Food & Drink,231,01/12/2017,1712-00026,0.00,150.11,R,A F Blakemore & Son Ltd,No
Http://opendatacommunities.org/id/metropolitan-district-council/leeds,Leeds City Council,31/12/2017,Communities and Environment,Parks and Countryside,Supplies and Services,Food & Drink,231,06/12/2017,1712-00027,0.00,287.63,R,A F Blakemore & Son Ltd,No
Http://opendatacommunities.org/id/metropolitan-district-council/leeds,Leeds City Council,31/12/2017,Communities and Environment,Parks and Countryside,Supplies and Services,Food & Drink,231,06/12/2017,1712-00028,0.00,463.22,R,A F Blakemore & Son Ltd,No
Http://opendatacommunities.org/id/metropolitan-district-council/leeds,Leeds City Council,31/12/2017,Communities and Environment,Parks and Countryside,Supplies and Services,Food & Drink,231,06/12/2017,1712-00029,0.00,463.78,R,A F Blakemore & Son Ltd,No
Http://opendatacommunities.org/id/metropolitan-district-council/leeds,Leeds City Council,31/12/2017,Communities and Environment,Parks and Countryside,Supplies and Services,Food & Drink,231,06/12/2017,1712-00030,0.00,94.70,R,A F Blakemore & Son Ltd,No
Http://opendatacommunities.org/id/metropolitan-district-council/leeds,Leeds City Council,31/12/2017,Communities and Environment,Parks and Countryside,Supplies and Services,Food & Drink,231,06/12/2017,1712-00031,0.00,16.02,R,A F Blakemore & Son Ltd,No
Http://opendatacommunities.org/id/metropolitan-district-council/leeds,Leeds City Council,31/12/2017,Communities and Environment,Parks and Countryside,Supplies and Services,Food & Drink,231,06/12/2017,1712-00032,0.00,391.32,R,A F Blakemore & Son Ltd,No
Http://opendatacommunities.org/id/metropolitan-district-council/leeds,Leeds City Council,31/12/2017,Communities and Environment,Parks and Countryside,Supplies and Services,Food & Drink,231,06/12/2017,1712-00033,0.00,223.79,R,A F Blakemore & Son Ltd,No
Http://opendatacommunities.org/id/metropolitan-district-council/leeds,Leeds City Council,31/12/2017,Communities and Environment,Parks and Countryside,Supplies and Services,Food & Drink,231,06/12/2017,1712-00034,0.00,2.75,R,A F Blakemore & Son Ltd,No
Http://opendatacommunities.org/id/metropolitan-district-council/leeds,Leeds City Council,31/12/2017,Communities and Environment,Parks and Countryside,Supplies and Services,Food & Drink,231,06/12/2017,1712-00035,0.00,484.97,R,A F Blakemore & Son Ltd,No
Http://opendatacommunities.org/id/metropolitan-district-council/leeds,Leeds City Council,31/12/2017,Communities and Environment,Parks and Countryside,Supplies and Services,Food & Drink,231,06/12/2017,1712-00036,0.00,203.06,R,A F Blakemore & Son Ltd,No
Http://opendatacommunities.org/id/metropolitan-district-council/leeds,Leeds City Council,31/12/2017,City Development,Libraries  Arts & Heritage,Supplies and Services,Food & Drink,231,07/12/2017,1712-00037,0.00,195.94,R,A F Blakemore & Son Ltd,No
Http://opendatacommunities.org/id/metropolitan-district-council/leeds,Leeds City Council,31/12/2017,City Development,Libraries  Arts & Heritage,Supplies and Services,Food & Drink,231,07/12/2017,1712-00038,0.00,131.07,R,A F Blakemore & Son Ltd,No
Http://opendatacommunities.org/id/metropolitan-district-council/leeds,Leeds City Council,31/12/2017,Adults and Health,Services For Older People Under 65 P/Dis,Supplies and Services,Food & Drink,231,07/12/2017,1712-00039,0.00,22.67,R,A F Blakemore & Son Ltd,No
Http://opendatacommunities.org/id/metropolitan-district-council/leeds,Leeds City Council,31/12/2017,Communities and Environment,Parks and Countryside,Supplies and Services,Food & Drink,231,07/12/2017,1712-00040,0.00,49.06,R,A F Blakemore & Son Ltd,No
Http://opendatacommunities.org/id/metropolitan-district-council/leeds,Leeds City Council,31/12/2017,Resources and Housing,Commercial Services,Supplies and Services,Food & Drink,231,08/12/2017,1712-00041,0.00,48516.65,R,A F Blakemore & Son Ltd,No
Http://opendatacommunities.org/id/metropolitan-district-council/leeds,Leeds City Council,31/12/2017,City Development,Libraries  Arts & Heritage,Supplies and Services,Food & Drink,231,08/12/2017,1712-00042,0.00,202.13,R,A F Blakemore & Son Ltd,No
Http://opendatacommunities.org/id/metropolitan-district-council/leeds,Leeds City Council,31/12/2017,City Development,Libraries  Arts & Heritage,Supplies and Services,Food & Drink,231,08/12/2017,1712-00043,0.00,113.80,R,A F Blakemore & Son Ltd,No
Http://opendatacommunities.org/id/metropolitan-district-council/leeds,Leeds City Council,31/12/2017,City Development,Libraries  Arts & Heritage,Supplies and Services,Food & Drink,231,08/12/2017,1712-00044,0.00,7.24,R,A F Blakemore & Son Ltd,No
Http://opendatacommunities.org/id/metropolitan-district-council/leeds,Leeds City Council,31/12/2017,City Development,Libraries  Arts & Heritage,Supplies and Services,Food & Drink,231,08/12/2017,1712-00045,0.00,244.12,R,A F Blakemore & Son Ltd,No
Http://opendatacommunities.org/id/metropolitan-district-council/leeds,Leeds City Council,31/12/2017,Resources and Housing,Commercial Services,Supplies and Services,Food & Drink,231,08/12/2017,1712-00046,0.00,69.88,R,A F Blakemore & Son Ltd,No
Http://opendatacommunities.org/id/metropolitan-district-council/leeds,Leeds City Council,31/12/2017,Resources and Housing,Commercial Services,Supplies and Services,Food & Drink,231,08/12/2017,1712-00047,0.00,41.05,R,A F Blakemore & Son Ltd,No
Http://opendatacommunities.org/id/metropolitan-district-council/leeds,Leeds City Council,31/12/2017,City Development,Libraries  Arts & Heritage,Supplies and Services,Food & Drink,231,08/12/2017,1712-00048,0.00,40.24,R,A F Blakemore & Son Ltd,No
Http://opendatacommunities.org/id/metropolitan-district-council/leeds,Leeds City Council,31/12/2017,Resources and Housing,Commercial Services,Supplies and Services,Food & Drink,231,08/12/2017,1712-00049,0.00,114.86,R,A F Blakemore & Son Ltd,No
Http://opendatacommunities.org/id/metropolitan-district-council/leeds,Leeds City Council,31/12/2017,City Development,Libraries  Arts & Heritage,Supplies and Services,Food & Drink,231,08/12/2017,1712-00050,0.00,333.68,R,A F Blakemore & Son Ltd,No
Http://opendatacommunities.org/id/metropolitan-district-council/leeds,Leeds City Council,31/12/2017,City Development,Libraries  Arts & Heritage,Supplies and Services,Food & Drink,231,08/12/2017,1712-00051,0.00,16.99,R,A F Blakemore & Son Ltd,No
Http://opendatacommunities.org/id/metropolitan-district-council/leeds,Leeds City Council,31/12/2017,Resources and Housing,Commercial Services,Supplies and Services,Food & Drink,231,08/12/2017,1712-00052,0.00,110.16,R,A F Blakemore & Son Ltd,No
Http://opendatacommunities.org/id/metropolitan-district-council/leeds,Leeds City Council,31/12/2017,City Development,Libraries  Arts & Heritage,Supplies and Services,Food & Drink,231,08/12/2017,1712-00053,0.00,414.15,R,A F Blakemore & Son Ltd,No
Http://opendatacommunities.org/id/metropolitan-district-council/leeds,Leeds City Council,31/12/2017,Resources and Housing,Commercial Services,Supplies and Services,Food & Drink,231,08/12/2017,1712-00054,0.00,106.88,R,A F Blakemore & Son Ltd,No
Http://opendatacommunities.org/id/metropolitan-district-council/leeds,Leeds City Council,31/12/2017,Resources and Housing,Commercial Services,Supplies and Services,Food & Drink,231,08/12/2017,1712-00055,0.00,77.07,R,A F Blakemore & Son Ltd,No
Http://opendatacommunities.org/id/metropolitan-district-council/leeds,Leeds City Council,31/12/2017,Resources and Housing,Commercial Services,Supplies and Services,Food & Drink,231,08/12/2017,1712-00056,0.00,18.75,R,A F Blakemore & Son Ltd,No
Http://opendatacommunities.org/id/metropolitan-district-council/leeds,Leeds City Council,31/12/2017,City Development,Libraries  Arts & Heritage,Supplies and Services,Food & Drink,231,08/12/2017,1712-00057,0.00,601.92,R,A F Blakemore & Son Ltd,No
Http://opendatacommunities.org/id/metropolitan-district-council/leeds,Leeds City Council,31/12/2017,City Development,Libraries  Arts & Heritage,Supplies and Services,Food & Drink,231,08/12/2017,1712-00058,0.00,554.81,R,A F Blakemore & Son Ltd,No
Http://opendatacommunities.org/id/metropolitan-district-council/leeds,Leeds City Council,31/12/2017,City Development,Libraries  Arts & Heritage,Supplies and Services,Food & Drink,231,08/12/2017,1712-00059,0.00,26.98,R,A F Blakemore & Son Ltd,No
Http://opendatacommunities.org/id/metropolitan-district-council/leeds,Leeds City Council,31/12/2017,Resources and Housing,Commercial Services,Supplies and Services,Food & Drink,231,08/12/2017,1712-00060,0.00,98.36,R,A F Blakemore & Son Ltd,No
Http://opendatacommunities.org/id/metropolitan-district-council/leeds,Leeds City Council,31/12/2017,City Development,Libraries  Arts & Heritage,Supplies and Services,Food & Drink,231,08/12/2017,1712-00061,0.00,322.14,R,A F Blakemore & Son Ltd,No
Http://opendatacommunities.org/id/metropolitan-district-council/leeds,Leeds City Council,31/12/2017,City Development,Libraries  Arts & Heritage,Supplies and Services,Food & Drink,231,08/12/2017,1712-00062,0.00,24.28,R,A F Blakemore & Son Ltd,No
Http://opendatacommunities.org/id/metropolitan-district-council/leeds,Leeds City Council,31/12/2017,Communities and Environment,Parks and Countryside,Supplies and Services,Food & Drink,231,08/12/2017,1712-00063,0.00,207.33,R,A F Blakemore & Son Ltd,No
Http://opendatacommunities.org/id/metropolitan-district-council/leeds,Leeds City Council,31/12/2017,Communities and Environment,Parks and Countryside,Supplies and Services,Food & Drink,231,08/12/2017,1712-00064,0.00,148.98,R,A F Blakemore & Son Ltd,No
Http://opendatacommunities.org/id/metropolitan-district-council/leeds,Leeds City Council,31/12/2017,Communities and Environment,Parks and Countryside,Supplies and Services,Food & Drink,231,08/12/2017,1712-00065,0.00,202.86,R,A F Blakemore & Son Ltd,No
Http://opendatacommunities.org/id/metropolitan-district-council/leeds,Leeds City Council,31/12/2017,Resources and Housing,Commercial Services,Supplies and Services,Food & Drink,231,08/12/2017,1712-00066,0.00,249.11,R,A F Blakemore & Son Ltd,No
Http://opendatacommunities.org/id/metropolitan-district-council/leeds,Leeds City Council,31/12/2017,Communities and Environment,Parks and Countryside,Supplies and Services,Food & Drink,231,08/12/2017,1712-00067,0.00,35.49,R,A F Blakemore & Son Ltd,No
Http://opendatacommunities.org/id/metropolitan-district-council/leeds,Leeds City Council,31/12/2017,Communities and Environment,Parks and Countryside,Supplies and Services,Food & Drink,231,08/12/2017,1712-00068,0.00,77.88,R,A F Blakemore & Son Ltd,No
Http://opendatacommunities.org/id/metropolitan-district-council/leeds,Leeds City Council,31/12/2017,Communities and Environment,Parks and Countryside,Supplies and Services,Food & Drink,231,11/12/2017,1712-00069,0.00,183.32,R,A F Blakemore & Son Ltd,No
Http://opendatacommunities.org/id/metropolitan-district-council/leeds,Leeds City Council,31/12/2017,Resources and Housing,Commercial Services,Supplies and Services,Food & Drink,231,12/12/2017,1712-00070,0.00,159.91,R,A F Blakemore & Son Ltd,No
Http://opendatacommunities.org/id/metropolitan-district-council/leeds,Leeds City Council,31/12/2017,Resources and Housing,Commercial Services,Supplies and Services,Food & Drink,231,12/12/2017,1712-00071,0.00,7.80,R,A F Blakemore & Son Ltd,No
Http://opendatacommunities.org/id/metropolitan-district-council/leeds,Leeds City Council,31/12/2017,Resources and Housing,Commercial Services,Supplies and Services,Food & Drink,231,12/12/2017,1712-00072,0.00,58.22,R,A F Blakemore & Son Ltd,No
Http://opendatacommunities.org/id/metropolitan-district-council/leeds,Leeds City Council,31/12/2017,Resources and Housing,Commercial Services,Supplies and Services,Food & Drink,231,12/12/2017,1712-00073,0.00,139.66,R,A F Blakemore & Son Ltd,No
Http://opendatacommunities.org/id/metropolitan-district-council/leeds,Leeds City Council,31/12/2017,Adults and Health,Services For Older People Under 65 P/Dis,Supplies and Services,Food & Drink,231,13/12/2017,1712-00074,0.00,125.99,R,A F Blakemore & Son Ltd,No
Http://opendatacommunities.org/id/metropolitan-district-council/leeds,Leeds City Council,31/12/2017,Communities and Environment,Parks and Countryside,Supplies and Services,Food & Drink,231,13/12/2017,1712-00075,0.00,57.08,R,A F Blakemore & Son Ltd,No
Http://opendatacommunities.org/id/metropolitan-district-council/leeds,Leeds City Council,31/12/2017,Resources and Housing,Commercial Services,Supplies and Services,Food & Drink,231,15/12/2017,1712-00076,0.00,28295.66,R,A F Blakemore & Son Ltd,No
Http://opendatacommunities.org/id/metropolitan-district-council/leeds,Leeds City Council,31/12/2017,Communities and Environment,Parks and Countryside,Supplies and Services,Food & Drink,231,15/12/2017,1712-00077,0.00,177.93,R,A F Blakemore & Son Ltd,No
Http://opendatacommunities.org/id/metropolitan-district-council/leeds,Leeds City Council,31/12/2017,Communities and Environment,Parks and Countryside,Supplies and Services,Food & Drink,231,15/12/2017,1712-00078,0.00,92.08,R,A F Blakemore & Son Ltd,No
Http://opendatacommunities.org/id/metropolitan-district-council/leeds,Leeds City Council,31/12/2017,Communities and Environment,Parks and Countryside,Supplies and Services,Food & Drink,231,15/12/2017,1712-00079,0.00,16.72,R,A F Blakemore & Son Ltd,No
Http://opendatacommunities.org/id/metropolitan-district-council/leeds,Leeds City Council,31/12/2017,Communities and Environment,Parks and Countryside,Supplies and Services,Food & Drink,231,15/12/2017,1712-00080,0.00,236.60,R,A F Blakemore & Son Ltd,No
Http://opendatacommunities.org/id/metropolitan-district-council/leeds,Leeds City Council,31/12/2017,Communities and Environment,Parks and Countryside,Supplies and Services,Food & Drink,231,15/12/2017,1712-00081,0.00,167.76,R,A F Blakemore & Son Ltd,No
Http://opendatacommunities.org/id/metropolitan-district-council/leeds,Leeds City Council,31/12/2017,City Development,Libraries  Arts & Heritage,Supplies and Services,Food & Drink,231,15/12/2017,1712-00082,0.00,-3.94,R,A F Blakemore & Son Ltd,No
Http://opendatacommunities.org/id/metropolitan-district-council/leeds,Leeds City Council,31/12/2017,City Development,Libraries  Arts & Heritage,Supplies and Services,Food & Drink,231,15/12/2017,1712-00083,0.00,-3.20,R,A F Blakemore & Son Ltd,No
Http://opendatacommunities.org/id/metropolitan-district-council/leeds,Leeds City Council,31/12/2017,Children and Families,Safeguarding Targeted & Specialist,Supplies and Services,Food & Drink,231,19/12/2017,1712-00084,0.00,31.49,R,A F Blakemore & Son Ltd,No
Http://opendatacommunities.org/id/metropolitan-district-council/leeds,Leeds City Council,31/12/2017,Communities and Environment,Parks and Countryside,Supplies and Services,Food & Drink,231,19/12/2017,1712-00085,0.00,8.99,R,A F Blakemore & Son Ltd,No
Http://opendatacommunities.org/id/metropolitan-district-council/leeds,Leeds City Council,31/12/2017,Children and Families,Safeguarding Targeted & Specialist,Supplies and Services,Food & Drink,231,19/12/2017,1712-00086,0.00,154.99,R,A F Blakemore & Son Ltd,No
Http://opendatacommunities.org/id/metropolitan-district-council/leeds,Leeds City Council,31/12/2017,City Development,Libraries  Arts & Heritage,Supplies and Services,Food & Drink,231,20/12/2017,1712-00087,0.00,10.49,R,A F Blakemore & Son Ltd,No
Http://opendatacommunities.org/id/metropolitan-district-council/leeds,Leeds City Council,31/12/2017,Communities and Environment,Parks and Countryside,Supplies and Services,Food & Drink,231,20/12/2017,1712-00088,0.00,232.01,R,A F Blakemore & Son Ltd,No
Http://opendatacommunities.org/id/metropolitan-district-council/leeds,Leeds City Council,31/12/2017,Communities and Environment,Parks and Countryside,Supplies and Services,Food & Drink,231,20/12/2017,1712-00089,0.00,69.61,R,A F Blakemore & Son Ltd,No
Http://opendatacommunities.org/id/metropolitan-district-council/leeds,Leeds City Council,31/12/2017,Communities and Environment,Parks and Countryside,Supplies and Services,Food & Drink,231,20/12/2017,1712-00090,0.00,149.87,R,A F Blakemore & Son Ltd,No
Http://opendatacommunities.org/id/metropolitan-district-council/leeds,Leeds City Council,31/12/2017,Communities and Environment,Parks and Countryside,Supplies and Services,Food & Drink,231,20/12/2017,1712-00091,0.00,211.70,R,A F Blakemore & Son Ltd,No
Http://opendatacommunities.org/id/metropolitan-district-council/leeds,Leeds City Council,31/12/2017,Communities and Environment,Parks and Countryside,Supplies and Services,Food & Drink,231,20/12/2017,1712-00092,0.00,160.71,R,A F Blakemore & Son Ltd,No
Http://opendatacommunities.org/id/metropolitan-district-council/leeds,Leeds City Council,31/12/2017,Communities and Environment,Parks and Countryside,Supplies and Services,Food & Drink,231,20/12/2017,1712-00093,0.00,103.15,R,A F Blakemore & Son Ltd,No
Http://opendatacommunities.org/id/metropolitan-district-council/leeds,Leeds City Council,31/12/2017,Resources and Housing,Commercial Services,Supplies and Services,Food & Drink,231,22/12/2017,1712-00094,0.00,37229.45,R,A F Blakemore & Son Ltd,No
Http://opendatacommunities.org/id/metropolitan-district-council/leeds,Leeds City Council,31/12/2017,Communities and Environment,Parks and Countryside,Supplies and Services,Food & Drink,231,22/12/2017,1712-00095,0.00,193.57,R,A F Blakemore & Son Ltd,No
Http://opendatacommunities.org/id/metropolitan-district-council/leeds,Leeds City Council,31/12/2017,Communities and Environment,Parks and Countryside,Supplies and Services,Food & Drink,231,22/12/2017,1712-00096,0.00,98.52,R,A F Blakemore & Son Ltd,No
Http://opendatacommunities.org/id/metropolitan-district-council/leeds,Leeds City Council,31/12/2017,Communities and Environment,Parks and Countryside,Supplies and Services,Food & Drink,231,27/12/2017,1712-00097,0.00,186.83,R,A F Blakemore & Son Ltd,No
Http://opendatacommunities.org/id/metropolitan-district-council/leeds,Leeds City Council,31/12/2017,Adults and Health,Services For Older People Under 65 P/Dis,Supplies and Services,Food & Drink,231,27/12/2017,1712-00098,0.00,62.84,R,A F Blakemore & Son Ltd,No
Http://opendatacommunities.org/id/metropolitan-district-council/leeds,Leeds City Council,31/12/2017,Communities and Environment,Parks And Countryside  ,Supplies and Services,Resaleable Materials,204,10/11/2017,1712-00099,0.00,4557.15,R,A F K (Marketing),Yes
Http://opendatacommunities.org/id/metropolitan-district-council/leeds,Leeds City Council,31/12/2017,Children and Families,Safeguarding Targeted & Specialist,Third Party Payments,Services Rendered By Other Organisations,511,01/12/2017,1712-00100,0.00,212.10,R,REDACTED PERSONAL DATA,No
Http://opendatacommunities.org/id/metropolitan-district-council/leeds,Leeds City Council,31/12/2017,Children and Families,Safeguarding Targeted & Specialist,Third Party Payments,Services Rendered By Other Organisations,511,08/12/2017,1712-00101,0.00,352.80,R,REDACTED PERSONAL DATA,No
Http://opendatacommunities.org/id/metropolitan-district-council/leeds,Leeds City Council,31/12/2017,Children and Families,Safeguarding Targeted & Specialist,Third Party Payments,Services Rendered By Other Organisations,511,08/12/2017,1712-00102,0.00,89.88,R,REDACTED PERSONAL DATA,No
Http://opendatacommunities.org/id/metropolitan-district-council/leeds,Leeds City Council,31/12/2017,Children and Families,Safeguarding Targeted & Specialist,Third Party Payments,Services Rendered By Other Organisations,511,08/12/2017,1712-00103,0.00,523.32,R,REDACTED PERSONAL DATA,No
Http://opendatacommunities.org/id/metropolitan-district-council/leeds,Leeds City Council,31/12/2017,Children and Families,Safeguarding Targeted & Specialist,Third Party Payments,Services Rendered By Other Organisations,511,08/12/2017,1712-00104,0.00,273.84,R,REDACTED PERSONAL DATA,No
Http://opendatacommunities.org/id/metropolitan-district-council/leeds,Leeds City Council,31/12/2017,Children and Families,Safeguarding Targeted & Specialist,Third Party Payments,Services Rendered By Other Organisations,511,01/12/2017,1712-00105,0.00,893.85,R,REDACTED PERSONAL DATA,No
Http://opendatacommunities.org/id/metropolitan-district-council/leeds,Leeds City Council,31/12/2017,City Development,Libraries  Arts & Heritage,Supplies and Services,Other Hired And Contracted Services,265,28/12/2017,1712-00106,0.00,175.00,R,REDACTED COMMERCIAL CONFIDENTIALITY,No
Http://opendatacommunities.org/id/metropolitan-district-council/leeds,Leeds City Council,31/12/2017,Resources and Housing,Leeds Building Services,Supplies and Services,Operational Materials,205,01/12/2017,1712-00107,0.00,738.00,R,A J H  Pump Supply & Repair Ltd,No
Http://opendatacommunities.org/id/metropolitan-district-council/leeds,Leeds City Council,31/12/2017,Resources and Housing,Leeds Building Services,Supplies and Services,Operational Materials,205,01/12/2017,1712-00108,0.00,1033.00,R,A J H  Pump Supply & Repair Ltd,No
Http://opendatacommunities.org/id/metropolitan-district-council/leeds,Leeds City Council,31/12/2017,Resources and Housing,Leeds Building Services,Supplies and Services,Operational Materials,205,08/12/2017,1712-00109,0.00,11.98,R,A J H  Pump Supply & Repair Ltd,No
Http://opendatacommunities.org/id/metropolitan-district-council/leeds,Leeds City Council,31/12/2017,Resources and Housing,Leeds Building Services,Supplies and Services,Operational Materials,205,08/12/2017,1712-00110,0.00,88.20,R,A J H  Pump Supply & Repair Ltd,No
Http://opendatacommunities.org/id/metropolitan-district-council/leeds,Leeds City Council,31/12/2017,Resources and Housing,Leeds Building Services,Supplies and Services,Operational Materials,205,08/12/2017,1712-00111,0.00,72.93,R,A J H  Pump Supply & Repair Ltd,No
Http://opendatacommunities.org/id/metropolitan-district-council/leeds,Leeds City Council,31/12/2017,Resources and Housing,Leeds Building Services,Supplies and Services,Operational Materials,205,08/12/2017,1712-00112,0.00,70.00,R,A J H  Pump Supply & Repair Ltd,No
Http://opendatacommunities.org/id/metropolitan-district-council/leeds,Leeds City Council,31/12/2017,Resources and Housing,Leeds Building Services,Supplies and Services,Operational Materials,205,08/12/2017,1712-00113,0.00,26.65,R,A J H  Pump Supply & Repair Ltd,No
Http://opendatacommunities.org/id/metropolitan-district-council/leeds,Leeds City Council,31/12/2017,Resources and Housing,Leeds Building Services,Supplies and Services,Operational Materials,205,08/12/2017,1712-00114,0.00,19.00,R,A J H  Pump Supply & Repair Ltd,No
Http://opendatacommunities.org/id/metropolitan-district-council/leeds,Leeds City Council,31/12/2017,Resources and Housing,Leeds Building Services,Supplies and Services,Operational Materials,205,08/12/2017,1712-00115,0.00,113.95,R,A J H  Pump Supply & Repair Ltd,No
Http://opendatacommunities.org/id/metropolitan-district-council/leeds,Leeds City Council,31/12/2017,Resources and Housing,Leeds Building Services,Supplies and Services,Operational Materials,205,08/12/2017,1712-00116,0.00,23.90,R,A J H  Pump Supply & Repair Ltd,No
Http://opendatacommunities.org/id/metropolitan-district-council/leeds,Leeds City Council,31/12/2017,Resources and Housing,Leeds Building Services,Supplies and Services,Operational Materials,205,08/12/2017,1712-00117,0.00,105.00,R,A J H  Pump Supply & Repair Ltd,No
Http://opendatacommunities.org/id/metropolitan-district-council/leeds,Leeds City Council,31/12/2017,Resources and Housing,Leeds Building Services,Supplies and Services,Operational Materials,205,08/12/2017,1712-00118,0.00,82.03,R,A J H  Pump Supply & Repair Ltd,No
Http://opendatacommunities.org/id/metropolitan-district-council/leeds,Leeds City Council,31/12/2017,Resources and Housing,Leeds Building Services,Supplies and Services,Operational Materials,205,08/12/2017,1712-00119,0.00,180.00,R,A J H  Pump Supply & Repair Ltd,No
Http://opendatacommunities.org/id/metropolitan-district-council/leeds,Leeds City Council,31/12/2017,Resources and Housing,Leeds Building Services,Supplies and Services,Operational Materials,205,08/12/2017,1712-00120,0.00,67.35,R,A J H  Pump Supply & Repair Ltd,No
Http://opendatacommunities.org/id/metropolitan-district-council/leeds,Leeds City Council,31/12/2017,Resources and Housing,Leeds Building Services,Supplies and Services,Operational Materials,205,08/12/2017,1712-00121,0.00,119.50,R,A J H  Pump Supply & Repair Ltd,No
Http://opendatacommunities.org/id/metropolitan-district-council/leeds,Leeds City Council,31/12/2017,Resources and Housing,Leeds Building Services,Supplies and Services,Operational Materials,205,08/12/2017,1712-00122,0.00,49.50,R,A J H  Pump Supply & Repair Ltd,No
Http://opendatacommunities.org/id/metropolitan-district-council/leeds,Leeds City Council,31/12/2017,Resources and Housing,Leeds Building Services,Supplies and Services,Operational Materials,205,08/12/2017,1712-00123,0.00,370.00,R,A J H  Pump Supply & Repair Ltd,No
Http://opendatacommunities.org/id/metropolitan-district-council/leeds,Leeds City Council,31/12/2017,Resources and Housing,Leeds Building Services,Supplies and Services,Operational Materials,205,08/12/2017,1712-00124,0.00,153.00,R,A J H  Pump Supply & Repair Ltd,No
Http://opendatacommunities.org/id/metropolitan-district-council/leeds,Leeds City Council,31/12/2017,Resources and Housing,Leeds Building Services,Supplies and Services,Operational Materials,205,08/12/2017,1712-00125,0.00,27.66,R,A J H  Pump Supply & Repair Ltd,No
Http://opendatacommunities.org/id/metropolitan-district-council/leeds,Leeds City Council,31/12/2017,Resources and Housing,Leeds Building Services,Supplies and Services,Operational Materials,205,08/12/2017,1712-00126,0.00,108.72,R,A J H  Pump Supply & Repair Ltd,No
Http://opendatacommunities.org/id/metropolitan-district-council/leeds,Leeds City Council,31/12/2017,Resources and Housing,Leeds Building Services,Supplies and Services,Operational Materials,205,08/12/2017,1712-00127,0.00,119.21,R,A J H  Pump Supply & Repair Ltd,No
Http://opendatacommunities.org/id/metropolitan-district-council/leeds,Leeds City Council,31/12/2017,Resources and Housing,Leeds Building Services,Supplies and Services,Operational Materials,205,08/12/2017,1712-00128,0.00,743.00,R,A J H  Pump Supply & Repair Ltd,No
Http://opendatacommunities.org/id/metropolitan-district-council/leeds,Leeds City Council,31/12/2017,Resources and Housing,Leeds Building Services,Supplies and Services,Operational Materials,205,08/12/2017,1712-00129,0.00,95.00,R,A J H  Pump Supply & Repair Ltd,No
Http://opendatacommunities.org/id/metropolitan-district-council/leeds,Leeds City Council,31/12/2017,Resources and Housing,Leeds Building Services,Supplies and Services,Operational Materials,205,12/12/2017,1712-00130,0.00,1884.00,R,A J H  Pump Supply & Repair Ltd,No
Http://opendatacommunities.org/id/metropolitan-district-council/leeds,Leeds City Council,31/12/2017,City Development,Libraries  Arts & Heritage,Supplies and Services,Art Galleries Total Stores,003,15/12/2017,1712-00131,0.00,32.00,R,A J Promotions,No
Http://opendatacommunities.org/id/metropolitan-district-council/leeds,Leeds City Council,31/12/2017,Communities and Environment,Customer Access,Supplies and Services,Resaleable Materials,204,20/12/2017,1712-00132,0.00,30.42,R,A J Promotions,No
Http://opendatacommunities.org/id/metropolitan-district-council/leeds,Leeds City Council,31/12/2017,Children and Families,Safeguarding Targeted & Specialist,Third Party Payments,Services Rendered By Other Organisations,511,08/12/2017,1712-00133,0.00,705.60,R,REDACTED PERSONAL DATA,No
Http://opendatacommunities.org/id/metropolitan-district-council/leeds,Leeds City Council,31/12/2017,Children and Families,Safeguarding Targeted & Specialist,Third Party Payments,Services Rendered By Voluntary Sector,505,01/12/2017,1712-00134,0.00,150.00,R,A Little Something Extra Ltd,No
Http://opendatacommunities.org/id/metropolitan-district-council/leeds,Leeds City Council,31/12/2017,Children and Families,Safeguarding Targeted & Specialist,Third Party Payments,Services Rendered By Other Organisations,511,29/12/2017,1712-00135,0.00,900.00,R,A Little Something Extra Ltd,No
Http://opendatacommunities.org/id/metropolitan-district-council/leeds,Leeds City Council,31/12/2017,Children and Families,Safeguarding Targeted & Specialist,Third Party Payments,Services Rendered By Voluntary Sector,505,29/12/2017,1712-00136,0.00,150.00,R,A Little Something Extra Ltd,No
Http://opendatacommunities.org/id/metropolitan-district-council/leeds,Leeds City Council,31/12/2017,Children and Families,Safeguarding Targeted & Specialist,Third Party Payments,Services Rendered By Other Organisations,511,29/12/2017,1712-00137,0.00,825.00,R,A Little Something Extra Ltd,No
Http://opendatacommunities.org/id/metropolitan-district-council/leeds,Leeds City Council,31/12/2017,Children and Families,Safeguarding Targeted & Specialist,Third Party Payments,Services Rendered By Other Organisations,511,08/12/2017,1712-00138,0.00,529.20,R,REDACTED PERSONAL DATA,No
Http://opendatacommunities.org/id/metropolitan-district-council/leeds,Leeds City Council,31/12/2017,Resources and Housing,HRA Housing Leeds,Capital,Other Costs,7,07/12/2017,1712-00139,0.00,350.00,C,REDACTED PERSONAL DATA,No
Http://opendatacommunities.org/id/metropolitan-district-council/leeds,Leeds City Council,31/12/2017,Resources and Housing,HRA Housing Leeds,Capital,Other Costs,7,07/12/2017,1712-00140,0.00,100.00,C,REDACTED PERSONAL DATA,No
Http://opendatacommunities.org/id/metropolitan-district-council/leeds,Leeds City Council,31/12/2017,Children and Families,Safeguarding Targeted & Specialist,Transfer Payments,Leaving Care Allowances,634,14/12/2017,1712-00141,0.00,50.00,R,REDACTED PERSONAL DATA,No
Http://opendatacommunities.org/id/metropolitan-district-council/leeds,Leeds City Council,31/12/2017,Communities and Environment,Customer Access,Supplies and Services,Other Hired And Contracted Services,265,21/12/2017,1712-00142,0.00,38.25,R,A Mohammed,No
Http://opendatacommunities.org/id/metropolitan-district-council/leeds,Leeds City Council,31/12/2017,Communities and Environment,Customer Access,Supplies and Services,Other Hired And Contracted Services,265,04/12/2017,1712-00143,0.00,661.00,R,A Namaki,No
Http://opendatacommunities.org/id/metropolitan-district-council/leeds,Leeds City Council,31/12/2017,Children and Families,Safeguarding Targeted & Specialist,Third Party Payments,Services Rendered By Other Organisations,511,08/12/2017,1712-00144,0.00,176.40,R,REDACTED PERSONAL DATA,No
Http://opendatacommunities.org/id/metropolitan-district-council/leeds,Leeds City Council,31/12/2017,Communities and Environment,Parks and Countryside,Supplies and Services,Other Hired And Contracted Services,265,18/12/2017,1712-00145,0.00,1393.60,R,A Nicholls,No
Http://opendatacommunities.org/id/metropolitan-district-council/leeds,Leeds City Council,31/12/2017,City Development,Economic Development,Supplies and Services,Publication And Promotion,267,22/12/2017,1712-00146,0.00,500.00,R,A T Graphics Limited,No
Http://opendatacommunities.org/id/metropolitan-district-council/leeds,Leeds City Council,31/12/2017,Resources and Housing,HRA Housing Leeds,Capital,Other Costs,7,07/12/2017,1712-00147,0.00,100.00,C,REDACTED PERSONAL DATA,No
Http://opendatacommunities.org/id/metropolitan-district-council/leeds,Leeds City Council,31/12/2017,Children and Families,Safeguarding Targeted & Specialist,Third Party Payments,Services Rendered By Other Organisations,511,01/12/2017,1712-00148,0.00,212.10,R,REDACTED PERSONAL DATA,No
Http://opendatacommunities.org/id/metropolitan-district-council/leeds,Leeds City Council,31/12/2017,Children and Families,Safeguarding Targeted & Specialist,Third Party Payments,Services Rendered By Other Organisations,511,08/12/2017,1712-00149,0.00,1579.20,R,REDACTED PERSONAL DATA,No
Http://opendatacommunities.org/id/metropolitan-district-council/leeds,Leeds City Council,31/12/2017,Children and Families,Safeguarding Targeted & Specialist,Third Party Payments,Services Rendered By Other Organisations,511,08/12/2017,1712-00150,0.00,295.68,R,REDACTED PERSONAL DATA,No
Http://opendatacommunities.org/id/metropolitan-district-council/leeds,Leeds City Council,31/12/2017,Children and Families,Safeguarding Targeted & Specialist,Third Party Payments,Services Rendered By Other Organisations,511,08/12/2017,1712-00151,0.00,176.40,R,REDACTED PERSONAL DATA,No
Http://opendatacommunities.org/id/metropolitan-district-council/leeds,Leeds City Council,31/12/2017,Resources and Housing,HRA Housing Leeds,Capital,Other Costs,7,07/12/2017,1712-00152,0.00,180.00,C,REDACTED PERSONAL DATA,No
Http://opendatacommunities.org/id/metropolitan-district-council/leeds,Leeds City Council,31/12/2017,City Development,Libraries  Arts & Heritage,Supplies and Services,Contributions To Extended Facilities,271,06/12/2017,1712-00153,0.00,221.72,R,REDACTED PERSONAL DATA,No
Http://opendatacommunities.org/id/metropolitan-district-council/leeds,Leeds City Council,31/12/2017,Resources and Housing,Leeds Building Services,Supplies and Services,Other Hired And Contracted Services,265,11/12/2017,1712-00154,0.00,2631.00,R,A1 Bridge Flue Systems,No
Http://opendatacommunities.org/id/metropolitan-district-council/leeds,Leeds City Council,31/12/2017,Resources and Housing,Commercial Services,Transport,Private Hire,360,01/12/2017,1712-00155,0.00,660.00,R,A1 Ossett Cars,No
Http://opendatacommunities.org/id/metropolitan-district-council/leeds,Leeds City Council,31/12/2017,Adults and Health,Services For Older People - 65 And Over  ,Supplies and Services,Office Consumables,210,13/11/2017,1712-00156,0.00,19.51,R,A2b Office Technol,Yes
Http://opendatacommunities.org/id/metropolitan-district-council/leeds,Leeds City Council as Accountable Body,31/12/2017,Social Services Pooled Budgets,Leeds Community Equip Store Pooled Budgt,Supplies and Services,Other Equipment,203,14/12/2017,1712-00157,0.00,959.00,R,Aat (Gb) Ltd,No
Http://opendatacommunities.org/id/metropolitan-district-council/leeds,Leeds City Council,31/12/2017,Adults and Health,Social Services Support Services,Transport,Public Transport Expenses,310,01/12/2017,1712-00158,0.00,476.00,R,Ab Cars (Garforth) Ltd,No
Http://opendatacommunities.org/id/metropolitan-district-council/leeds,Leeds City Council,31/12/2017,Communities and Environment,Parks and Countryside,Capital,Other Costs,7,01/12/2017,1712-00159,0.00,3492.00,C,Abacus Cost Management Ltd,No
Http://opendatacommunities.org/id/metropolitan-district-council/leeds,Leeds City Council,31/12/2017,City Development,Planning & Sustainable Development,Supplies and Services,Other Hired And Contracted Services,265,01/12/2017,1712-00160,0.00,15.59,R,Abacus Express Limited,No
Http://opendatacommunities.org/id/metropolitan-district-council/leeds,Leeds City Council,31/12/2017,Children and Families,Safeguarding Targeted & Specialist,Support Services,Legal Disbursements,411,06/12/2017,1712-00161,0.00,31.02,R,Abacus Express Limited,No
Http://opendatacommunities.org/id/metropolitan-district-council/leeds,Leeds City Council,31/12/2017,Children and Families,Safeguarding Targeted & Specialist,Support Services,Legal Disbursements,411,06/12/2017,1712-00162,0.00,26.77,R,Abacus Express Limited,No
Http://opendatacommunities.org/id/metropolitan-district-council/leeds,Leeds City Council,31/12/2017,Resources and Housing,Strategic Housing Partnership & Support,Support Services,Legal Disbursements,411,06/12/2017,1712-00163,0.00,16.66,R,Abacus Express Limited,No
Http://opendatacommunities.org/id/metropolitan-district-council/leeds,Leeds City Council,31/12/2017,Children and Families,Safeguarding Targeted & Specialist,Support Services,Legal Disbursements,411,06/12/2017,1712-00164,0.00,16.66,R,Abacus Express Limited,No
Http://opendatacommunities.org/id/metropolitan-district-council/leeds,Leeds City Council,31/12/2017,Children and Families,Safeguarding Targeted & Specialist,Support Services,Legal Disbursements,411,15/12/2017,1712-00165,0.00,37.63,R,Abacus Express Limited,No
Http://opendatacommunities.org/id/metropolitan-district-council/leeds,Leeds City Council,31/12/2017,Children and Families,Safeguarding Targeted & Specialist,Support Services,Legal Disbursements,411,15/12/2017,1712-00166,0.00,55.50,R,Abacus Express Limited,No
Http://opendatacommunities.org/id/metropolitan-district-council/leeds,Leeds City Council,31/12/2017,City Development,Libraries  Arts & Heritage,Supplies and Services,Postages,212,19/12/2017,1712-00167,0.00,15.00,R,Abacus Express Limited,No
Http://opendatacommunities.org/id/metropolitan-district-council/leeds,Leeds City Council,31/12/2017,Children and Families,Safeguarding Targeted & Specialist,Support Services,Legal Disbursements,411,22/12/2017,1712-00168,0.00,40.85,R,Abacus Express Limited,No
Http://opendatacommunities.org/id/metropolitan-district-council/leeds,Leeds City Council,31/12/2017,City Development,Planning & Sustainable Development,Supplies and Services,Other Hired And Contracted Services,265,29/12/2017,1712-00169,0.00,109.11,R,Abacus Express Limited,No
Http://opendatacommunities.org/id/metropolitan-district-council/leeds,Leeds City Council,31/12/2017,Adults and Health,Services For Older People - 65 And Over,Third Party Payments,Nursing Care Dementia,574,13/12/2017,1712-00170,0.00,1556.00,R,Abbendon Nursing Home,No
Http://opendatacommunities.org/id/metropolitan-district-council/leeds,Leeds City Council,31/12/2017,Resources and Housing,Commercial Services,Transport,Private Hire,360,01/12/2017,1712-00171,0.00,870.00,R,Abbey Cars (Wakefield) Ltd,No
Http://opendatacommunities.org/id/metropolitan-district-council/leeds,Leeds City Council,31/12/2017,Adults and Health,Services For Adults Under 65 Mental/Dis,Third Party Payments,Nursing Home,570,13/12/2017,1712-00172,0.00,14041.57,R,Abbey Grange Nursing Home,No
Http://opendatacommunities.org/id/metropolitan-district-council/leeds,Leeds City Council,31/12/2017,Communities and Environment,Cleaner Neighbourhood Teams,Supplies and Services,Bought In Professional Services,277,15/12/2017,1712-00173,0.00,50.07,R,Abbey House Veterinary Hospital,No
Http://opendatacommunities.org/id/metropolitan-district-council/leeds,Leeds City Council,31/12/2017,Children and Families,Safeguarding Targeted & Specialist,Third Party Payments,Services Rendered By Other Organisations,511,01/12/2017,1712-00174,0.00,2615.90,R,Abc Daycare And Ozone Out Of School,No
Http://opendatacommunities.org/id/metropolitan-district-council/leeds,Leeds City Council,31/12/2017,Children and Families,Safeguarding Targeted & Specialist,Third Party Payments,Services Rendered By Other Organisations,511,08/12/2017,1712-00175,0.00,2820.00,R,Abc Daycare And Ozone Out Of School,No
Http://opendatacommunities.org/id/metropolitan-district-council/leeds,Leeds City Council,31/12/2017,Children and Families,Safeguarding Targeted & Specialist,Third Party Payments,Services Rendered By Other Organisations,511,08/12/2017,1712-00176,0.00,3629.64,R,Abc Nursery At Lufc,No
Http://opendatacommunities.org/id/metropolitan-district-council/leeds,Leeds City Council,31/12/2017,Children and Families,Safeguarding Targeted & Specialist,Third Party Payments,Services Rendered By Other Organisations,511,08/12/2017,1712-00177,0.00,333.90,R,Abc Nursery At Lufc,No
Http://opendatacommunities.org/id/metropolitan-district-council/leeds,Leeds City Council,31/12/2017,Children and Families,Safeguarding Targeted & Specialist,Third Party Payments,Services Rendered By Other Organisations,511,01/12/2017,1712-00178,0.00,2636.10,R,Abc@D'S Childcare Services,No
Http://opendatacommunities.org/id/metropolitan-district-council/leeds,Leeds City Council,31/12/2017,Children and Families,Safeguarding Targeted & Specialist,Third Party Payments,Services Rendered By Other Organisations,511,08/12/2017,1712-00179,0.00,3712.80,R,Abc@D'S Childcare Services,No
Http://opendatacommunities.org/id/metropolitan-district-council/leeds,Leeds City Council,31/12/2017,Children and Families,Safeguarding Targeted & Specialist,Third Party Payments,Services Rendered By Other Organisations,511,08/12/2017,1712-00180,0.00,93.28,R,Abc@D'S Childcare Services,No
Http://opendatacommunities.org/id/metropolitan-district-council/leeds,Leeds City Council,31/12/2017,Resources and Housing,Strategic Housing Partnership & Support,Supplies and Services,Other Hired And Contracted Services,265,11/12/2017,1712-00181,0.00,530.00,R,Abdul Farruckh,No
Http://opendatacommunities.org/id/metropolitan-district-council/leeds,Leeds City Council,31/12/2017,Communities and Environment,Elections  Licensing and Registration,Income,Admissions  Booking Fees & Ticket Sales,933,07/12/2017,1712-00182,0.00,80.00,R,REDACTED PERSONAL DATA,No
Http://opendatacommunities.org/id/metropolitan-district-council/leeds,Leeds City Council,31/12/2017,Communities and Environment,Customer Access,Supplies and Services,Other Hired And Contracted Services,265,21/12/2017,1712-00183,0.00,83.75,R,Abdul Wadood Kazizadha,No
Http://opendatacommunities.org/id/metropolitan-district-council/leeds,Leeds City Council,31/12/2017,Communities and Environment,Customer Access,Supplies and Services,Other Hired And Contracted Services,265,04/12/2017,1712-00184,0.00,24.25,R,Abdulahad Denha,No
Http://opendatacommunities.org/id/metropolitan-district-council/leeds,Leeds City Council,31/12/2017,Communities and Environment,Customer Access,Supplies and Services,Other Hired And Contracted Services,265,21/12/2017,1712-00185,0.00,24.75,R,Abdulahad Denha,No
Http://opendatacommunities.org/id/metropolitan-district-council/leeds,Leeds City Council,31/12/2017,Children and Families,Safeguarding Targeted & Specialist  ,Transport,Public Transport Expenses,310,23/11/2017,1712-00186,0.00,12.60,R,Abellio Scotrail Ltd,Yes
Http://opendatacommunities.org/id/metropolitan-district-council/leeds,Leeds City Council,31/12/2017,Adults and Health,Services For Older People - 65 And Over,Third Party Payments,Nursing Home,570,13/12/2017,1712-00187,0.00,31134.44,R,Aberford Hall,No
Http://opendatacommunities.org/id/metropolitan-district-council/leeds,Leeds City Council,31/12/2017,Adults and Health,Services For Older People - 65 And Over,Third Party Payments,Nursing Care Dementia,574,13/12/2017,1712-00188,0.00,1566.20,R,Aberford Hall,No
Http://opendatacommunities.org/id/metropolitan-district-council/leeds,Leeds City Council,31/12/2017,Adults and Health,Services For Older People - 65 And Over,Third Party Payments,Residential,580,13/12/2017,1712-00189,0.00,1407.08,R,Aberford Hall,No
Http://opendatacommunities.org/id/metropolitan-district-council/leeds,Leeds City Council,31/12/2017,Resources and Housing,Leeds Building Services,Supplies and Services,Operational Materials,205,01/12/2017,1712-00190,0.00,250.45,R,Abi Garage Doors Ltd,No
Http://opendatacommunities.org/id/metropolitan-district-council/leeds,Leeds City Council,31/12/2017,Resources and Housing,Leeds Building Services,Supplies and Services,Operational Materials,205,01/12/2017,1712-00191,0.00,250.45,R,Abi Garage Doors Ltd,No
Http://opendatacommunities.org/id/metropolitan-district-council/leeds,Leeds City Council,31/12/2017,Resources and Housing,Leeds Building Services,Supplies and Services,Operational Materials,205,08/12/2017,1712-00192,0.00,75.00,R,Abi Garage Doors Ltd,No
Http://opendatacommunities.org/id/metropolitan-district-council/leeds,Leeds City Council,31/12/2017,Resources and Housing,Leeds Building Services,Supplies and Services,Operational Materials,205,08/12/2017,1712-00193,0.00,250.45,R,Abi Garage Doors Ltd,No
Http://opendatacommunities.org/id/metropolitan-district-council/leeds,Leeds City Council,31/12/2017,Resources and Housing,Leeds Building Services,Supplies and Services,Operational Materials,205,20/12/2017,1712-00194,0.00,10.00,R,Abi Garage Doors Ltd,No
Http://opendatacommunities.org/id/metropolitan-district-council/leeds,Leeds City Council,31/12/2017,Resources and Housing,Leeds Building Services,Supplies and Services,Operational Materials,205,20/12/2017,1712-00195,0.00,10.00,R,Abi Garage Doors Ltd,No
Http://opendatacommunities.org/id/metropolitan-district-council/leeds,Leeds City Council,31/12/2017,Resources and Housing,Leeds Building Services,Supplies and Services,Operational Materials,205,20/12/2017,1712-00196,0.00,72.00,R,Abi Garage Doors Ltd,No
Http://opendatacommunities.org/id/metropolitan-district-council/leeds,Leeds City Council,31/12/2017,Resources and Housing,Human Resources,Employees,Occupational Health,85,07/12/2017,1712-00197,0.00,45.00,R,Abie Hector-Goma,No
Http://opendatacommunities.org/id/metropolitan-district-council/leeds,Leeds City Council,31/12/2017,Communities and Environment,Parks and Countryside,Supplies and Services,Operational Materials,205,08/12/2017,1712-00198,0.00,542.00,R,Abram Pulman & Sons Limited,No
Http://opendatacommunities.org/id/metropolitan-district-council/leeds,Leeds City Council,31/12/2017,Children and Families,Safeguarding Targeted & Specialist  ,Supplies and Services,Operational Materials,205,23/11/2017,1712-00199,0.00,45.94,R,Absolute,Yes
Http://opendatacommunities.org/id/metropolitan-district-council/leeds,Leeds City Council,31/12/2017,City Development,Libraries  Arts & Heritage,Supplies and Services,Other Hired And Contracted Services,265,01/12/2017,1712-00200,0.00,524.42,R,Absolute Museum & Gallery Products Ltd,No
Http://opendatacommunities.org/id/metropolitan-district-council/leeds,Leeds City Council,31/12/2017,Children and Families,Safeguarding Targeted & Specialist,Employees,Agency Staff,8,01/12/2017,1712-00201,0.00,1100.00,R,Academic Appointments Ltd,No
Http://opendatacommunities.org/id/metropolitan-district-council/leeds,Leeds City Council,31/12/2017,Children and Families,Safeguarding Targeted & Specialist,Employees,Agency Staff,8,01/12/2017,1712-00202,0.00,1100.00,R,Academic Appointments Ltd,No
Http://opendatacommunities.org/id/metropolitan-district-council/leeds,Leeds City Council,31/12/2017,Children and Families,Safeguarding Targeted & Specialist,Employees,Agency Staff,8,01/12/2017,1712-00203,0.00,1100.00,R,Academic Appointments Ltd,No
Http://opendatacommunities.org/id/metropolitan-district-council/leeds,Leeds City Council,31/12/2017,Resources and Housing,Strategic Housing Partnerships,Capital,Construction,3,07/12/2017,1712-00204,0.00,2268.00,C,Accent Homes Ltd,No
Http://opendatacommunities.org/id/metropolitan-district-council/leeds,Leeds City Council,31/12/2017,Communities and Environment,Community Safety,Transport,Hire Of Movable Plant & Machinery,315,28/12/2017,1712-00205,0.00,1268.57,R,Access Hire Nationwide Ltd,No
Http://opendatacommunities.org/id/metropolitan-district-council/leeds,Leeds City Council,31/12/2017,Communities and Environment,Parks And Countryside  ,Supplies and Services,Operational Materials,205,24/11/2017,1712-00206,0.00,54.16,R,Access Locksmiths,Yes
Http://opendatacommunities.org/id/metropolitan-district-council/leeds,Leeds City Council,31/12/2017,Communities and Environment,Cleaner Neighbourhood Teams,Supplies and Services,Other Hired And Contracted Services,265,01/12/2017,1712-00207,0.00,5.00,R,Access Locksmiths (Leeds) Limited,No
Http://opendatacommunities.org/id/metropolitan-district-council/leeds,Leeds City Council,31/12/2017,Resources and Housing,Leeds Building Services,Supplies and Services,Operational Materials,205,05/12/2017,1712-00208,0.00,23.58,R,Access Locksmiths (Leeds) Limited,No
Http://opendatacommunities.org/id/metropolitan-district-council/leeds,Leeds City Council,31/12/2017,Resources and Housing,Leeds Building Services,Supplies and Services,Operational Materials,205,05/12/2017,1712-00209,0.00,136.62,R,Access Locksmiths (Leeds) Limited,No
Http://opendatacommunities.org/id/metropolitan-district-council/leeds,Leeds City Council,31/12/2017,Resources and Housing,Leeds Building Services,Supplies and Services,Operational Materials,205,05/12/2017,1712-00210,0.00,126.75,R,Access Locksmiths (Leeds) Limited,No
Http://opendatacommunities.org/id/metropolitan-district-council/leeds,Leeds City Council,31/12/2017,Resources and Housing,Leeds Building Services,Supplies and Services,Operational Materials,205,05/12/2017,1712-00211,0.00,59.04,R,Access Locksmiths (Leeds) Limited,No
Http://opendatacommunities.org/id/metropolitan-district-council/leeds,Leeds City Council,31/12/2017,Resources and Housing,Leeds Building Services,Supplies and Services,Operational Materials,205,08/12/2017,1712-00212,0.00,381.00,R,Access Locksmiths (Leeds) Limited,No
Http://opendatacommunities.org/id/metropolitan-district-council/leeds,Leeds City Council,31/12/2017,Resources and Housing,Leeds Building Services,Supplies and Services,Operational Materials,205,08/12/2017,1712-00213,0.00,74.59,R,Access Locksmiths (Leeds) Limited,No
Http://opendatacommunities.org/id/metropolitan-district-council/leeds,Leeds City Council,31/12/2017,Resources and Housing,Leeds Building Services,Supplies and Services,Operational Materials,205,08/12/2017,1712-00214,0.00,26.16,R,Access Locksmiths (Leeds) Limited,No
Http://opendatacommunities.org/id/metropolitan-district-council/leeds,Leeds City Council,31/12/2017,Resources and Housing,Leeds Building Services,Supplies and Services,Operational Materials,205,08/12/2017,1712-00215,0.00,251.24,R,Access Locksmiths (Leeds) Limited,No
Http://opendatacommunities.org/id/metropolitan-district-council/leeds,Leeds City Council,31/12/2017,Resources and Housing,Leeds Building Services,Supplies and Services,Operational Materials,205,08/12/2017,1712-00216,0.00,4.97,R,Access Locksmiths (Leeds) Limited,No
Http://opendatacommunities.org/id/metropolitan-district-council/leeds,Leeds City Council,31/12/2017,Strategic Landlord,Housing Management,Premises,Cleaning Maintenance & Toiletries,127,08/12/2017,1712-00217,0.00,37.50,R,Access Locksmiths (Leeds) Limited,No
Http://opendatacommunities.org/id/metropolitan-district-council/leeds,Leeds City Council,31/12/2017,Strategic Landlord,Property and Contracts,Premises,General Maintenance,104,13/12/2017,1712-00218,0.00,77.60,R,Access Locksmiths (Leeds) Limited,No
Http://opendatacommunities.org/id/metropolitan-district-council/leeds,Leeds City Council,31/12/2017,Strategic Landlord,Property and Contracts,Premises,General Maintenance,104,13/12/2017,1712-00219,0.00,140.54,R,Access Locksmiths (Leeds) Limited,No
Http://opendatacommunities.org/id/metropolitan-district-council/leeds,Leeds City Council,31/12/2017,Strategic Landlord,Property and Contracts,Premises,General Maintenance,104,13/12/2017,1712-00220,0.00,384.90,R,Access Locksmiths (Leeds) Limited,No
Http://opendatacommunities.org/id/metropolitan-district-council/leeds,Leeds City Council,31/12/2017,Strategic Landlord,Property and Contracts,Premises,General Maintenance,104,13/12/2017,1712-00221,0.00,319.80,R,Access Locksmiths (Leeds) Limited,No
Http://opendatacommunities.org/id/metropolitan-district-council/leeds,Leeds City Council,31/12/2017,Strategic Landlord,Housing Management,Premises,Cleaning Maintenance & Toiletries,127,15/12/2017,1712-00222,0.00,189.30,R,Access Locksmiths (Leeds) Limited,No
Http://opendatacommunities.org/id/metropolitan-district-council/leeds,Leeds City Council,31/12/2017,Strategic Landlord,Housing Management,Premises,Cleaning Agency Recharge,129,15/12/2017,1712-00223,0.00,10.00,R,Access Locksmiths (Leeds) Limited,No
Http://opendatacommunities.org/id/metropolitan-district-council/leeds,Leeds City Council,31/12/2017,Strategic Landlord,Property and Contracts,Premises,General Maintenance,104,15/12/2017,1712-00224,0.00,57.00,R,Access Locksmiths (Leeds) Limited,No
Http://opendatacommunities.org/id/metropolitan-district-council/leeds,Leeds City Council,31/12/2017,Strategic Landlord,Housing Management,Premises,Furniture And Fittings,195,15/12/2017,1712-00225,0.00,57.00,R,Access Locksmiths (Leeds) Limited,No
Http://opendatacommunities.org/id/metropolitan-district-council/leeds,Leeds City Council,31/12/2017,Resources and Housing,Leeds Building Services,Supplies and Services,Operational Materials,205,20/12/2017,1712-00226,0.00,1120.40,R,Access Locksmiths (Leeds) Limited,No
Http://opendatacommunities.org/id/metropolitan-district-council/leeds,Leeds City Council,31/12/2017,Resources and Housing,Leeds Building Services,Supplies and Services,Operational Materials,205,20/12/2017,1712-00227,0.00,2222.12,R,Access Locksmiths (Leeds) Limited,No
Http://opendatacommunities.org/id/metropolitan-district-council/leeds,Leeds City Council,31/12/2017,Resources and Housing,Leeds Building Services,Supplies and Services,Operational Materials,205,20/12/2017,1712-00228,0.00,31.07,R,Access Locksmiths (Leeds) Limited,No
Http://opendatacommunities.org/id/metropolitan-district-council/leeds,Leeds City Council,31/12/2017,Resources and Housing,Leeds Building Services,Supplies and Services,Operational Materials,205,20/12/2017,1712-00229,0.00,13.31,R,Access Locksmiths (Leeds) Limited,No
Http://opendatacommunities.org/id/metropolitan-district-council/leeds,Leeds City Council,31/12/2017,Strategic Landlord,Property and Contracts,Premises,General Maintenance,104,20/12/2017,1712-00230,0.00,132.90,R,Access Locksmiths (Leeds) Limited,No
Http://opendatacommunities.org/id/metropolitan-district-council/leeds,Leeds City Council,31/12/2017,Strategic Landlord,Property and Contracts,Premises,General Maintenance,104,20/12/2017,1712-00231,0.00,37.50,R,Access Locksmiths (Leeds) Limited,No
Http://opendatacommunities.org/id/metropolitan-district-council/leeds,Leeds City Council,31/12/2017,Communities and Environment,Cleaner Neighbourhood Teams,Supplies and Services,Operational Furniture And Equipment,203,22/12/2017,1712-00232,0.00,19.40,R,Access Locksmiths (Leeds) Limited,No
Http://opendatacommunities.org/id/metropolitan-district-council/leeds,Leeds City Council,31/12/2017,Strategic Landlord,Housing Management,Premises,General Maintenance,104,22/12/2017,1712-00233,0.00,228.00,R,Access Locksmiths (Leeds) Limited,No
Http://opendatacommunities.org/id/metropolitan-district-council/leeds,Leeds City Council,31/12/2017,Strategic Landlord,Housing Management,Premises,General Maintenance,104,22/12/2017,1712-00234,0.00,228.00,R,Access Locksmiths (Leeds) Limited,No
Http://opendatacommunities.org/id/metropolitan-district-council/leeds,Leeds City Council,31/12/2017,Communities and Environment,Cleaner Neighbourhood Teams,Supplies and Services,Operational Furniture And Equipment,203,22/12/2017,1712-00235,0.00,8.60,R,Access Locksmiths (Leeds) Limited,No
Http://opendatacommunities.org/id/metropolitan-district-council/leeds,Leeds City Council,31/12/2017,Strategic Landlord,Housing Management,Transport,Car Parking Fees,312,29/12/2017,1712-00236,0.00,68.40,R,Access Locksmiths (Leeds) Limited,No
Http://opendatacommunities.org/id/metropolitan-district-council/leeds,Leeds City Council,31/12/2017,Strategic Landlord,Property and Contracts,Premises,General Maintenance,104,29/12/2017,1712-00237,0.00,81.60,R,Access Locksmiths (Leeds) Limited,No
Http://opendatacommunities.org/id/metropolitan-district-council/leeds,Leeds City Council,31/12/2017,Strategic Landlord,Property and Contracts,Supplies and Services,Office Consumables,210,29/12/2017,1712-00238,0.00,66.80,R,Access Locksmiths (Leeds) Limited,No
Http://opendatacommunities.org/id/metropolitan-district-council/leeds,Leeds City Council,31/12/2017,Strategic Landlord,Housing Management,Transport,Car Parking Fees,312,29/12/2017,1712-00239,0.00,22.80,R,Access Locksmiths (Leeds) Limited,No
Http://opendatacommunities.org/id/metropolitan-district-council/leeds,Leeds City Council,31/12/2017,Resources and Housing,Strategy And Improvement  ,Supplies and Services,Other Hired And Contracted Services,265,13/11/2017,1712-00240,0.00,151.65,R,Acco Uk,Yes
Http://opendatacommunities.org/id/metropolitan-district-council/leeds,Leeds City Council,31/12/2017,Resources and Housing,Strategy And Improvement  ,Supplies and Services,Other Hired And Contracted Services,265,29/11/2017,1712-00241,0.00,-151.65,R,Acco Uk,Yes
Http://opendatacommunities.org/id/metropolitan-district-council/leeds,Leeds City Council,31/12/2017,Insurance,Insurance,Supplies and Services,Insurance Claims,248,07/12/2017,1712-00242,0.00,3500.00,R,Accountant General Of The Senior Courts,No
Http://opendatacommunities.org/id/metropolitan-district-council/leeds,Leeds City Council,31/12/2017,Insurance,Insurance,Supplies and Services,Insurance Claims,248,21/12/2017,1712-00243,0.00,4400.00,R,Accountant General Of The Senior Courts,No
Http://opendatacommunities.org/id/metropolitan-district-council/leeds,Leeds City Council,31/12/2017,Communities and Environment,Community Safety  ,Supplies and Services,Office Consumables,210,16/11/2017,1712-00244,0.00,609.59,R,Accutime.Co.Uk,Yes
Http://opendatacommunities.org/id/metropolitan-district-council/leeds,Leeds City Council,31/12/2017,Communities and Environment,Community Safety  ,Supplies and Services,Other Hired And Contracted Services,265,16/11/2017,1712-00245,0.00,1526.19,R,Accutime.Co.Uk,Yes
Http://opendatacommunities.org/id/metropolitan-district-council/leeds,Leeds City Council,31/12/2017,City Development,Libraries  Arts & Heritage,Transport,Hire Of Movable Plant & Machinery,315,01/12/2017,1712-00246,0.00,45.00,R,Ace Container Services Limited,No
Http://opendatacommunities.org/id/metropolitan-district-council/leeds,Leeds City Council,31/12/2017,City Development,Recreation,Supplies and Services,Other Hired And Contracted Services,265,07/12/2017,1712-00247,0.00,90.00,R,Ace Container Services Limited,No
Http://opendatacommunities.org/id/metropolitan-district-council/leeds,Leeds City Council,31/12/2017,Resources and Housing,Commercial Services,Supplies and Services,Operational Furniture And Equipment,203,19/12/2017,1712-00248,0.00,1955.00,R,Acme Facilities Group Ltd,No
Http://opendatacommunities.org/id/metropolitan-district-council/leeds,Leeds City Council,31/12/2017,Resources and Housing,Leeds Building Services,Supplies and Services,Operational Materials,205,28/12/2017,1712-00249,0.00,940.00,R,Acme Facilities Group Ltd,No
Http://opendatacommunities.org/id/metropolitan-district-council/leeds,Leeds City Council,31/12/2017,Children and Families,Partnerships,Third Party Payments,SEN Placements,566,22/12/2017,1712-00250,0.00,-3500.00,R,Acorn Care And Education Ltd,No
Http://opendatacommunities.org/id/metropolitan-district-council/leeds,Leeds City Council,31/12/2017,Children and Families,Partnerships,Third Party Payments,SEN Placements,566,22/12/2017,1712-00251,0.00,-18138.66,R,Acorn Care And Education Ltd,No
Http://opendatacommunities.org/id/metropolitan-district-council/leeds,Leeds City Council,31/12/2017,Children and Families,Partnerships,Third Party Payments,SEN Placements,566,22/12/2017,1712-00252,0.00,2275.96,R,Acorn Care And Education Ltd,No
Http://opendatacommunities.org/id/metropolitan-district-council/leeds,Leeds City Council,31/12/2017,Children and Families,Partnerships,Third Party Payments,SEN Placements,566,22/12/2017,1712-00253,0.00,18138.67,R,Acorn Care And Education Ltd,No
Http://opendatacommunities.org/id/metropolitan-district-council/leeds,Leeds City Council,31/12/2017,Children and Families,Partnerships,Third Party Payments,SEN Placements,566,22/12/2017,1712-00254,0.00,18138.67,R,Acorn Care And Education Ltd,No
Http://opendatacommunities.org/id/metropolitan-district-council/leeds,Leeds City Council,31/12/2017,Children and Families,Partnerships,Third Party Payments,SEN Placements,566,22/12/2017,1712-00255,0.00,18138.67,R,Acorn Care And Education Ltd,No
Http://opendatacommunities.org/id/metropolitan-district-council/leeds,Leeds City Council,31/12/2017,Children and Families,Partnerships,Third Party Payments,SEN Placements,566,22/12/2017,1712-00256,0.00,18138.67,R,Acorn Care And Education Ltd,No
Http://opendatacommunities.org/id/metropolitan-district-council/leeds,Leeds City Council,31/12/2017,Children and Families,Partnerships,Third Party Payments,SEN Placements,566,22/12/2017,1712-00257,0.00,18138.67,R,Acorn Care And Education Ltd,No
Http://opendatacommunities.org/id/metropolitan-district-council/leeds,Leeds City Council,31/12/2017,Children and Families,Partnerships,Third Party Payments,SEN Placements,566,22/12/2017,1712-00258,0.00,18138.67,R,Acorn Care And Education Ltd,No
Http://opendatacommunities.org/id/metropolitan-district-council/leeds,Leeds City Council,31/12/2017,Children and Families,Partnerships,Third Party Payments,SEN Placements,566,22/12/2017,1712-00259,0.00,18138.67,R,Acorn Care And Education Ltd,No
Http://opendatacommunities.org/id/metropolitan-district-council/leeds,Leeds City Council,31/12/2017,Children and Families,Partnerships,Third Party Payments,SEN Placements,566,22/12/2017,1712-00260,0.00,18138.67,R,Acorn Care And Education Ltd,No
Http://opendatacommunities.org/id/metropolitan-district-council/leeds,Leeds City Council,31/12/2017,Children and Families,Partnerships,Third Party Payments,SEN Placements,566,27/12/2017,1712-00261,0.00,18138.67,R,Acorn Care And Education Ltd,No
Http://opendatacommunities.org/id/metropolitan-district-council/leeds,Leeds City Council,31/12/2017,Children and Families,Partnerships,Third Party Payments,SEN Placements,566,27/12/2017,1712-00262,0.00,18138.67,R,Acorn Care And Education Ltd,No
Http://opendatacommunities.org/id/metropolitan-district-council/leeds,Leeds City Council,31/12/2017,Children and Families,Partnerships,Third Party Payments,SEN Placements,566,27/12/2017,1712-00263,0.00,18138.67,R,Acorn Care And Education Ltd,No
Http://opendatacommunities.org/id/metropolitan-district-council/leeds,Leeds City Council,31/12/2017,Children and Families,Partnerships,Third Party Payments,SEN Placements,566,27/12/2017,1712-00264,0.00,18138.67,R,Acorn Care And Education Ltd,No
Http://opendatacommunities.org/id/metropolitan-district-council/leeds,Leeds City Council,31/12/2017,Children and Families,Partnerships,Third Party Payments,SEN Placements,566,27/12/2017,1712-00265,0.00,18138.67,R,Acorn Care And Education Ltd,No
Http://opendatacommunities.org/id/metropolitan-district-council/leeds,Leeds City Council,31/12/2017,Children and Families,Partnerships,Third Party Payments,SEN Placements,566,27/12/2017,1712-00266,0.00,18138.67,R,Acorn Care And Education Ltd,No
Http://opendatacommunities.org/id/metropolitan-district-council/leeds,Leeds City Council,31/12/2017,Children and Families,Partnerships,Third Party Payments,SEN Placements,566,27/12/2017,1712-00267,0.00,18138.67,R,Acorn Care And Education Ltd,No
Http://opendatacommunities.org/id/metropolitan-district-council/leeds,Leeds City Council,31/12/2017,Children and Families,Partnerships,Third Party Payments,SEN Placements,566,27/12/2017,1712-00268,0.00,2833.33,R,Acorn Care And Education Ltd,No
Http://opendatacommunities.org/id/metropolitan-district-council/leeds,Leeds City Council,31/12/2017,Children and Families,Partnerships,Third Party Payments,SEN Placements,566,27/12/2017,1712-00269,0.00,18138.67,R,Acorn Care And Education Ltd,No
Http://opendatacommunities.org/id/metropolitan-district-council/leeds,Leeds City Council,31/12/2017,Children and Families,Partnerships,Third Party Payments,SEN Placements,566,27/12/2017,1712-00270,0.00,18138.67,R,Acorn Care And Education Ltd,No
Http://opendatacommunities.org/id/metropolitan-district-council/leeds,Leeds City Council,31/12/2017,Children and Families,Partnerships,Third Party Payments,SEN Placements,566,27/12/2017,1712-00271,0.00,18138.67,R,Acorn Care And Education Ltd,No
Http://opendatacommunities.org/id/metropolitan-district-council/leeds,Leeds City Council,31/12/2017,Adults and Health,Services For Older People - 65 And Over,Third Party Payments,Nursing Care Dementia,574,13/12/2017,1712-00272,0.00,1546.28,R,Acorn Nursing Home,No
Http://opendatacommunities.org/id/metropolitan-district-council/leeds,Leeds City Council,31/12/2017,City Development,Libraries  Arts & Heritage,Supplies and Services,Other Hired And Contracted Services,265,07/12/2017,1712-00273,0.00,2040.00,R,Acorn Scaffolding (Yorkshire) Ltd,No
Http://opendatacommunities.org/id/metropolitan-district-council/leeds,Leeds City Council,31/12/2017,City Development,Libraries  Arts & Heritage,Supplies and Services,Other Hired And Contracted Services,265,08/12/2017,1712-00274,0.00,9280.00,R,Acorn Scaffolding (Yorkshire) Ltd,No
Http://opendatacommunities.org/id/metropolitan-district-council/leeds,Leeds City Council,31/12/2017,Communities and Environment,Parks and Countryside,Supplies and Services,Other Hired And Contracted Services,265,08/12/2017,1712-00275,0.00,90.00,R,Acorn Scaffolding (Yorkshire) Ltd,No
Http://opendatacommunities.org/id/metropolitan-district-council/leeds,Leeds City Council,31/12/2017,Children and Families,Safeguarding Targeted & Specialist,Third Party Payments,Services Rendered By Other Organisations,511,01/12/2017,1712-00276,0.00,611.05,R,Acorns Nursery,No
Http://opendatacommunities.org/id/metropolitan-district-council/leeds,Leeds City Council,31/12/2017,Children and Families,Safeguarding Targeted & Specialist,Third Party Payments,Services Rendered By Other Organisations,511,08/12/2017,1712-00277,0.00,10718.40,R,Acorns Nursery,No
Http://opendatacommunities.org/id/metropolitan-district-council/leeds,Leeds City Council,31/12/2017,Communities and Environment,Parks and Countryside,Supplies and Services,Other Hired And Contracted Services,265,08/12/2017,1712-00278,0.00,1599.00,R,Acoustic Arrangments Limited,No
Http://opendatacommunities.org/id/metropolitan-district-council/leeds,Leeds City Council,31/12/2017,Communities and Environment,Parks and Countryside,Supplies and Services,Other Hired And Contracted Services,265,08/12/2017,1712-00279,0.00,1389.12,R,Acoustic Arrangments Limited,No
Http://opendatacommunities.org/id/metropolitan-district-council/leeds,Leeds City Council,31/12/2017,Adults and Health,Services For Older People - 65 And Over,Third Party Payments,Nursing Home,570,13/12/2017,1712-00280,0.00,42637.98,R,Acre Green,No
Http://opendatacommunities.org/id/metropolitan-district-council/leeds,Leeds City Council,31/12/2017,Adults and Health,Services For Older People - 65 And Over,Third Party Payments,Nursing Care Dementia,574,13/12/2017,1712-00281,0.00,794.64,R,Acre Green,No
Http://opendatacommunities.org/id/metropolitan-district-council/leeds,Leeds City Council,31/12/2017,Adults and Health,Services For Older People - 65 And Over,Third Party Payments,Residential,580,13/12/2017,1712-00282,0.00,4768.40,R,Acre Green,No
Http://opendatacommunities.org/id/metropolitan-district-council/leeds,Leeds City Council,31/12/2017,Adults and Health,Services For Older People Under 65 P/Dis,Third Party Payments,Nursing Home,570,13/12/2017,1712-00283,0.00,4913.22,R,Acre Green,No
Http://opendatacommunities.org/id/metropolitan-district-council/leeds,Leeds City Council,31/12/2017,Adults and Health,Services For Older People Under 65 P/Dis,Third Party Payments,Residential,580,13/12/2017,1712-00284,0.00,3297.20,R,Acre Green,No
Http://opendatacommunities.org/id/metropolitan-district-council/leeds,Leeds City Council,31/12/2017,Adults and Health,Services For Older People - 65 And Over,Third Party Payments,Nursing Home,570,27/12/2017,1712-00285,0.00,25000.00,R,Acre Green,No
Http://opendatacommunities.org/id/metropolitan-district-council/leeds,Leeds City Council,31/12/2017,City Development,Highways,Supplies and Services,Operational Materials,205,01/12/2017,1712-00286,0.00,120.40,R,Actavo Uk Limited,No
Http://opendatacommunities.org/id/metropolitan-district-council/leeds,Leeds City Council,31/12/2017,City Development,Highways,Supplies and Services,Operational Materials,205,15/12/2017,1712-00287,0.00,96.00,R,Actavo Uk Limited,No
Http://opendatacommunities.org/id/metropolitan-district-council/leeds,Leeds City Council,31/12/2017,City Development,Highways,Supplies and Services,Operational Materials,205,15/12/2017,1712-00288,0.00,86.94,R,Actavo Uk Limited,No
Http://opendatacommunities.org/id/metropolitan-district-council/leeds,Leeds City Council,31/12/2017,City Development,Highways,Supplies and Services,Operational Materials,205,22/12/2017,1712-00289,0.00,239.90,R,Actavo Uk Limited,No
Http://opendatacommunities.org/id/metropolitan-district-council/leeds,Leeds City Council as Accountable Body,31/12/2017,Social Services Pooled Budgets,Leeds Community Equip Store Pooled Budgt,Supplies and Services,Other Equipment,203,18/12/2017,1712-00290,0.00,360.00,R,Action Assist Ltd,No
Http://opendatacommunities.org/id/metropolitan-district-council/leeds,Leeds City Council,31/12/2017,Adults and Health,Services For Adults Under 65 Mental/Dis,Third Party Payments,Fees - Level 4,520,05/12/2017,1712-00291,0.00,220.00,R,Action First Recruitment Ltd,No
Http://opendatacommunities.org/id/metropolitan-district-council/leeds,Leeds City Council,31/12/2017,Adults and Health,Services For Adults Under 65 Mental/Dis,Third Party Payments,Fees - Level 4,520,05/12/2017,1712-00292,0.00,220.00,R,Action First Recruitment Ltd,No
Http://opendatacommunities.org/id/metropolitan-district-council/leeds,Leeds City Council,31/12/2017,Adults and Health,Services For Adults Under 65 Mental/Dis,Third Party Payments,Fees - Level 4,520,05/12/2017,1712-00293,0.00,220.00,R,Action First Recruitment Ltd,No
Http://opendatacommunities.org/id/metropolitan-district-council/leeds,Leeds City Council,31/12/2017,Adults and Health,Services For Adults Under 65 Mental/Dis,Third Party Payments,Fees - Level 4,520,05/12/2017,1712-00294,0.00,220.00,R,Action First Recruitment Ltd,No
Http://opendatacommunities.org/id/metropolitan-district-council/leeds,Leeds City Council,31/12/2017,Adults and Health,Services For Adults Under 65 Mental/Dis,Third Party Payments,Fees - Level 4,520,05/12/2017,1712-00295,0.00,220.00,R,Action First Recruitment Ltd,No
Http://opendatacommunities.org/id/metropolitan-district-council/leeds,Leeds City Council,31/12/2017,Adults and Health,Services For Adults Under 65 Mental/Dis,Third Party Payments,Fees - Level 4,520,05/12/2017,1712-00296,0.00,220.00,R,Action First Recruitment Ltd,No
Http://opendatacommunities.org/id/metropolitan-district-council/leeds,Leeds City Council,31/12/2017,Adults and Health,Services For Adults Under 65 Mental/Dis,Third Party Payments,Fees - Level 4,520,05/12/2017,1712-00297,0.00,220.00,R,Action First Recruitment Ltd,No
Http://opendatacommunities.org/id/metropolitan-district-council/leeds,Leeds City Council,31/12/2017,Adults and Health,Services For Adults Under 65 Mental/Dis,Third Party Payments,Fees - Level 4,520,05/12/2017,1712-00298,0.00,220.00,R,Action First Recruitment Ltd,No
Http://opendatacommunities.org/id/metropolitan-district-council/leeds,Leeds City Council,31/12/2017,Adults and Health,Services For Adults Under 65 Mental/Dis,Third Party Payments,Fees - Level 4,520,05/12/2017,1712-00299,0.00,220.00,R,Action First Recruitment Ltd,No
Http://opendatacommunities.org/id/metropolitan-district-council/leeds,Leeds City Council,31/12/2017,Adults and Health,Services For Adults Under 65 Mental/Dis,Third Party Payments,Fees - Level 4,520,05/12/2017,1712-00300,0.00,220.00,R,Action First Recruitment Ltd,No
Http://opendatacommunities.org/id/metropolitan-district-council/leeds,Leeds City Council,31/12/2017,Adults and Health,Services For Adults Under 65 Mental/Dis,Third Party Payments,Fees - Level 4,520,05/12/2017,1712-00301,0.00,220.00,R,Action First Recruitment Ltd,No
Http://opendatacommunities.org/id/metropolitan-district-council/leeds,Leeds City Council,31/12/2017,Adults and Health,Services For Adults Under 65 Mental/Dis,Third Party Payments,Fees - Level 4,520,05/12/2017,1712-00302,0.00,250.00,R,Action First Recruitment Ltd,No
Http://opendatacommunities.org/id/metropolitan-district-council/leeds,Leeds City Council,31/12/2017,Adults and Health,Services For Adults Under 65 Mental/Dis,Third Party Payments,Fees - Level 4,520,05/12/2017,1712-00303,0.00,250.00,R,Action First Recruitment Ltd,No
Http://opendatacommunities.org/id/metropolitan-district-council/leeds,Leeds City Council,31/12/2017,Adults and Health,Services For Adults Under 65 Mental/Dis,Third Party Payments,Fees - Level 4,520,05/12/2017,1712-00304,0.00,250.00,R,Action First Recruitment Ltd,No
Http://opendatacommunities.org/id/metropolitan-district-council/leeds,Leeds City Council,31/12/2017,Adults and Health,Services For Adults Under 65 Mental/Dis,Third Party Payments,Fees - Level 4,520,05/12/2017,1712-00305,0.00,250.00,R,Action First Recruitment Ltd,No
Http://opendatacommunities.org/id/metropolitan-district-council/leeds,Leeds City Council,31/12/2017,Adults and Health,Services For Adults Under 65 Mental/Dis,Third Party Payments,Fees - Level 4,520,05/12/2017,1712-00306,0.00,250.00,R,Action First Recruitment Ltd,No
Http://opendatacommunities.org/id/metropolitan-district-council/leeds,Leeds City Council,31/12/2017,Adults and Health,Services For Adults Under 65 Mental/Dis,Third Party Payments,Fees - Level 4,520,05/12/2017,1712-00307,0.00,250.00,R,Action First Recruitment Ltd,No
Http://opendatacommunities.org/id/metropolitan-district-council/leeds,Leeds City Council,31/12/2017,Adults and Health,Services For Adults Under 65 Mental/Dis,Third Party Payments,Fees - Level 4,520,05/12/2017,1712-00308,0.00,250.00,R,Action First Recruitment Ltd,No
Http://opendatacommunities.org/id/metropolitan-district-council/leeds,Leeds City Council,31/12/2017,Adults and Health,Services For Adults Under 65 Mental/Dis,Third Party Payments,Fees - Level 4,520,05/12/2017,1712-00309,0.00,250.00,R,Action First Recruitment Ltd,No
Http://opendatacommunities.org/id/metropolitan-district-council/leeds,Leeds City Council,31/12/2017,Adults and Health,Services For Adults Under 65 Mental/Dis,Third Party Payments,Fees - Level 4,520,05/12/2017,1712-00310,0.00,250.00,R,Action First Recruitment Ltd,No
Http://opendatacommunities.org/id/metropolitan-district-council/leeds,Leeds City Council,31/12/2017,Adults and Health,Services For Adults Under 65 Mental/Dis,Third Party Payments,Fees - Level 4,520,05/12/2017,1712-00311,0.00,250.00,R,Action First Recruitment Ltd,No
Http://opendatacommunities.org/id/metropolitan-district-council/leeds,Leeds City Council,31/12/2017,Adults and Health,Services For Adults Under 65 Mental/Dis,Third Party Payments,Fees - Level 4,520,08/12/2017,1712-00312,0.00,250.00,R,Action First Recruitment Ltd,No
Http://opendatacommunities.org/id/metropolitan-district-council/leeds,Leeds City Council,31/12/2017,Adults and Health,Services For Adults Under 65 Mental/Dis,Third Party Payments,Fees - Level 4,520,11/12/2017,1712-00313,0.00,250.00,R,Action First Recruitment Ltd,No
Http://opendatacommunities.org/id/metropolitan-district-council/leeds,Leeds City Council,31/12/2017,Adults and Health,Services For Adults Under 65 Mental/Dis,Third Party Payments,Fees - Level 4,520,12/12/2017,1712-00314,0.00,250.00,R,Action First Recruitment Ltd,No
Http://opendatacommunities.org/id/metropolitan-district-council/leeds,Leeds City Council,31/12/2017,Adults and Health,Services For Adults Under 65 Mental/Dis,Third Party Payments,Fees - Level 4,520,12/12/2017,1712-00315,0.00,250.00,R,Action First Recruitment Ltd,No
Http://opendatacommunities.org/id/metropolitan-district-council/leeds,Leeds City Council,31/12/2017,Adults and Health,Services For Adults Under 65 Mental/Dis,Third Party Payments,Fees - Level 4,520,12/12/2017,1712-00316,0.00,250.00,R,Action First Recruitment Ltd,No
Http://opendatacommunities.org/id/metropolitan-district-council/leeds,Leeds City Council,31/12/2017,Adults and Health,Services For Adults Under 65 Mental/Dis,Third Party Payments,Fees - Level 4,520,12/12/2017,1712-00317,0.00,250.00,R,Action First Recruitment Ltd,No
Http://opendatacommunities.org/id/metropolitan-district-council/leeds,Leeds City Council,31/12/2017,Adults and Health,Services For Adults Under 65 Mental/Dis,Third Party Payments,Fees - Level 4,520,12/12/2017,1712-00318,0.00,250.00,R,Action First Recruitment Ltd,No
Http://opendatacommunities.org/id/metropolitan-district-council/leeds,Leeds City Council,31/12/2017,Adults and Health,Services For Adults Under 65 Mental/Dis,Third Party Payments,Fees - Level 4,520,12/12/2017,1712-00319,0.00,250.00,R,Action First Recruitment Ltd,No
Http://opendatacommunities.org/id/metropolitan-district-council/leeds,Leeds City Council,31/12/2017,Adults and Health,Services For Adults Under 65 Mental/Dis,Third Party Payments,Fees - Level 4,520,12/12/2017,1712-00320,0.00,250.00,R,Action First Recruitment Ltd,No
Http://opendatacommunities.org/id/metropolitan-district-council/leeds,Leeds City Council,31/12/2017,Adults and Health,Services For Adults Under 65 Mental/Dis,Third Party Payments,Fees - Level 4,520,12/12/2017,1712-00321,0.00,250.00,R,Action First Recruitment Ltd,No
Http://opendatacommunities.org/id/metropolitan-district-council/leeds,Leeds City Council,31/12/2017,Adults and Health,Services For Adults Under 65 Mental/Dis,Third Party Payments,Fees - Level 4,520,12/12/2017,1712-00322,0.00,250.00,R,Action First Recruitment Ltd,No
Http://opendatacommunities.org/id/metropolitan-district-council/leeds,Leeds City Council,31/12/2017,Adults and Health,Services For Adults Under 65 Mental/Dis,Third Party Payments,Fees - Level 4,520,12/12/2017,1712-00323,0.00,250.00,R,Action First Recruitment Ltd,No
Http://opendatacommunities.org/id/metropolitan-district-council/leeds,Leeds City Council,31/12/2017,Adults and Health,Services For Adults Under 65 Mental/Dis,Third Party Payments,Fees - Level 4,520,12/12/2017,1712-00324,0.00,250.00,R,Action First Recruitment Ltd,No
Http://opendatacommunities.org/id/metropolitan-district-council/leeds,Leeds City Council,31/12/2017,Adults and Health,Services For Adults Under 65 Mental/Dis,Third Party Payments,Fees - Level 4,520,12/12/2017,1712-00325,0.00,250.00,R,Action First Recruitment Ltd,No
Http://opendatacommunities.org/id/metropolitan-district-council/leeds,Leeds City Council,31/12/2017,Adults and Health,Services For Adults Under 65 Mental/Dis,Third Party Payments,Fees - Level 4,520,12/12/2017,1712-00326,0.00,250.00,R,Action First Recruitment Ltd,No
Http://opendatacommunities.org/id/metropolitan-district-council/leeds,Leeds City Council,31/12/2017,Adults and Health,Services For Adults Under 65 Mental/Dis,Third Party Payments,Fees - Level 4,520,12/12/2017,1712-00327,0.00,250.00,R,Action First Recruitment Ltd,No
Http://opendatacommunities.org/id/metropolitan-district-council/leeds,Leeds City Council,31/12/2017,Adults and Health,Services For Adults Under 65 Mental/Dis,Third Party Payments,Fees - Level 4,520,14/12/2017,1712-00328,0.00,250.00,R,Action First Recruitment Ltd,No
Http://opendatacommunities.org/id/metropolitan-district-council/leeds,Leeds City Council,31/12/2017,Adults and Health,Services For Adults Under 65 Mental/Dis,Third Party Payments,Fees - Level 4,520,14/12/2017,1712-00329,0.00,250.00,R,Action First Recruitment Ltd,No
Http://opendatacommunities.org/id/metropolitan-district-council/leeds,Leeds City Council,31/12/2017,Adults and Health,Services For Adults Under 65 Mental/Dis,Third Party Payments,Fees - Level 4,520,14/12/2017,1712-00330,0.00,220.00,R,Action First Recruitment Ltd,No
Http://opendatacommunities.org/id/metropolitan-district-council/leeds,Leeds City Council,31/12/2017,Adults and Health,Services For Adults Under 65 Mental/Dis,Third Party Payments,Fees - Level 4,520,14/12/2017,1712-00331,0.00,220.00,R,Action First Recruitment Ltd,No
Http://opendatacommunities.org/id/metropolitan-district-council/leeds,Leeds City Council,31/12/2017,Adults and Health,Services For Adults Under 65 Mental/Dis,Third Party Payments,Fees - Level 4,520,14/12/2017,1712-00332,0.00,220.00,R,Action First Recruitment Ltd,No
Http://opendatacommunities.org/id/metropolitan-district-council/leeds,Leeds City Council,31/12/2017,Adults and Health,Services For Adults Under 65 Mental/Dis,Third Party Payments,Fees - Level 4,520,14/12/2017,1712-00333,0.00,220.00,R,Action First Recruitment Ltd,No
Http://opendatacommunities.org/id/metropolitan-district-council/leeds,Leeds City Council,31/12/2017,Adults and Health,Services For Adults Under 65 Mental/Dis,Third Party Payments,Fees - Level 4,520,14/12/2017,1712-00334,0.00,220.00,R,Action First Recruitment Ltd,No
Http://opendatacommunities.org/id/metropolitan-district-council/leeds,Leeds City Council,31/12/2017,Adults and Health,Services For Adults Under 65 Mental/Dis,Third Party Payments,Fees - Level 4,520,14/12/2017,1712-00335,0.00,220.00,R,Action First Recruitment Ltd,No
Http://opendatacommunities.org/id/metropolitan-district-council/leeds,Leeds City Council,31/12/2017,Adults and Health,Services For Adults Under 65 Mental/Dis,Third Party Payments,Fees - Level 4,520,14/12/2017,1712-00336,0.00,220.00,R,Action First Recruitment Ltd,No
Http://opendatacommunities.org/id/metropolitan-district-council/leeds,Leeds City Council,31/12/2017,Adults and Health,Services For Adults Under 65 Mental/Dis,Third Party Payments,Fees - Level 4,520,14/12/2017,1712-00337,0.00,220.00,R,Action First Recruitment Ltd,No
Http://opendatacommunities.org/id/metropolitan-district-council/leeds,Leeds City Council,31/12/2017,Adults and Health,Services For Adults Under 65 Mental/Dis,Third Party Payments,Fees - Level 4,520,14/12/2017,1712-00338,0.00,250.00,R,Action First Recruitment Ltd,No
Http://opendatacommunities.org/id/metropolitan-district-council/leeds,Leeds City Council,31/12/2017,Adults and Health,Services For Adults Under 65 Mental/Dis,Third Party Payments,Fees - Level 4,520,14/12/2017,1712-00339,0.00,250.00,R,Action First Recruitment Ltd,No
Http://opendatacommunities.org/id/metropolitan-district-council/leeds,Leeds City Council,31/12/2017,Adults and Health,Services For Adults Under 65 Mental/Dis,Third Party Payments,Fees - Level 4,520,14/12/2017,1712-00340,0.00,250.00,R,Action First Recruitment Ltd,No
Http://opendatacommunities.org/id/metropolitan-district-council/leeds,Leeds City Council,31/12/2017,Adults and Health,Services For Adults Under 65 Mental/Dis,Third Party Payments,Fees - Level 4,520,14/12/2017,1712-00341,0.00,250.00,R,Action First Recruitment Ltd,No
Http://opendatacommunities.org/id/metropolitan-district-council/leeds,Leeds City Council,31/12/2017,Adults and Health,Services For Adults Under 65 Mental/Dis,Third Party Payments,Fees - Level 4,520,14/12/2017,1712-00342,0.00,250.00,R,Action First Recruitment Ltd,No
Http://opendatacommunities.org/id/metropolitan-district-council/leeds,Leeds City Council,31/12/2017,Adults and Health,Services For Adults Under 65 Mental/Dis,Third Party Payments,Fees - Level 4,520,14/12/2017,1712-00343,0.00,250.00,R,Action First Recruitment Ltd,No
Http://opendatacommunities.org/id/metropolitan-district-council/leeds,Leeds City Council,31/12/2017,Adults and Health,Services For Adults Under 65 Mental/Dis,Third Party Payments,Fees - Level 4,520,14/12/2017,1712-00344,0.00,250.00,R,Action First Recruitment Ltd,No
Http://opendatacommunities.org/id/metropolitan-district-council/leeds,Leeds City Council,31/12/2017,Adults and Health,Services For Adults Under 65 Mental/Dis,Third Party Payments,Fees - Level 4,520,14/12/2017,1712-00345,0.00,250.00,R,Action First Recruitment Ltd,No
Http://opendatacommunities.org/id/metropolitan-district-council/leeds,Leeds City Council,31/12/2017,Adults and Health,Services For Adults Under 65 Mental/Dis,Third Party Payments,Fees - Level 4,520,14/12/2017,1712-00346,0.00,250.00,R,Action First Recruitment Ltd,No
Http://opendatacommunities.org/id/metropolitan-district-council/leeds,Leeds City Council,31/12/2017,Adults and Health,Services For Adults Under 65 Mental/Dis,Third Party Payments,Fees - Level 4,520,14/12/2017,1712-00347,0.00,250.00,R,Action First Recruitment Ltd,No
Http://opendatacommunities.org/id/metropolitan-district-council/leeds,Leeds City Council,31/12/2017,Adults and Health,Services For Adults Under 65 Mental/Dis,Third Party Payments,Fees - Level 4,520,14/12/2017,1712-00348,0.00,250.00,R,Action First Recruitment Ltd,No
Http://opendatacommunities.org/id/metropolitan-district-council/leeds,Leeds City Council,31/12/2017,Adults and Health,Services For Adults Under 65 Mental/Dis,Third Party Payments,Fees - Level 4,520,14/12/2017,1712-00349,0.00,250.00,R,Action First Recruitment Ltd,No
Http://opendatacommunities.org/id/metropolitan-district-council/leeds,Leeds City Council,31/12/2017,Adults and Health,Services For Adults Under 65 Mental/Dis,Third Party Payments,Fees - Level 4,520,14/12/2017,1712-00350,0.00,250.00,R,Action First Recruitment Ltd,No
Http://opendatacommunities.org/id/metropolitan-district-council/leeds,Leeds City Council,31/12/2017,Adults and Health,Services For Adults Under 65 Mental/Dis,Third Party Payments,Fees - Level 4,520,14/12/2017,1712-00351,0.00,250.00,R,Action First Recruitment Ltd,No
Http://opendatacommunities.org/id/metropolitan-district-council/leeds,Leeds City Council,31/12/2017,Adults and Health,Services For Adults Under 65 Mental/Dis,Third Party Payments,Fees - Level 4,520,14/12/2017,1712-00352,0.00,250.00,R,Action First Recruitment Ltd,No
Http://opendatacommunities.org/id/metropolitan-district-council/leeds,Leeds City Council,31/12/2017,Adults and Health,Services For Adults Under 65 Mental/Dis,Third Party Payments,Fees - Level 4,520,18/12/2017,1712-00353,0.00,250.00,R,Action First Recruitment Ltd,No
Http://opendatacommunities.org/id/metropolitan-district-council/leeds,Leeds City Council,31/12/2017,Adults and Health,Services For Adults Under 65 Mental/Dis,Third Party Payments,Fees - Level 4,520,18/12/2017,1712-00354,0.00,250.00,R,Action First Recruitment Ltd,No
Http://opendatacommunities.org/id/metropolitan-district-council/leeds,Leeds City Council,31/12/2017,Adults and Health,Services For Adults Under 65 Mental/Dis,Third Party Payments,Fees - Level 4,520,18/12/2017,1712-00355,0.00,250.00,R,Action First Recruitment Ltd,No
Http://opendatacommunities.org/id/metropolitan-district-council/leeds,Leeds City Council,31/12/2017,Children and Families,Safeguarding Targeted & Specialist,Third Party Payments,Independent Fostering Agencies,509,01/12/2017,1712-00356,0.00,4622.40,R,Action For Children,No
Http://opendatacommunities.org/id/metropolitan-district-council/leeds,Leeds City Council,31/12/2017,Children and Families,Safeguarding Targeted & Specialist,Third Party Payments,Independent Fostering Agencies,509,05/12/2017,1712-00357,0.00,5163.67,R,Action For Children,No
Http://opendatacommunities.org/id/metropolitan-district-council/leeds,Leeds City Council,31/12/2017,Children and Families,Safeguarding Targeted & Specialist,Third Party Payments,Independent Fostering Agencies,509,21/12/2017,1712-00358,0.00,4622.40,R,Action For Children,No
Http://opendatacommunities.org/id/metropolitan-district-council/leeds,Leeds City Council,31/12/2017,Children and Families,Safeguarding Targeted & Specialist,Third Party Payments,Independent Fostering Agencies,509,22/12/2017,1712-00359,0.00,4622.40,R,Action For Children,No
Http://opendatacommunities.org/id/metropolitan-district-council/leeds,Leeds City Council,31/12/2017,Children and Families,Safeguarding Targeted & Specialist,Third Party Payments,Independent Fostering Agencies,509,22/12/2017,1712-00360,0.00,4622.40,R,Action For Children,No
Http://opendatacommunities.org/id/metropolitan-district-council/leeds,Leeds City Council,31/12/2017,Children and Families,Safeguarding Targeted & Specialist,Third Party Payments,Independent Fostering Agencies,509,22/12/2017,1712-00361,0.00,4622.40,R,Action For Children,No
Http://opendatacommunities.org/id/metropolitan-district-council/leeds,Leeds City Council,31/12/2017,Children and Families,Safeguarding Targeted & Specialist,Third Party Payments,Independent Fostering Agencies,509,18/12/2017,1712-00362,0.00,5163.67,R,Action For Children Services Ltd,No
Http://opendatacommunities.org/id/metropolitan-district-council/leeds,Leeds City Council,31/12/2017,Children and Families,Safeguarding Targeted & Specialist,Third Party Payments,Independent Fostering Agencies,509,22/12/2017,1712-00363,0.00,4997.10,R,Action For Children Services Ltd,No
Http://opendatacommunities.org/id/metropolitan-district-council/leeds,Leeds City Council,31/12/2017,Adults and Health,Services For Older People - 65 And Over,Third Party Payments,Payments To Voluntary Organisations,561,29/12/2017,1712-00364,0.00,31267.50,R,Action For Gipton Elderly,No
Http://opendatacommunities.org/id/metropolitan-district-council/leeds,Leeds City Council,31/12/2017,Adults and Health,Services For Older People - 65 And Over,Third Party Payments,Payments To Voluntary Organisations,561,29/12/2017,1712-00365,0.00,3238.00,R,Action For Gipton Elderly,No
Http://opendatacommunities.org/id/metropolitan-district-council/leeds,Leeds City Council,31/12/2017,Children and Families,Safeguarding Targeted & Specialist,Third Party Payments,Services Rendered By Other Organisations,511,01/12/2017,1712-00366,0.00,30.30,R,Active Kids Yeadon Llp,No
Http://opendatacommunities.org/id/metropolitan-district-council/leeds,Leeds City Council,31/12/2017,City Development,Recreation  ,Supplies and Services,Clothing & Uniforms,241,02/11/2017,1712-00367,0.00,5.00,R,Active Workwear,Yes
Http://opendatacommunities.org/id/metropolitan-district-council/leeds,Leeds City Council,31/12/2017,City Development,Recreation  ,Supplies and Services,Clothing & Uniforms,241,10/11/2017,1712-00368,0.00,11.50,R,Active Workwear,Yes
Http://opendatacommunities.org/id/metropolitan-district-council/leeds,Leeds City Council,31/12/2017,Children and Families,Safeguarding Targeted & Specialist  ,Supplies and Services,Clothing & Uniforms,241,23/11/2017,1712-00369,0.00,115.00,R,Active Workwear,Yes
Http://opendatacommunities.org/id/metropolitan-district-council/leeds,Leeds City Council,31/12/2017,Resources and Housing,Commercial Services,Employees,Training & Development,70,01/12/2017,1712-00370,0.00,649.00,R,Activia Ltd,No
Http://opendatacommunities.org/id/metropolitan-district-council/leeds,Leeds City Council,31/12/2017,Communities and Environment,Cleaner Neighbourhood Teams,Premises,Removal Of Workplace Waste,126,01/12/2017,1712-00371,0.00,110.00,R,Acumen Waste Services Ltd,No
Http://opendatacommunities.org/id/metropolitan-district-council/leeds,Leeds City Council,31/12/2017,Communities and Environment,Cleaner Neighbourhood Teams,Premises,Removal Of Workplace Waste,126,04/12/2017,1712-00372,0.00,110.00,R,Acumen Waste Services Ltd,No
Http://opendatacommunities.org/id/metropolitan-district-council/leeds,Leeds City Council,31/12/2017,Communities and Environment,Cleaner Neighbourhood Teams,Premises,Removal Of Workplace Waste,126,04/12/2017,1712-00373,0.00,110.00,R,Acumen Waste Services Ltd,No
Http://opendatacommunities.org/id/metropolitan-district-council/leeds,Leeds City Council,31/12/2017,Communities and Environment,Cleaner Neighbourhood Teams,Premises,Removal Of Workplace Waste,126,04/12/2017,1712-00374,0.00,235.00,R,Acumen Waste Services Ltd,No
Http://opendatacommunities.org/id/metropolitan-district-council/leeds,Leeds City Council,31/12/2017,Communities and Environment,Cleaner Neighbourhood Teams,Premises,Removal Of Workplace Waste,126,04/12/2017,1712-00375,0.00,110.00,R,Acumen Waste Services Ltd,No
Http://opendatacommunities.org/id/metropolitan-district-council/leeds,Leeds City Council,31/12/2017,Communities and Environment,Cleaner Neighbourhood Teams,Premises,Removal Of Workplace Waste,126,04/12/2017,1712-00376,0.00,110.00,R,Acumen Waste Services Ltd,No
Http://opendatacommunities.org/id/metropolitan-district-council/leeds,Leeds City Council,31/12/2017,Communities and Environment,Cleaner Neighbourhood Teams,Premises,Removal Of Workplace Waste,126,04/12/2017,1712-00377,0.00,110.00,R,Acumen Waste Services Ltd,No
Http://opendatacommunities.org/id/metropolitan-district-council/leeds,Leeds City Council,31/12/2017,Communities and Environment,Cleaner Neighbourhood Teams,Premises,Removal Of Workplace Waste,126,04/12/2017,1712-00378,0.00,110.00,R,Acumen Waste Services Ltd,No
Http://opendatacommunities.org/id/metropolitan-district-council/leeds,Leeds City Council,31/12/2017,Communities and Environment,Cleaner Neighbourhood Teams,Premises,Removal Of Workplace Waste,126,04/12/2017,1712-00379,0.00,110.00,R,Acumen Waste Services Ltd,No
Http://opendatacommunities.org/id/metropolitan-district-council/leeds,Leeds City Council,31/12/2017,Communities and Environment,Cleaner Neighbourhood Teams,Premises,Removal Of Workplace Waste,126,04/12/2017,1712-00380,0.00,110.00,R,Acumen Waste Services Ltd,No
Http://opendatacommunities.org/id/metropolitan-district-council/leeds,Leeds City Council,31/12/2017,Communities and Environment,Cleaner Neighbourhood Teams,Premises,Removal Of Workplace Waste,126,04/12/2017,1712-00381,0.00,110.00,R,Acumen Waste Services Ltd,No
Http://opendatacommunities.org/id/metropolitan-district-council/leeds,Leeds City Council,31/12/2017,Communities and Environment,Cleaner Neighbourhood Teams,Premises,Removal Of Workplace Waste,126,04/12/2017,1712-00382,0.00,110.00,R,Acumen Waste Services Ltd,No
Http://opendatacommunities.org/id/metropolitan-district-council/leeds,Leeds City Council,31/12/2017,Communities and Environment,Cleaner Neighbourhood Teams,Premises,Removal Of Workplace Waste,126,04/12/2017,1712-00383,0.00,235.00,R,Acumen Waste Services Ltd,No
Http://opendatacommunities.org/id/metropolitan-district-council/leeds,Leeds City Council,31/12/2017,Communities and Environment,Cleaner Neighbourhood Teams,Premises,Removal Of Workplace Waste,126,04/12/2017,1712-00384,0.00,110.00,R,Acumen Waste Services Ltd,No
Http://opendatacommunities.org/id/metropolitan-district-council/leeds,Leeds City Council,31/12/2017,Communities and Environment,Cleaner Neighbourhood Teams,Premises,Removal Of Workplace Waste,126,04/12/2017,1712-00385,0.00,110.00,R,Acumen Waste Services Ltd,No
Http://opendatacommunities.org/id/metropolitan-district-council/leeds,Leeds City Council,31/12/2017,Communities and Environment,Cleaner Neighbourhood Teams,Premises,Removal Of Workplace Waste,126,04/12/2017,1712-00386,0.00,110.00,R,Acumen Waste Services Ltd,No
Http://opendatacommunities.org/id/metropolitan-district-council/leeds,Leeds City Council,31/12/2017,Communities and Environment,Cleaner Neighbourhood Teams,Premises,Removal Of Workplace Waste,126,05/12/2017,1712-00387,0.00,110.00,R,Acumen Waste Services Ltd,No
Http://opendatacommunities.org/id/metropolitan-district-council/leeds,Leeds City Council,31/12/2017,Communities and Environment,Waste Management,Supplies and Services,Recycling & Reuse Charges,234,05/12/2017,1712-00388,0.00,5530.18,R,Acumen Waste Services Ltd,No
Http://opendatacommunities.org/id/metropolitan-district-council/leeds,Leeds City Council,31/12/2017,Communities and Environment,Waste Management,Supplies and Services,Recycling & Reuse Charges,234,05/12/2017,1712-00389,0.00,13661.97,R,Acumen Waste Services Ltd,No
Http://opendatacommunities.org/id/metropolitan-district-council/leeds,Leeds City Council,31/12/2017,Communities and Environment,Waste Management,Supplies and Services,Recycling & Reuse Charges,234,06/12/2017,1712-00390,0.00,6737.52,R,Acumen Waste Services Ltd,No
Http://opendatacommunities.org/id/metropolitan-district-council/leeds,Leeds City Council,31/12/2017,Communities and Environment,Cleaner Neighbourhood Teams,Premises,Removal Of Workplace Waste,126,07/12/2017,1712-00391,0.00,110.00,R,Acumen Waste Services Ltd,No
Http://opendatacommunities.org/id/metropolitan-district-council/leeds,Leeds City Council,31/12/2017,Communities and Environment,Cleaner Neighbourhood Teams,Premises,Removal Of Workplace Waste,126,07/12/2017,1712-00392,0.00,110.00,R,Acumen Waste Services Ltd,No
Http://opendatacommunities.org/id/metropolitan-district-council/leeds,Leeds City Council,31/12/2017,Communities and Environment,Cleaner Neighbourhood Teams,Premises,Removal Of Workplace Waste,126,07/12/2017,1712-00393,0.00,110.00,R,Acumen Waste Services Ltd,No
Http://opendatacommunities.org/id/metropolitan-district-council/leeds,Leeds City Council,31/12/2017,Communities and Environment,Cleaner Neighbourhood Teams,Premises,Removal Of Workplace Waste,126,07/12/2017,1712-00394,0.00,110.00,R,Acumen Waste Services Ltd,No
Http://opendatacommunities.org/id/metropolitan-district-council/leeds,Leeds City Council,31/12/2017,Communities and Environment,Cleaner Neighbourhood Teams,Premises,Removal Of Workplace Waste,126,07/12/2017,1712-00395,0.00,110.00,R,Acumen Waste Services Ltd,No
Http://opendatacommunities.org/id/metropolitan-district-council/leeds,Leeds City Council,31/12/2017,Communities and Environment,Cleaner Neighbourhood Teams,Premises,Removal Of Workplace Waste,126,07/12/2017,1712-00396,0.00,110.00,R,Acumen Waste Services Ltd,No
Http://opendatacommunities.org/id/metropolitan-district-council/leeds,Leeds City Council,31/12/2017,Communities and Environment,Cleaner Neighbourhood Teams,Premises,Removal Of Workplace Waste,126,07/12/2017,1712-00397,0.00,110.00,R,Acumen Waste Services Ltd,No
Http://opendatacommunities.org/id/metropolitan-district-council/leeds,Leeds City Council,31/12/2017,Communities and Environment,Cleaner Neighbourhood Teams,Supplies and Services,Bought In Professional Services,277,15/12/2017,1712-00398,0.00,110.00,R,Acumen Waste Services Ltd,No
Http://opendatacommunities.org/id/metropolitan-district-council/leeds,Leeds City Council,31/12/2017,Communities and Environment,Cleaner Neighbourhood Teams,Supplies and Services,Bought In Professional Services,277,15/12/2017,1712-00399,0.00,110.00,R,Acumen Waste Services Ltd,No
Http://opendatacommunities.org/id/metropolitan-district-council/leeds,Leeds City Council,31/12/2017,Communities and Environment,Waste Management,Supplies and Services,Recycling & Reuse Charges,234,15/12/2017,1712-00400,0.00,3311.81,R,Acumen Waste Services Ltd,No
Http://opendatacommunities.org/id/metropolitan-district-council/leeds,Leeds City Council,31/12/2017,Communities and Environment,Waste Management,Supplies and Services,Recycling & Reuse Charges,234,15/12/2017,1712-00401,0.00,6795.14,R,Acumen Waste Services Ltd,No
Http://opendatacommunities.org/id/metropolitan-district-council/leeds,Leeds City Council,31/12/2017,Communities and Environment,Cleaner Neighbourhood Teams,Premises,Removal Of Workplace Waste,126,19/12/2017,1712-00402,0.00,105.00,R,Acumen Waste Services Ltd,No
Http://opendatacommunities.org/id/metropolitan-district-council/leeds,Leeds City Council,31/12/2017,Communities and Environment,Cleaner Neighbourhood Teams,Premises,Removal Of Workplace Waste,126,19/12/2017,1712-00403,0.00,235.00,R,Acumen Waste Services Ltd,No
Http://opendatacommunities.org/id/metropolitan-district-council/leeds,Leeds City Council,31/12/2017,Communities and Environment,Cleaner Neighbourhood Teams,Premises,Removal Of Workplace Waste,126,22/12/2017,1712-00404,0.00,110.00,R,Acumen Waste Services Ltd,No
Http://opendatacommunities.org/id/metropolitan-district-council/leeds,Leeds City Council,31/12/2017,Communities and Environment,Cleaner Neighbourhood Teams,Premises,Removal Of Workplace Waste,126,22/12/2017,1712-00405,0.00,110.00,R,Acumen Waste Services Ltd,No
Http://opendatacommunities.org/id/metropolitan-district-council/leeds,Leeds City Council,31/12/2017,Communities and Environment,Cleaner Neighbourhood Teams,Premises,Removal Of Workplace Waste,126,22/12/2017,1712-00406,0.00,110.00,R,Acumen Waste Services Ltd,No
Http://opendatacommunities.org/id/metropolitan-district-council/leeds,Leeds City Council,31/12/2017,Communities and Environment,Cleaner Neighbourhood Teams,Premises,Removal Of Workplace Waste,126,22/12/2017,1712-00407,0.00,110.00,R,Acumen Waste Services Ltd,No
Http://opendatacommunities.org/id/metropolitan-district-council/leeds,Leeds City Council,31/12/2017,Communities and Environment,Cleaner Neighbourhood Teams,Premises,Removal Of Workplace Waste,126,22/12/2017,1712-00408,0.00,110.00,R,Acumen Waste Services Ltd,No
Http://opendatacommunities.org/id/metropolitan-district-council/leeds,Leeds City Council,31/12/2017,Communities and Environment,Cleaner Neighbourhood Teams,Premises,Removal Of Workplace Waste,126,22/12/2017,1712-00409,0.00,110.00,R,Acumen Waste Services Ltd,No
Http://opendatacommunities.org/id/metropolitan-district-council/leeds,Leeds City Council,31/12/2017,Communities and Environment,Cleaner Neighbourhood Teams,Premises,Removal Of Workplace Waste,126,22/12/2017,1712-00410,0.00,110.00,R,Acumen Waste Services Ltd,No
Http://opendatacommunities.org/id/metropolitan-district-council/leeds,Leeds City Council,31/12/2017,Communities and Environment,Cleaner Neighbourhood Teams,Premises,Removal Of Workplace Waste,126,22/12/2017,1712-00411,0.00,110.00,R,Acumen Waste Services Ltd,No
Http://opendatacommunities.org/id/metropolitan-district-council/leeds,Leeds City Council,31/12/2017,Communities and Environment,Cleaner Neighbourhood Teams,Premises,Removal Of Workplace Waste,126,22/12/2017,1712-00412,0.00,110.00,R,Acumen Waste Services Ltd,No
Http://opendatacommunities.org/id/metropolitan-district-council/leeds,Leeds City Council,31/12/2017,Communities and Environment,Waste Management,Supplies and Services,Recycling & Reuse Charges,234,22/12/2017,1712-00413,0.00,6119.11,R,Acumen Waste Services Ltd,No
Http://opendatacommunities.org/id/metropolitan-district-council/leeds,Leeds City Council,31/12/2017,Communities and Environment,Cleaner Neighbourhood Teams,Premises,Removal Of Workplace Waste,126,22/12/2017,1712-00414,0.00,110.00,R,Acumen Waste Services Ltd,No
Http://opendatacommunities.org/id/metropolitan-district-council/leeds,Leeds City Council,31/12/2017,Communities and Environment,Cleaner Neighbourhood Teams,Premises,Removal Of Workplace Waste,126,22/12/2017,1712-00415,0.00,110.00,R,Acumen Waste Services Ltd,No
Http://opendatacommunities.org/id/metropolitan-district-council/leeds,Leeds City Council,31/12/2017,Communities and Environment,Cleaner Neighbourhood Teams,Premises,Removal Of Workplace Waste,126,22/12/2017,1712-00416,0.00,110.00,R,Acumen Waste Services Ltd,No
Http://opendatacommunities.org/id/metropolitan-district-council/leeds,Leeds City Council,31/12/2017,Communities and Environment,Cleaner Neighbourhood Teams,Premises,Removal Of Workplace Waste,126,22/12/2017,1712-00417,0.00,110.00,R,Acumen Waste Services Ltd,No
Http://opendatacommunities.org/id/metropolitan-district-council/leeds,Leeds City Council,31/12/2017,Communities and Environment,Cleaner Neighbourhood Teams,Premises,Removal Of Workplace Waste,126,22/12/2017,1712-00418,0.00,110.00,R,Acumen Waste Services Ltd,No
Http://opendatacommunities.org/id/metropolitan-district-council/leeds,Leeds City Council,31/12/2017,Communities and Environment,Waste Management,Supplies and Services,Recycling & Reuse Charges,234,22/12/2017,1712-00419,0.00,8328.10,R,Acumen Waste Services Ltd,No
Http://opendatacommunities.org/id/metropolitan-district-council/leeds,Leeds City Council,31/12/2017,Communities and Environment,Cleaner Neighbourhood Teams,Premises,Removal Of Workplace Waste,126,29/12/2017,1712-00420,0.00,110.00,R,Acumen Waste Services Ltd,No
Http://opendatacommunities.org/id/metropolitan-district-council/leeds,Leeds City Council,31/12/2017,Communities and Environment,Cleaner Neighbourhood Teams,Premises,Removal Of Workplace Waste,126,29/12/2017,1712-00421,0.00,110.00,R,Acumen Waste Services Ltd,No
Http://opendatacommunities.org/id/metropolitan-district-council/leeds,Leeds City Council,31/12/2017,Communities and Environment,Cleaner Neighbourhood Teams,Premises,Removal Of Workplace Waste,126,29/12/2017,1712-00422,0.00,110.00,R,Acumen Waste Services Ltd,No
Http://opendatacommunities.org/id/metropolitan-district-council/leeds,Leeds City Council,31/12/2017,Communities and Environment,Cleaner Neighbourhood Teams,Premises,Removal Of Workplace Waste,126,29/12/2017,1712-00423,0.00,110.00,R,Acumen Waste Services Ltd,No
Http://opendatacommunities.org/id/metropolitan-district-council/leeds,Leeds City Council,31/12/2017,Communities and Environment,Cleaner Neighbourhood Teams,Premises,Removal Of Workplace Waste,126,29/12/2017,1712-00424,0.00,110.00,R,Acumen Waste Services Ltd,No
Http://opendatacommunities.org/id/metropolitan-district-council/leeds,Leeds City Council,31/12/2017,Communities and Environment,Cleaner Neighbourhood Teams,Premises,Removal Of Workplace Waste,126,29/12/2017,1712-00425,0.00,110.00,R,Acumen Waste Services Ltd,No
Http://opendatacommunities.org/id/metropolitan-district-council/leeds,Leeds City Council,31/12/2017,Communities and Environment,Cleaner Neighbourhood Teams,Premises,Removal Of Workplace Waste,126,29/12/2017,1712-00426,0.00,110.00,R,Acumen Waste Services Ltd,No
Http://opendatacommunities.org/id/metropolitan-district-council/leeds,Leeds City Council,31/12/2017,Communities and Environment,Cleaner Neighbourhood Teams,Premises,Removal Of Workplace Waste,126,29/12/2017,1712-00427,0.00,110.00,R,Acumen Waste Services Ltd,No
Http://opendatacommunities.org/id/metropolitan-district-council/leeds,Leeds City Council,31/12/2017,Communities and Environment,Cleaner Neighbourhood Teams,Premises,Removal Of Workplace Waste,126,29/12/2017,1712-00428,0.00,110.00,R,Acumen Waste Services Ltd,No
Http://opendatacommunities.org/id/metropolitan-district-council/leeds,Leeds City Council,31/12/2017,Communities and Environment,Cleaner Neighbourhood Teams,Premises,Removal Of Workplace Waste,126,29/12/2017,1712-00429,0.00,110.00,R,Acumen Waste Services Ltd,No
Http://opendatacommunities.org/id/metropolitan-district-council/leeds,Leeds City Council,31/12/2017,Communities and Environment,Waste Management,Supplies and Services,Recycling & Reuse Charges,234,29/12/2017,1712-00430,0.00,5329.18,R,Acumen Waste Services Ltd,No
Http://opendatacommunities.org/id/metropolitan-district-council/leeds,Leeds City Council,31/12/2017,Resources and Housing,Shared Services,Supplies and Services,Operational Materials,205,04/12/2017,1712-00431,0.00,645.00,R,Ad3 Envelope Printers Limited,No
Http://opendatacommunities.org/id/metropolitan-district-council/leeds,Leeds City Council,31/12/2017,Resources and Housing,Shared Services,Supplies and Services,Operational Materials,205,29/12/2017,1712-00432,0.00,645.00,R,Ad3 Envelope Printers Limited,No
Http://opendatacommunities.org/id/metropolitan-district-council/leeds,Leeds City Council,31/12/2017,Children and Families,Safeguarding Targeted & Specialist,Transfer Payments,Leaving Care Allowances,634,22/12/2017,1712-00433,0.00,50.00,R,REDACTED PERSONAL DATA,No
Http://opendatacommunities.org/id/metropolitan-district-council/leeds,Leeds City Council,31/12/2017,Children and Families,Safeguarding Targeted & Specialist,Third Party Payments,Placement Support,550,12/12/2017,1712-00434,0.00,764.15,R,Adapt (North East),No
Http://opendatacommunities.org/id/metropolitan-district-council/leeds,Leeds City Council,31/12/2017,Adults and Health,Services For Older People - 65 And Over,Third Party Payments,Nursing Home,570,13/12/2017,1712-00435,0.00,3786.24,R,Adbolton Hall,No
Http://opendatacommunities.org/id/metropolitan-district-council/leeds,Leeds City Council,31/12/2017,Resources and Housing,Sustainable Energy & Climate Change,Capital,Other Costs,7,08/12/2017,1712-00436,0.00,1343.13,C,Addleshaw Goddard Llp,No
Http://opendatacommunities.org/id/metropolitan-district-council/leeds,Leeds City Council,31/12/2017,Resources and Housing,Sustainable Energy & Climate Change,Capital,Other Costs,7,18/12/2017,1712-00437,0.00,1125.50,C,Addleshaw Goddard Llp,No
Http://opendatacommunities.org/id/metropolitan-district-council/leeds,Leeds City Council,31/12/2017,Communities and Environment,Parks and Countryside,Premises,Rents,141,01/12/2017,1712-00438,0.00,5600.57,R,Addplant Limited,No
Http://opendatacommunities.org/id/metropolitan-district-council/leeds,Leeds City Council,31/12/2017,Resources and Housing,Technology  ,Employees,Agency Staff,8,02/11/2017,1712-00439,0.00,44809.82,R,Adecco Alfred Marks,Yes
Http://opendatacommunities.org/id/metropolitan-district-council/leeds,Leeds City Council,31/12/2017,Resources and Housing,Technology  ,Employees,Agency Staff,8,08/11/2017,1712-00440,0.00,28824.79,R,Adecco Alfred Marks,Yes
Http://opendatacommunities.org/id/metropolitan-district-council/leeds,Leeds City Council,31/12/2017,Resources and Housing,Technology  ,Employees,Agency Staff,8,22/11/2017,1712-00441,0.00,31398.25,R,Adecco Alfred Marks,Yes
Http://opendatacommunities.org/id/metropolitan-district-council/leeds,Leeds City Council,31/12/2017,Insurance,Insurance,Supplies and Services,Insurance Claims,248,14/12/2017,1712-00442,0.00,1910.00,R,REDACTED PERSONAL DATA,No
Http://opendatacommunities.org/id/metropolitan-district-council/leeds,Leeds City Council,31/12/2017,Children and Families,Safeguarding Targeted & Specialist,Third Party Payments,Services Rendered By Voluntary Sector,505,01/12/2017,1712-00443,0.00,424.20,R,Adel Pre School,No
Http://opendatacommunities.org/id/metropolitan-district-council/leeds,Leeds City Council,31/12/2017,Children and Families,Safeguarding Targeted & Specialist,Third Party Payments,Services Rendered By Voluntary Sector,505,08/12/2017,1712-00444,0.00,9674.40,R,Adel Pre School,No
Http://opendatacommunities.org/id/metropolitan-district-council/leeds,Leeds City Council,31/12/2017,Children and Families,Safeguarding Targeted & Specialist,Third Party Payments,Services Rendered By Other Organisations,511,08/12/2017,1712-00445,0.00,1058.40,R,REDACTED PERSONAL DATA,No
Http://opendatacommunities.org/id/metropolitan-district-council/leeds,Leeds City Council,31/12/2017,Children and Families,Safeguarding Targeted & Specialist,Third Party Payments,Services Rendered By Other Organisations,511,08/12/2017,1712-00446,0.00,70.56,R,REDACTED PERSONAL DATA,No
Http://opendatacommunities.org/id/metropolitan-district-council/leeds,Leeds City Council,31/12/2017,Adults and Health,Services For Older People - 65 And Over,Third Party Payments,Nursing Home,570,13/12/2017,1712-00447,0.00,1157.68,R,Aden House,No
Http://opendatacommunities.org/id/metropolitan-district-council/leeds,Leeds City Council,31/12/2017,Resources and Housing,Leeds Building Services,Supplies and Services,Operational Materials,205,08/12/2017,1712-00448,0.00,46.69,R,Adi Global,No
Http://opendatacommunities.org/id/metropolitan-district-council/leeds,Leeds City Council,31/12/2017,Resources and Housing,Leeds Building Services,Supplies and Services,Operational Materials,205,15/12/2017,1712-00449,0.00,76.45,R,Adi Global,No
Http://opendatacommunities.org/id/metropolitan-district-council/leeds,Leeds City Council,31/12/2017,Resources and Housing,Leeds Building Services,Supplies and Services,Operational Materials,205,20/12/2017,1712-00450,0.00,3246.88,R,Adi Global,No
Http://opendatacommunities.org/id/metropolitan-district-council/leeds,Leeds City Council,31/12/2017,Resources and Housing,Leeds Building Services,Supplies and Services,Operational Materials,205,27/12/2017,1712-00451,0.00,6.24,R,Adi Global,No
Http://opendatacommunities.org/id/metropolitan-district-council/leeds,Leeds City Council,31/12/2017,Resources and Housing,Leeds Building Services,Supplies and Services,Operational Materials,205,27/12/2017,1712-00452,0.00,9.36,R,Adi Global,No
Http://opendatacommunities.org/id/metropolitan-district-council/leeds,Leeds City Council,31/12/2017,Resources and Housing,Leeds Building Services,Supplies and Services,Operational Materials,205,27/12/2017,1712-00453,0.00,147.00,R,Adi Global,No
Http://opendatacommunities.org/id/metropolitan-district-council/leeds,Leeds City Council,31/12/2017,Resources and Housing,Leeds Building Services,Supplies and Services,Operational Materials,205,28/12/2017,1712-00454,0.00,3046.73,R,Adi Global,No
Http://opendatacommunities.org/id/metropolitan-district-council/leeds,Leeds City Council,31/12/2017,Resources and Housing,Leeds Building Services,Supplies and Services,Operational Materials,205,28/12/2017,1712-00455,0.00,267.03,R,Adi Global,No
Http://opendatacommunities.org/id/metropolitan-district-council/leeds,Leeds City Council,31/12/2017,City Development,Libraries  Arts & Heritage,Supplies and Services,Other Hired And Contracted Services,265,08/12/2017,1712-00456,0.00,5450.00,R,Adi Uk Ltd,No
Http://opendatacommunities.org/id/metropolitan-district-council/leeds,Leeds City Council,31/12/2017,Children and Families,Safeguarding Targeted & Specialist,Supplies and Services,Security Services(Non Infrastructure),262,11/12/2017,1712-00457,0.00,217.80,R,Adm Security,No
Http://opendatacommunities.org/id/metropolitan-district-council/leeds,Leeds City Council,31/12/2017,Children and Families,Safeguarding Targeted & Specialist,Supplies and Services,Security Services(Non Infrastructure),262,11/12/2017,1712-00458,0.00,108.90,R,Adm Security,No
Http://opendatacommunities.org/id/metropolitan-district-council/leeds,Leeds City Council,31/12/2017,Children and Families,Safeguarding Targeted & Specialist,Supplies and Services,Security Services(Non Infrastructure),262,21/12/2017,1712-00459,0.00,108.90,R,Adm Security,No
Http://opendatacommunities.org/id/metropolitan-district-council/leeds,Leeds City Council,31/12/2017,City Development,Libraries  Arts & Heritage  ,Supplies and Services,Computer Software & Equipment,214,08/11/2017,1712-00460,0.00,947.88,R,Adobe Systems Software,Yes
Http://opendatacommunities.org/id/metropolitan-district-council/leeds,Leeds City Council,31/12/2017,Children and Families,Safeguarding Targeted & Specialist,Third Party Payments,Independent Fostering Agencies,509,15/12/2017,1712-00461,0.00,2945.00,R,Adolescent And Childrens Trust,No
Http://opendatacommunities.org/id/metropolitan-district-council/leeds,Leeds City Council,31/12/2017,Children and Families,Safeguarding Targeted & Specialist,Third Party Payments,Independent Fostering Agencies,509,15/12/2017,1712-00462,0.00,2945.00,R,Adolescent And Childrens Trust,No
Http://opendatacommunities.org/id/metropolitan-district-council/leeds,Leeds City Council,31/12/2017,Children and Families,Safeguarding Targeted & Specialist,Third Party Payments,Independent Fostering Agencies,509,15/12/2017,1712-00463,0.00,2945.00,R,Adolescent And Childrens Trust,No
Http://opendatacommunities.org/id/metropolitan-district-council/leeds,Leeds City Council,31/12/2017,Children and Families,Safeguarding Targeted & Specialist,Third Party Payments,Independent Fostering Agencies,509,15/12/2017,1712-00464,0.00,3100.00,R,Adolescent And Childrens Trust,No
Http://opendatacommunities.org/id/metropolitan-district-council/leeds,Leeds City Council as Accountable Body,31/12/2017,Social Services Pooled Budgets,Jcs For People With Learning Disabilitie,Third Party Payments,Residential,580,21/12/2017,1712-00465,0.00,2609.36,R,Adrian House,No
Http://opendatacommunities.org/id/metropolitan-district-council/leeds,Leeds City Council as Accountable Body,31/12/2017,Social Services Pooled Budgets,Jcs For People With Learning Disabilitie,Third Party Payments,Residential,580,21/12/2017,1712-00466,0.00,2609.36,R,Adrian House,No
Http://opendatacommunities.org/id/metropolitan-district-council/leeds,Leeds City Council,31/12/2017,Resources and Housing,Corporate Property Management,Premises,Maintenance Of Buildings,101,04/12/2017,1712-00467,0.00,1580.35,R,Adt Fire And Security Plc,No
Http://opendatacommunities.org/id/metropolitan-district-council/leeds,Leeds City Council,31/12/2017,Resources and Housing,Corporate Property Management,Premises,Maintenance Of Buildings,101,04/12/2017,1712-00468,0.00,-792.34,R,Adt Fire And Security Plc,No
Http://opendatacommunities.org/id/metropolitan-district-council/leeds,Leeds City Council as Accountable Body,31/12/2017,Social Services Pooled Budgets,Jcs For People With Learning Disabilitie,Third Party Payments,Sheltered Accommodation,569,12/12/2017,1712-00469,0.00,527.28,R,Adult Placement Services,No
Http://opendatacommunities.org/id/metropolitan-district-council/leeds,Leeds City Council as Accountable Body,31/12/2017,Social Services Pooled Budgets,Jcs For People With Learning Disabilitie,Third Party Payments,Sheltered Accommodation,569,12/12/2017,1712-00470,0.00,461.37,R,Adult Placement Services,No
Http://opendatacommunities.org/id/metropolitan-district-council/leeds,Leeds City Council,31/12/2017,City Development,Libraries  Arts & Heritage,Supplies and Services,External Audit Fees,261,01/12/2017,1712-00471,0.00,90.00,R,Advance Stocks Ltd,No
Http://opendatacommunities.org/id/metropolitan-district-council/leeds,Leeds City Council,31/12/2017,City Development,Libraries  Arts & Heritage,Supplies and Services,External Audit Fees,261,06/12/2017,1712-00472,0.00,90.00,R,Advance Stocks Ltd,No
Http://opendatacommunities.org/id/metropolitan-district-council/leeds,Leeds City Council,31/12/2017,City Development,Recreation,Supplies and Services,External Audit Fees,261,19/12/2017,1712-00473,0.00,130.00,R,Advance Stocks Ltd,No
Http://opendatacommunities.org/id/metropolitan-district-council/leeds,Leeds City Council,31/12/2017,City Development,Recreation,Supplies and Services,External Audit Fees,261,19/12/2017,1712-00474,0.00,85.00,R,Advance Stocks Ltd,No
Http://opendatacommunities.org/id/metropolitan-district-council/leeds,Leeds City Council,31/12/2017,City Development,Libraries  Arts & Heritage,Supplies and Services,External Audit Fees,261,19/12/2017,1712-00475,0.00,90.00,R,Advance Stocks Ltd,No
Http://opendatacommunities.org/id/metropolitan-district-council/leeds,Leeds City Council,31/12/2017,City Development,Recreation,Supplies and Services,External Audit Fees,261,19/12/2017,1712-00476,0.00,85.00,R,Advance Stocks Ltd,No
Http://opendatacommunities.org/id/metropolitan-district-council/leeds,Leeds City Council,31/12/2017,City Development,Libraries  Arts & Heritage,Supplies and Services,Food & Drink,231,19/12/2017,1712-00477,0.00,-317.41,R,Advance Stocks Ltd,No
Http://opendatacommunities.org/id/metropolitan-district-council/leeds,Leeds City Council,31/12/2017,Children and Families,Safeguarding Targeted & Specialist  ,Supplies and Services,Bought In Professional Services,277,09/11/2017,1712-00478,0.00,10.00,R,Adventure Kids Leeds L,Yes
Http://opendatacommunities.org/id/metropolitan-district-council/leeds,Leeds City Council as Accountable Body,31/12/2017,Social Services Pooled Budgets,Jcs For People With Learning Disabilitie,Third Party Payments,Day Centre,564,11/12/2017,1712-00479,0.00,454.20,R,Advitam Ltd,No
Http://opendatacommunities.org/id/metropolitan-district-council/leeds,Leeds City Council as Accountable Body,31/12/2017,Social Services Pooled Budgets,Jcs For People With Learning Disabilitie,Third Party Payments,Residential,580,13/12/2017,1712-00480,0.00,10887.41,R,Advitam Ltd,No
Http://opendatacommunities.org/id/metropolitan-district-council/leeds,Leeds City Council,31/12/2017,Adults and Health,Services For Adults Under 65 Mental/Dis,Third Party Payments,Payments To Voluntary Organisations,561,04/12/2017,1712-00481,0.00,703.98,R,Advonet,No
Http://opendatacommunities.org/id/metropolitan-district-council/leeds,Leeds City Council,31/12/2017,Adults and Health,Services For Adults Under 65 Mental/Dis,Third Party Payments,Payments To Voluntary Organisations,561,12/12/2017,1712-00482,0.00,13564.12,R,Advonet,No
Http://opendatacommunities.org/id/metropolitan-district-council/leeds,Leeds City Council,31/12/2017,Adults and Health,Services For Adults Under 65 Mental/Dis,Third Party Payments,Payments To Voluntary Organisations,561,12/12/2017,1712-00483,0.00,14738.95,R,Advonet,No
Http://opendatacommunities.org/id/metropolitan-district-council/leeds,Leeds City Council,31/12/2017,Adults and Health,Services For Adults Under 65 Mental/Dis,Third Party Payments,Payments To Voluntary Organisations,561,12/12/2017,1712-00484,0.00,1001.65,R,Advonet,No
Http://opendatacommunities.org/id/metropolitan-district-council/leeds,Leeds City Council as Accountable Body,31/12/2017,Social Services Pooled Budgets,Jcs For People With Learning Disabilitie,Third Party Payments,Other Agency Services,561,14/12/2017,1712-00485,0.00,6567.66,R,Advonet,No
Http://opendatacommunities.org/id/metropolitan-district-council/leeds,Leeds City Council as Accountable Body,31/12/2017,Social Services Pooled Budgets,Jcs For People With Learning Disabilitie,Third Party Payments,Other Agency Services,561,14/12/2017,1712-00486,0.00,6567.66,R,Advonet,No
Http://opendatacommunities.org/id/metropolitan-district-council/leeds,Leeds City Council as Accountable Body,31/12/2017,Social Services Pooled Budgets,Jcs For People With Learning Disabilitie,Third Party Payments,Other Agency Services,561,14/12/2017,1712-00487,0.00,11372.30,R,Advonet,No
Http://opendatacommunities.org/id/metropolitan-district-council/leeds,Leeds City Council as Accountable Body,31/12/2017,Social Services Pooled Budgets,Jcs For People With Learning Disabilitie,Third Party Payments,Other Agency Services,561,14/12/2017,1712-00488,0.00,11372.30,R,Advonet,No
Http://opendatacommunities.org/id/metropolitan-district-council/leeds,Leeds City Council,31/12/2017,Children and Families,Safeguarding Targeted & Specialist,Third Party Payments,Section 17,551,18/12/2017,1712-00489,0.00,114.90,R,Advonet,No
Http://opendatacommunities.org/id/metropolitan-district-council/leeds,Leeds City Council,31/12/2017,Strategic Accounts,Miscellaneous,Supplies and Services,Non-Recurring Grants,227,04/12/2017,1712-00490,0.00,300.00,R,Adwalton Cricket Club,No
Http://opendatacommunities.org/id/metropolitan-district-council/leeds,Leeds City Council,31/12/2017,City Development,Economic Development,Supplies and Services,Other Hired And Contracted Services,265,14/12/2017,1712-00491,0.00,9400.00,R,Aecom Limited,No
Http://opendatacommunities.org/id/metropolitan-district-council/leeds,Leeds City Council,31/12/2017,City Development,Highways,Capital,Construction,3,22/12/2017,1712-00492,0.00,15390.23,C,Aecom Limited,No
Http://opendatacommunities.org/id/metropolitan-district-council/leeds,Leeds City Council,31/12/2017,Communities and Environment,Customer Access,Supplies and Services,Other Hired And Contracted Services,265,04/12/2017,1712-00493,0.00,40.56,R,Afbedel Ltd,No
Http://opendatacommunities.org/id/metropolitan-district-council/leeds,Leeds City Council,31/12/2017,Adults and Health,Assessment And Care Management,Third Party Payments,Home Care,568,05/12/2017,1712-00494,0.00,439.45,R,Affinity Trust,No
Http://opendatacommunities.org/id/metropolitan-district-council/leeds,Leeds City Council as Accountable Body,31/12/2017,Social Services Pooled Budgets,Jcs For People With Learning Disabilitie,Third Party Payments,Day Centre,564,06/12/2017,1712-00495,0.00,17538.00,R,Affinity Trust,No
Http://opendatacommunities.org/id/metropolitan-district-council/leeds,Leeds City Council as Accountable Body,31/12/2017,Social Services Pooled Budgets,Jcs For People With Learning Disabilitie,Third Party Payments,Home Care,568,11/12/2017,1712-00496,0.00,719.10,R,Affinity Trust,No
Http://opendatacommunities.org/id/metropolitan-district-council/leeds,Leeds City Council as Accountable Body,31/12/2017,Social Services Pooled Budgets,Jcs For People With Learning Disabilitie,Third Party Payments,Home Care,568,11/12/2017,1712-00497,0.00,1210.49,R,Affinity Trust,No
Http://opendatacommunities.org/id/metropolitan-district-council/leeds,Leeds City Council as Accountable Body,31/12/2017,Social Services Pooled Budgets,Jcs For People With Learning Disabilitie,Third Party Payments,Home Care,568,11/12/2017,1712-00498,0.00,1326.34,R,Affinity Trust,No
Http://opendatacommunities.org/id/metropolitan-district-council/leeds,Leeds City Council as Accountable Body,31/12/2017,Social Services Pooled Budgets,Jcs For People With Learning Disabilitie,Third Party Payments,Home Care,568,11/12/2017,1712-00499,0.00,351.56,R,Affinity Trust,No
Http://opendatacommunities.org/id/metropolitan-district-council/leeds,Leeds City Council as Accountable Body,31/12/2017,Social Services Pooled Budgets,Jcs For People With Learning Disabilitie,Third Party Payments,Home Care,568,11/12/2017,1712-00500,0.00,671.50,R,Affinity Trust,No
Http://opendatacommunities.org/id/metropolitan-district-council/leeds,Leeds City Council as Accountable Body,31/12/2017,Social Services Pooled Budgets,Jcs For People With Learning Disabilitie,Third Party Payments,Day Centre,564,11/12/2017,1712-00501,0.00,416.64,R,Affinity Trust,No
Http://opendatacommunities.org/id/metropolitan-district-council/leeds,Leeds City Council as Accountable Body,31/12/2017,Social Services Pooled Budgets,Jcs For People With Learning Disabilitie,Third Party Payments,Home Care,568,11/12/2017,1712-00502,0.00,551.31,R,Affinity Trust,No
Http://opendatacommunities.org/id/metropolitan-district-council/leeds,Leeds City Council as Accountable Body,31/12/2017,Social Services Pooled Budgets,Jcs For People With Learning Disabilitie,Third Party Payments,Home Care,568,11/12/2017,1712-00503,0.00,1518.00,R,Affinity Trust,No
Http://opendatacommunities.org/id/metropolitan-district-council/leeds,Leeds City Council as Accountable Body,31/12/2017,Social Services Pooled Budgets,Jcs For People With Learning Disabilitie,Third Party Payments,Home Care,568,11/12/2017,1712-00504,0.00,1211.04,R,Affinity Trust,No
Http://opendatacommunities.org/id/metropolitan-district-council/leeds,Leeds City Council as Accountable Body,31/12/2017,Social Services Pooled Budgets,Jcs For People With Learning Disabilitie,Third Party Payments,Home Care,568,11/12/2017,1712-00505,0.00,2077.40,R,Affinity Trust,No
Http://opendatacommunities.org/id/metropolitan-district-council/leeds,Leeds City Council as Accountable Body,31/12/2017,Social Services Pooled Budgets,Jcs For People With Learning Disabilitie,Third Party Payments,Home Care,568,11/12/2017,1712-00506,0.00,143.82,R,Affinity Trust,No
Http://opendatacommunities.org/id/metropolitan-district-council/leeds,Leeds City Council as Accountable Body,31/12/2017,Social Services Pooled Budgets,Jcs For People With Learning Disabilitie,Third Party Payments,Home Care,568,11/12/2017,1712-00507,0.00,639.20,R,Affinity Trust,No
Http://opendatacommunities.org/id/metropolitan-district-council/leeds,Leeds City Council as Accountable Body,31/12/2017,Social Services Pooled Budgets,Jcs For People With Learning Disabilitie,Third Party Payments,Home Care,568,11/12/2017,1712-00508,0.00,408.00,R,Affinity Trust,No
Http://opendatacommunities.org/id/metropolitan-district-council/leeds,Leeds City Council as Accountable Body,31/12/2017,Social Services Pooled Budgets,Jcs For People With Learning Disabilitie,Third Party Payments,Home Care,568,11/12/2017,1712-00509,0.00,1038.70,R,Affinity Trust,No
Http://opendatacommunities.org/id/metropolitan-district-council/leeds,Leeds City Council as Accountable Body,31/12/2017,Social Services Pooled Budgets,Jcs For People With Learning Disabilitie,Third Party Payments,Home Care,568,11/12/2017,1712-00510,0.00,2652.68,R,Affinity Trust,No
Http://opendatacommunities.org/id/metropolitan-district-council/leeds,Leeds City Council as Accountable Body,31/12/2017,Social Services Pooled Budgets,Jcs For People With Learning Disabilitie,Third Party Payments,Home Care,568,11/12/2017,1712-00511,0.00,255.68,R,Affinity Trust,No
Http://opendatacommunities.org/id/metropolitan-district-council/leeds,Leeds City Council as Accountable Body,31/12/2017,Social Services Pooled Budgets,Jcs For People With Learning Disabilitie,Third Party Payments,Home Care,568,11/12/2017,1712-00512,0.00,958.80,R,Affinity Trust,No
Http://opendatacommunities.org/id/metropolitan-district-council/leeds,Leeds City Council as Accountable Body,31/12/2017,Social Services Pooled Budgets,Jcs For People With Learning Disabilitie,Third Party Payments,Home Care,568,11/12/2017,1712-00513,0.00,383.52,R,Affinity Trust,No
Http://opendatacommunities.org/id/metropolitan-district-council/leeds,Leeds City Council as Accountable Body,31/12/2017,Social Services Pooled Budgets,Jcs For People With Learning Disabilitie,Third Party Payments,Home Care,568,11/12/2017,1712-00514,0.00,383.52,R,Affinity Trust,No
Http://opendatacommunities.org/id/metropolitan-district-council/leeds,Leeds City Council as Accountable Body,31/12/2017,Social Services Pooled Budgets,Jcs For People With Learning Disabilitie,Third Party Payments,Home Care,568,12/12/2017,1712-00515,0.00,1050.00,R,Affinity Trust,No
Http://opendatacommunities.org/id/metropolitan-district-council/leeds,Leeds City Council as Accountable Body,31/12/2017,Social Services Pooled Budgets,Jcs For People With Learning Disabilitie,Third Party Payments,Home Care,568,12/12/2017,1712-00516,0.00,1080.00,R,Affinity Trust,No
Http://opendatacommunities.org/id/metropolitan-district-council/leeds,Leeds City Council as Accountable Body,31/12/2017,Social Services Pooled Budgets,Jcs For People With Learning Disabilitie,Third Party Payments,Home Care,568,12/12/2017,1712-00517,0.00,2752.80,R,Affinity Trust,No
Http://opendatacommunities.org/id/metropolitan-district-council/leeds,Leeds City Council as Accountable Body,31/12/2017,Social Services Pooled Budgets,Jcs For People With Learning Disabilitie,Third Party Payments,Home Care,568,12/12/2017,1712-00518,0.00,1571.49,R,Affinity Trust,No
Http://opendatacommunities.org/id/metropolitan-district-council/leeds,Leeds City Council as Accountable Body,31/12/2017,Social Services Pooled Budgets,Jcs For People With Learning Disabilitie,Third Party Payments,Day Centre,564,12/12/2017,1712-00519,0.00,648.95,R,Affinity Trust,No
Http://opendatacommunities.org/id/metropolitan-district-council/leeds,Leeds City Council as Accountable Body,31/12/2017,Social Services Pooled Budgets,Jcs For People With Learning Disabilitie,Third Party Payments,Day Centre,564,12/12/2017,1712-00520,0.00,2346.40,R,Affinity Trust,No
Http://opendatacommunities.org/id/metropolitan-district-council/leeds,Leeds City Council as Accountable Body,31/12/2017,Social Services Pooled Budgets,Jcs For People With Learning Disabilitie,Third Party Payments,Day Centre,564,12/12/2017,1712-00521,0.00,1161.27,R,Affinity Trust,No
Http://opendatacommunities.org/id/metropolitan-district-council/leeds,Leeds City Council as Accountable Body,31/12/2017,Social Services Pooled Budgets,Jcs For People With Learning Disabilitie,Third Party Payments,Home Care,568,12/12/2017,1712-00522,0.00,1383.99,R,Affinity Trust,No
Http://opendatacommunities.org/id/metropolitan-district-council/leeds,Leeds City Council as Accountable Body,31/12/2017,Social Services Pooled Budgets,Jcs For People With Learning Disabilitie,Third Party Payments,Day Centre,564,18/12/2017,1712-00523,0.00,938.56,R,Affinity Trust,No
Http://opendatacommunities.org/id/metropolitan-district-council/leeds,Leeds City Council as Accountable Body,31/12/2017,Social Services Pooled Budgets,Jcs For People With Learning Disabilitie,Third Party Payments,Day Centre,564,18/12/2017,1712-00524,0.00,3101.91,R,Affinity Trust,No
Http://opendatacommunities.org/id/metropolitan-district-council/leeds,Leeds City Council as Accountable Body,31/12/2017,Social Services Pooled Budgets,Jcs For People With Learning Disabilitie,Third Party Payments,Home Care,568,18/12/2017,1712-00525,0.00,1201.20,R,Affinity Trust,No
Http://opendatacommunities.org/id/metropolitan-district-council/leeds,Leeds City Council as Accountable Body,31/12/2017,Social Services Pooled Budgets,Jcs For People With Learning Disabilitie,Third Party Payments,Home Care,568,18/12/2017,1712-00526,0.00,1607.31,R,Affinity Trust,No
Http://opendatacommunities.org/id/metropolitan-district-council/leeds,Leeds City Council as Accountable Body,31/12/2017,Social Services Pooled Budgets,Jcs For People With Learning Disabilitie,Third Party Payments,Home Care,568,18/12/2017,1712-00527,0.00,838.00,R,Affinity Trust,No
Http://opendatacommunities.org/id/metropolitan-district-council/leeds,Leeds City Council as Accountable Body,31/12/2017,Social Services Pooled Budgets,Jcs For People With Learning Disabilitie,Third Party Payments,Home Care,568,20/12/2017,1712-00528,0.00,804.48,R,Affinity Trust,No
Http://opendatacommunities.org/id/metropolitan-district-council/leeds,Leeds City Council as Accountable Body,31/12/2017,Social Services Pooled Budgets,Jcs For People With Learning Disabilitie,Third Party Payments,Home Care,568,21/12/2017,1712-00529,0.00,360.00,R,Affinity Trust,No
Http://opendatacommunities.org/id/metropolitan-district-council/leeds,Leeds City Council,31/12/2017,Adults and Health,Services For Older People - 65 And Over,Third Party Payments,Home Care,568,21/12/2017,1712-00530,0.00,1507.94,R,Affinity Trust,No
Http://opendatacommunities.org/id/metropolitan-district-council/leeds,Leeds City Council,31/12/2017,Adults and Health,Services For Older People Under 65 P/Dis,Third Party Payments,Home Care,568,21/12/2017,1712-00531,0.00,1078.65,R,Affinity Trust,No
Http://opendatacommunities.org/id/metropolitan-district-council/leeds,Leeds City Council as Accountable Body,31/12/2017,Social Services Pooled Budgets,Jcs For People With Learning Disabilitie,Third Party Payments,Day Centre,564,27/12/2017,1712-00532,0.00,1425.33,R,Affinity Trust,No
Http://opendatacommunities.org/id/metropolitan-district-council/leeds,Leeds City Council as Accountable Body,31/12/2017,Social Services Pooled Budgets,Jcs For People With Learning Disabilitie,Third Party Payments,Day Centre,564,27/12/2017,1712-00533,0.00,1021.32,R,Affinity Trust,No
Http://opendatacommunities.org/id/metropolitan-district-council/leeds,Leeds City Council as Accountable Body,31/12/2017,Social Services Pooled Budgets,Jcs For People With Learning Disabilitie,Third Party Payments,Home Care,568,28/12/2017,1712-00534,0.00,631.98,R,Affinity Trust,No
Http://opendatacommunities.org/id/metropolitan-district-council/leeds,Leeds City Council as Accountable Body,31/12/2017,Social Services Pooled Budgets,Jcs For People With Learning Disabilitie,Third Party Payments,Sheltered Accommodation,569,13/12/2017,1712-00535,0.00,174202.39,R,Affinity Trust North Divisional Office,No
Http://opendatacommunities.org/id/metropolitan-district-council/leeds,Leeds City Council,31/12/2017,Communities and Environment,Parks And Countryside  ,Supplies and Services,Other Hired And Contracted Services,265,02/11/2017,1712-00536,0.00,950.00,R,Afi Uplift Ltd,Yes
Http://opendatacommunities.org/id/metropolitan-district-council/leeds,Leeds City Council,31/12/2017,Communities and Environment,Parks And Countryside  ,Supplies and Services,Other Hired And Contracted Services,265,09/11/2017,1712-00537,0.00,950.00,R,Afi Uplift Ltd,Yes
Http://opendatacommunities.org/id/metropolitan-district-council/leeds,Leeds City Council,31/12/2017,Communities and Environment,Parks And Countryside  ,Transport,Hire Of Movable Plant & Machinery,315,14/11/2017,1712-00538,0.00,950.00,R,Afi Uplift Ltd,Yes
Http://opendatacommunities.org/id/metropolitan-district-council/leeds,Leeds City Council,31/12/2017,Communities and Environment,Parks And Countryside  ,Transport,Hire Of Movable Plant & Machinery,315,20/11/2017,1712-00539,0.00,950.00,R,Afi Uplift Ltd,Yes
Http://opendatacommunities.org/id/metropolitan-district-council/leeds,Leeds City Council,31/12/2017,Communities and Environment,Parks And Countryside  ,Supplies and Services,Other Hired And Contracted Services,265,20/11/2017,1712-00540,0.00,950.00,R,Afi Uplift Ltd,Yes
Http://opendatacommunities.org/id/metropolitan-district-council/leeds,Leeds City Council,31/12/2017,Communities and Environment,Parks And Countryside  ,Transport,Hire Of Movable Plant & Machinery,315,28/11/2017,1712-00541,0.00,950.00,R,Afi Uplift Ltd,Yes
Http://opendatacommunities.org/id/metropolitan-district-council/leeds,Leeds City Council,31/12/2017,Communities and Environment,Parks and Countryside,Transport,Hire Of Movable Plant & Machinery,315,21/12/2017,1712-00542,0.00,525.00,R,Afi-Uplift Limited,No
Http://opendatacommunities.org/id/metropolitan-district-council/leeds,Leeds City Council,31/12/2017,Communities and Environment,Parks and Countryside,Transport,Hire Of Movable Plant & Machinery,315,21/12/2017,1712-00543,0.00,525.00,R,Afi-Uplift Limited,No
Http://opendatacommunities.org/id/metropolitan-district-council/leeds,Leeds City Council,31/12/2017,Communities and Environment,Parks and Countryside,Transport,Hire Of Movable Plant & Machinery,315,21/12/2017,1712-00544,0.00,525.00,R,Afi-Uplift Limited,No
Http://opendatacommunities.org/id/metropolitan-district-council/leeds,Leeds City Council,31/12/2017,Adults and Health,Services For Older People - 65 And Over,Third Party Payments,Payments To Voluntary Organisations,561,29/12/2017,1712-00545,0.00,8024.75,R,Age Uk Leeds Enterprises,No
Http://opendatacommunities.org/id/metropolitan-district-council/leeds,Leeds City Council,31/12/2017,Insurance,Insurance,Supplies and Services,Insurance Claims,248,20/12/2017,1712-00546,0.00,3674.96,R,Ageas Insurance Limited,No
Http://opendatacommunities.org/id/metropolitan-district-council/leeds,Leeds City Council,31/12/2017,Resources and Housing,Legal Services,Employees,Training & Development,70,27/12/2017,1712-00547,0.00,225.00,R,Ahead Partnership Ltd,No
Http://opendatacommunities.org/id/metropolitan-district-council/leeds,Leeds City Council,31/12/2017,Resources and Housing,Strategic Housing Partnerships,Capital,Construction,3,14/12/2017,1712-00548,0.00,3200.00,C,Ahm Installations,No
Http://opendatacommunities.org/id/metropolitan-district-council/leeds,Leeds City Council,31/12/2017,Children and Families,Learning Skills & Universal,Supplies and Services,Teaching Materials,202,04/12/2017,1712-00549,0.00,38.46,R,Aid Training & Operations Ltd,No
Http://opendatacommunities.org/id/metropolitan-district-council/leeds,Leeds City Council,31/12/2017,Children and Families,Learning Skills & Universal,Supplies and Services,Teaching Materials,202,22/12/2017,1712-00550,0.00,35.96,R,Aid Training & Operations Ltd,No
Http://opendatacommunities.org/id/metropolitan-district-council/leeds,Leeds City Council as Accountable Body,31/12/2017,Social Services Pooled Budgets,Leeds Community Equip Store Pooled Budgt,Supplies and Services,Other Equipment,203,01/12/2017,1712-00551,0.00,54.97,R,Aidapt Bathrooms Ltd,No
Http://opendatacommunities.org/id/metropolitan-district-council/leeds,Leeds City Council as Accountable Body,31/12/2017,Social Services Pooled Budgets,Leeds Community Equip Store Pooled Budgt,Supplies and Services,Other Equipment,203,06/12/2017,1712-00552,0.00,-109.94,R,Aidapt Bathrooms Ltd,No
Http://opendatacommunities.org/id/metropolitan-district-council/leeds,Leeds City Council as Accountable Body,31/12/2017,Social Services Pooled Budgets,Leeds Community Equip Store Pooled Budgt,Supplies and Services,Other Equipment,203,06/12/2017,1712-00553,0.00,165.00,R,Aidapt Bathrooms Ltd,No
Http://opendatacommunities.org/id/metropolitan-district-council/leeds,Leeds City Council as Accountable Body,31/12/2017,Social Services Pooled Budgets,Leeds Community Equip Store Pooled Budgt,Supplies and Services,Other Equipment,203,08/12/2017,1712-00554,0.00,1099.40,R,Aidapt Bathrooms Ltd,No
Http://opendatacommunities.org/id/metropolitan-district-council/leeds,Leeds City Council as Accountable Body,31/12/2017,Social Services Pooled Budgets,Leeds Community Equip Store Pooled Budgt,Supplies and Services,Other Equipment,203,08/12/2017,1712-00555,0.00,2858.65,R,Aidapt Bathrooms Ltd,No
Http://opendatacommunities.org/id/metropolitan-district-council/leeds,Leeds City Council as Accountable Body,31/12/2017,Social Services Pooled Budgets,Leeds Community Equip Store Pooled Budgt,Supplies and Services,Other Equipment,203,12/12/2017,1712-00556,0.00,1274.50,R,Aidapt Bathrooms Ltd,No
Http://opendatacommunities.org/id/metropolitan-district-council/leeds,Leeds City Council,31/12/2017,Adults and Health,Services For Older People - 65 And Over,Supplies and Services,Operational Furniture And Equipment,203,12/12/2017,1712-00557,0.00,549.70,R,Aidapt Bathrooms Ltd,No
Http://opendatacommunities.org/id/metropolitan-district-council/leeds,Leeds City Council as Accountable Body,31/12/2017,Social Services Pooled Budgets,Leeds Community Equip Store Pooled Budgt,Supplies and Services,Other Equipment,203,22/12/2017,1712-00558,0.00,-109.94,R,Aidapt Bathrooms Ltd,No
Http://opendatacommunities.org/id/metropolitan-district-council/leeds,Leeds City Council as Accountable Body,31/12/2017,Social Services Pooled Budgets,Leeds Community Equip Store Pooled Budgt,Supplies and Services,Other Equipment,203,22/12/2017,1712-00559,0.00,902.65,R,Aidapt Bathrooms Ltd,No
Http://opendatacommunities.org/id/metropolitan-district-council/leeds,Leeds City Council as Accountable Body,31/12/2017,Social Services Pooled Budgets,Leeds Community Equip Store Pooled Budgt,Supplies and Services,Other Equipment,203,22/12/2017,1712-00560,0.00,109.94,R,Aidapt Bathrooms Ltd,No
Http://opendatacommunities.org/id/metropolitan-district-council/leeds,Leeds City Council as Accountable Body,31/12/2017,Social Services Pooled Budgets,Leeds Community Equip Store Pooled Budgt,Supplies and Services,Other Equipment,203,22/12/2017,1712-00561,0.00,4095.25,R,Aidapt Bathrooms Ltd,No
Http://opendatacommunities.org/id/metropolitan-district-council/leeds,Leeds City Council as Accountable Body,31/12/2017,Social Services Pooled Budgets,Leeds Community Equip Store Pooled Budgt,Supplies and Services,Other Equipment,203,22/12/2017,1712-00562,0.00,275.00,R,Aidapt Bathrooms Ltd,No
Http://opendatacommunities.org/id/metropolitan-district-council/leeds,Leeds City Council as Accountable Body,31/12/2017,Social Services Pooled Budgets,Leeds Community Equip Store Pooled Budgt,Supplies and Services,Other Equipment,203,22/12/2017,1712-00563,0.00,109.94,R,Aidapt Bathrooms Ltd,No
Http://opendatacommunities.org/id/metropolitan-district-council/leeds,Leeds City Council as Accountable Body,31/12/2017,Social Services Pooled Budgets,Leeds Community Equip Store Pooled Budgt,Supplies and Services,Other Equipment,203,22/12/2017,1712-00564,0.00,1649.10,R,Aidapt Bathrooms Ltd,No
Http://opendatacommunities.org/id/metropolitan-district-council/leeds,Leeds City Council as Accountable Body,31/12/2017,Social Services Pooled Budgets,Leeds Community Equip Store Pooled Budgt,Supplies and Services,Other Equipment,203,28/12/2017,1712-00565,0.00,549.70,R,Aidapt Bathrooms Ltd,No
Http://opendatacommunities.org/id/metropolitan-district-council/leeds,Leeds City Council,31/12/2017,City Development,Libraries  Arts & Heritage,Supplies and Services,Other Hired And Contracted Services,265,07/12/2017,1712-00566,0.00,7363.96,R,Aimee Grundell,No
Http://opendatacommunities.org/id/metropolitan-district-council/leeds,Leeds City Council,31/12/2017,City Development,Libraries  Arts & Heritage,Supplies and Services,Bought In Professional Services,277,07/12/2017,1712-00567,0.00,512.00,R,Aimee Grundell,No
Http://opendatacommunities.org/id/metropolitan-district-council/leeds,Leeds City Council,31/12/2017,City Development,Libraries  Arts & Heritage,Supplies and Services,Advertising,211,07/12/2017,1712-00568,0.00,1600.00,R,Aimee Grundell,No
Http://opendatacommunities.org/id/metropolitan-district-council/leeds,Leeds City Council,31/12/2017,City Development,Libraries  Arts & Heritage,Supplies and Services,Other Hired And Contracted Services,265,11/12/2017,1712-00569,0.00,3135.00,R,Aimee Grundell,No
Http://opendatacommunities.org/id/metropolitan-district-council/leeds,Leeds City Council,31/12/2017,City Development,Libraries  Arts & Heritage,Supplies and Services,Other Hired And Contracted Services,265,13/12/2017,1712-00570,0.00,1070.00,R,Aimee Grundell,No
Http://opendatacommunities.org/id/metropolitan-district-council/leeds,Leeds City Council,31/12/2017,City Development,Libraries  Arts & Heritage,Supplies and Services,Other Hired And Contracted Services,265,08/12/2017,1712-00571,0.00,120.00,R,Ainsley Johns,No
Http://opendatacommunities.org/id/metropolitan-district-council/leeds,Leeds City Council,31/12/2017,Resources and Housing,Leeds Building Services,Supplies and Services,Operational Materials,205,08/12/2017,1712-00572,0.00,99.00,R,Air Conditioning Accessories,No
Http://opendatacommunities.org/id/metropolitan-district-council/leeds,Leeds City Council,31/12/2017,Resources and Housing,Leeds Building Services,Supplies and Services,Operational Materials,205,08/12/2017,1712-00573,0.00,1109.52,R,Air Conditioning Accessories,No
Http://opendatacommunities.org/id/metropolitan-district-council/leeds,Leeds City Council,31/12/2017,Resources and Housing,Leeds Building Services,Supplies and Services,Operational Materials,205,08/12/2017,1712-00574,0.00,269.04,R,Air Conditioning Accessories,No
Http://opendatacommunities.org/id/metropolitan-district-council/leeds,Leeds City Council,31/12/2017,Resources and Housing,Leeds Building Services,Supplies and Services,Operational Materials,205,27/12/2017,1712-00575,0.00,-4.00,R,Air Conditioning Accessories,No
Http://opendatacommunities.org/id/metropolitan-district-council/leeds,Leeds City Council,31/12/2017,Resources and Housing,Leeds Building Services,Supplies and Services,Operational Materials,205,27/12/2017,1712-00576,0.00,9.86,R,Air Conditioning Accessories,No
Http://opendatacommunities.org/id/metropolitan-district-council/leeds,Leeds City Council,31/12/2017,Resources and Housing,Commercial Services  ,Supplies and Services,Operational Materials,205,20/11/2017,1712-00577,0.00,102.46,R,Air Force Pneumati,Yes
Http://opendatacommunities.org/id/metropolitan-district-council/leeds,Leeds City Council,31/12/2017,Resources and Housing,Commercial Services  ,Supplies and Services,Operational Materials,205,20/11/2017,1712-00578,0.00,59.20,R,Air Force Pneumati,Yes
Http://opendatacommunities.org/id/metropolitan-district-council/leeds,Leeds City Council,31/12/2017,Resources and Housing,Leeds Building Services,Supplies and Services,Operational Materials,205,27/12/2017,1712-00579,0.00,65.40,R,Air Force Pneumatics & Hydraulics,No
Http://opendatacommunities.org/id/metropolitan-district-council/leeds,Leeds City Council,31/12/2017,Resources and Housing,Leeds Building Services,Supplies and Services,Operational Materials,205,01/12/2017,1712-00580,0.00,181.10,R,Air Liquide Uk,No
Http://opendatacommunities.org/id/metropolitan-district-council/leeds,Leeds City Council,31/12/2017,Resources and Housing,Leeds Building Services,Supplies and Services,Operational Materials,205,12/12/2017,1712-00581,0.00,164.42,R,Air Liquide Uk,No
Http://opendatacommunities.org/id/metropolitan-district-council/leeds,Leeds City Council,31/12/2017,Communities and Environment,Parks and Countryside,Supplies and Services,Operational Furniture And Equipment,203,11/12/2017,1712-00582,0.00,258.60,R,Air Solutions (Leeds) Ltd,No
Http://opendatacommunities.org/id/metropolitan-district-council/leeds,Leeds City Council,31/12/2017,Adults and Health,Services For Adults Under 65 Mental/Dis,Third Party Payments,Residential,580,13/12/2017,1712-00583,0.00,6028.00,R,Aire House,No
Http://opendatacommunities.org/id/metropolitan-district-council/leeds,Leeds City Council,31/12/2017,Communities and Environment,Parks and Countryside,Supplies and Services,Other Hired And Contracted Services,265,06/12/2017,1712-00584,0.00,575.00,R,Aire Valley Tree Services Ltd,No
Http://opendatacommunities.org/id/metropolitan-district-council/leeds,Leeds City Council,31/12/2017,Adults and Health,Services For Older People - 65 And Over,Third Party Payments,Residential Care Dementia,571,13/12/2017,1712-00585,0.00,36274.42,R,Aire View Residential Home,No
Http://opendatacommunities.org/id/metropolitan-district-council/leeds,Leeds City Council,31/12/2017,Adults and Health,Services For Older People - 65 And Over,Third Party Payments,Residential,580,13/12/2017,1712-00586,0.00,14482.57,R,Aire View Residential Home,No
Http://opendatacommunities.org/id/metropolitan-district-council/leeds,Leeds City Council,31/12/2017,Adults and Health,Services For Older People - 65 And Over,Third Party Payments,Residential Care Dementia,571,13/12/2017,1712-00587,0.00,5006.44,R,Airedale (Goldsborough),No
Http://opendatacommunities.org/id/metropolitan-district-council/leeds,Leeds City Council,31/12/2017,Adults and Health,Services For Older People - 65 And Over,Third Party Payments,Residential,580,13/12/2017,1712-00588,0.00,24188.20,R,Airedale (Goldsborough),No
Http://opendatacommunities.org/id/metropolitan-district-council/leeds,Leeds City Council,31/12/2017,Resources and Housing,Commercial Services,Supplies and Services,Crockery  Cutlery & Utensils,221,22/12/2017,1712-00589,0.00,11795.00,R,Airedale Catering Equipment Ltd,No
Http://opendatacommunities.org/id/metropolitan-district-council/leeds,Leeds City Council,31/12/2017,Adults and Health,Assessment And Care Management,Employees,Training Costs,71,14/12/2017,1712-00590,0.00,120.00,R,Airedale Community Trading (Act) Ltd,No
Http://opendatacommunities.org/id/metropolitan-district-council/leeds,Leeds City Council,31/12/2017,Resources and Housing,Commercial Services,Supplies and Services,Other Hired And Contracted Services,265,13/12/2017,1712-00591,0.00,490.00,R,Air-Weigh Europe Limited,No
Http://opendatacommunities.org/id/metropolitan-district-council/leeds,Leeds City Council,31/12/2017,Resources and Housing,Commercial Services,Supplies and Services,Other Hired And Contracted Services,265,13/12/2017,1712-00592,0.00,360.00,R,Air-Weigh Europe Limited,No
Http://opendatacommunities.org/id/metropolitan-district-council/leeds,Leeds City Council,31/12/2017,Adults and Health,Services For Adults Under 65 Mental/Dis,Third Party Payments,Fees - Level 4,520,15/12/2017,1712-00593,0.00,239.50,R,Ait Mitra,No
Http://opendatacommunities.org/id/metropolitan-district-council/leeds,Leeds City Council,31/12/2017,Adults and Health,Services For Adults Under 65 Mental/Dis,Third Party Payments,Fees - Level 4,520,15/12/2017,1712-00594,0.00,175.00,R,Ait Mitra,No
Http://opendatacommunities.org/id/metropolitan-district-council/leeds,Leeds City Council,31/12/2017,Adults and Health,Services For Adults Under 65 Mental/Dis,Third Party Payments,Fees - Level 4,520,15/12/2017,1712-00595,0.00,175.00,R,Ait Mitra,No
Http://opendatacommunities.org/id/metropolitan-district-council/leeds,Leeds City Council,31/12/2017,Adults and Health,Services For Adults Under 65 Mental/Dis,Third Party Payments,Fees - Level 4,520,15/12/2017,1712-00596,0.00,175.00,R,Ait Mitra,No
Http://opendatacommunities.org/id/metropolitan-district-council/leeds,Leeds City Council,31/12/2017,Adults and Health,Services For Adults Under 65 Mental/Dis,Third Party Payments,Fees - Level 4,520,15/12/2017,1712-00597,0.00,175.00,R,Ait Mitra,No
Http://opendatacommunities.org/id/metropolitan-district-council/leeds,Leeds City Council,31/12/2017,Adults and Health,Services For Adults Under 65 Mental/Dis,Third Party Payments,Fees - Level 4,520,15/12/2017,1712-00598,0.00,175.00,R,Ait Mitra,No
Http://opendatacommunities.org/id/metropolitan-district-council/leeds,Leeds City Council,31/12/2017,Adults and Health,Services For Adults Under 65 Mental/Dis,Third Party Payments,Fees - Level 4,520,15/12/2017,1712-00599,0.00,175.00,R,Ait Mitra,No
Http://opendatacommunities.org/id/metropolitan-district-council/leeds,Leeds City Council,31/12/2017,Adults and Health,Services For Adults Under 65 Mental/Dis,Third Party Payments,Fees - Level 4,520,15/12/2017,1712-00600,0.00,175.00,R,Ait Mitra,No
Http://opendatacommunities.org/id/metropolitan-district-council/leeds,Leeds City Council,31/12/2017,Adults and Health,Services For Adults Under 65 Mental/Dis,Third Party Payments,Fees - Level 4,520,15/12/2017,1712-00601,0.00,175.00,R,Ait Mitra,No
Http://opendatacommunities.org/id/metropolitan-district-council/leeds,Leeds City Council,31/12/2017,Adults and Health,Services For Adults Under 65 Mental/Dis,Third Party Payments,Fees - Level 4,520,15/12/2017,1712-00602,0.00,175.00,R,Ait Mitra,No
Http://opendatacommunities.org/id/metropolitan-district-council/leeds,Leeds City Council,31/12/2017,Adults and Health,Services For Adults Under 65 Mental/Dis,Third Party Payments,Fees - Level 4,520,15/12/2017,1712-00603,0.00,175.00,R,Ait Mitra,No
Http://opendatacommunities.org/id/metropolitan-district-council/leeds,Leeds City Council as Accountable Body,31/12/2017,Social Services Pooled Budgets,Jcs For People With Learning Disabilitie,Third Party Payments,Residential,580,13/12/2017,1712-00604,0.00,6173.24,R,Aitch Care Homes,No
Http://opendatacommunities.org/id/metropolitan-district-council/leeds,Leeds City Council,31/12/2017,Communities and Environment,Parks and Countryside,Supplies and Services,Operational Materials,205,22/12/2017,1712-00605,0.00,193.93,R,Aitkens Sportsturf Ltd,No
Http://opendatacommunities.org/id/metropolitan-district-council/leeds,Leeds City Council,31/12/2017,Communities and Environment,Parks and Countryside,Supplies and Services,Operational Materials,205,27/12/2017,1712-00606,0.00,220.00,R,Aitkens Sportsturf Ltd,No
Http://opendatacommunities.org/id/metropolitan-district-council/leeds,Leeds City Council,31/12/2017,Resources and Housing,Commercial Services,Supplies and Services,Other Hired And Contracted Services,265,20/12/2017,1712-00607,0.00,675.00,R,REDACTED PERSONAL DATA,No
Http://opendatacommunities.org/id/metropolitan-district-council/leeds,Leeds City Council,31/12/2017,Resources and Housing,Commercial Services,Supplies and Services,Other Hired And Contracted Services,265,21/12/2017,1712-00608,0.00,600.00,R,REDACTED PERSONAL DATA,No
Http://opendatacommunities.org/id/metropolitan-district-council/leeds,Leeds City Council,31/12/2017,Adults and Health,Services For Older People - 65 And Over,Third Party Payments,Home Care,568,15/12/2017,1712-00609,0.00,19309.31,R,Aj Community Care Ltd,No
Http://opendatacommunities.org/id/metropolitan-district-council/leeds,Leeds City Council,31/12/2017,Adults and Health,Services For Older People Under 65 P/Dis,Third Party Payments,Home Care,568,15/12/2017,1712-00610,0.00,5115.55,R,Aj Community Care Ltd,No
Http://opendatacommunities.org/id/metropolitan-district-council/leeds,Leeds City Council,31/12/2017,Resources and Housing,Leeds Building Services,Supplies and Services,Operational Furniture And Equipment,203,12/12/2017,1712-00611,0.00,56.72,R,Ajm Fixings & Power Tools Ltd,No
Http://opendatacommunities.org/id/metropolitan-district-council/leeds,Leeds City Council,31/12/2017,Resources and Housing,Leeds Building Services,Supplies and Services,Stores - Central And Other Depots,005,12/12/2017,1712-00612,0.00,127.44,R,Ajm Fixings & Power Tools Ltd,No
Http://opendatacommunities.org/id/metropolitan-district-council/leeds,Leeds City Council,31/12/2017,Resources and Housing,Leeds Building Services,Supplies and Services,Operational Furniture And Equipment,203,15/12/2017,1712-00613,0.00,203.15,R,Ajm Fixings & Power Tools Ltd,No
Http://opendatacommunities.org/id/metropolitan-district-council/leeds,Leeds City Council,31/12/2017,Resources and Housing,Leeds Building Services,Supplies and Services,Stores - Central And Other Depots,005,15/12/2017,1712-00614,0.00,757.81,R,Ajm Fixings & Power Tools Ltd,No
Http://opendatacommunities.org/id/metropolitan-district-council/leeds,Leeds City Council,31/12/2017,Resources and Housing,Leeds Building Services,Supplies and Services,Stores - Central And Other Depots,005,27/12/2017,1712-00615,0.00,172.50,R,Ajm Fixings & Power Tools Ltd,No
Http://opendatacommunities.org/id/metropolitan-district-council/leeds,Leeds City Council,31/12/2017,Resources and Housing,Leeds Building Services,Supplies and Services,Operational Materials,205,27/12/2017,1712-00616,0.00,53.04,R,Ajm Fixings & Power Tools Ltd,No
Http://opendatacommunities.org/id/metropolitan-district-council/leeds,Leeds City Council,31/12/2017,Resources and Housing,Leeds Building Services,Supplies and Services,Stores - Central And Other Depots,005,27/12/2017,1712-00617,0.00,385.60,R,Ajm Fixings & Power Tools Ltd,No
Http://opendatacommunities.org/id/metropolitan-district-council/leeds,Leeds City Council,31/12/2017,Resources and Housing,Leeds Building Services,Supplies and Services,Stores - Central And Other Depots,005,28/12/2017,1712-00618,0.00,304.00,R,Ajm Fixings & Power Tools Ltd,No
Http://opendatacommunities.org/id/metropolitan-district-council/leeds,Leeds City Council,31/12/2017,Adults and Health,Services For Older People - 65 And Over,Third Party Payments,Nursing Home,570,13/12/2017,1712-00619,0.00,1247.60,R,Akari Care Ltd,No
Http://opendatacommunities.org/id/metropolitan-district-council/leeds,Leeds City Council,31/12/2017,Resources and Housing,Commercial Services,Premises,Plant and Machinery,102,21/12/2017,1712-00620,0.00,143.50,R,Akua Uk Ltd,No
Http://opendatacommunities.org/id/metropolitan-district-council/leeds,Leeds City Council,31/12/2017,Resources and Housing,Commercial Services,Premises,Plant and Machinery,102,21/12/2017,1712-00621,0.00,1194.20,R,Akua Uk Ltd,No
Http://opendatacommunities.org/id/metropolitan-district-council/leeds,Leeds City Council,31/12/2017,Resources and Housing,Commercial Services,Premises,Plant and Machinery,102,21/12/2017,1712-00622,0.00,275.74,R,Akua Uk Ltd,No
Http://opendatacommunities.org/id/metropolitan-district-council/leeds,Leeds City Council,31/12/2017,Resources and Housing,Commercial Services,Premises,Plant and Machinery,102,21/12/2017,1712-00623,0.00,171.50,R,Akua Uk Ltd,No
Http://opendatacommunities.org/id/metropolitan-district-council/leeds,Leeds City Council,31/12/2017,Resources and Housing,Leeds Building Services,Supplies and Services,Operational Materials,205,12/12/2017,1712-00624,0.00,50.22,R,Akw Medicare Ltd,No
Http://opendatacommunities.org/id/metropolitan-district-council/leeds,Leeds City Council,31/12/2017,Resources and Housing,Leeds Building Services,Supplies and Services,Operational Materials,205,12/12/2017,1712-00625,0.00,54.67,R,Akw Medicare Ltd,No
Http://opendatacommunities.org/id/metropolitan-district-council/leeds,Leeds City Council,31/12/2017,Adults and Health,Services For Older People - 65 And Over,Third Party Payments,Payments To Voluntary Organisations,561,29/12/2017,1712-00626,0.00,3000.00,R,Al Khidmat Centre,No
Http://opendatacommunities.org/id/metropolitan-district-council/leeds,Leeds City Council,31/12/2017,City Development,Planning & Sustainable Development,Support Services,Legal Disbursements,411,27/12/2017,1712-00627,0.00,200.00,R,Alan Evans,No
Http://opendatacommunities.org/id/metropolitan-district-council/leeds,Leeds City Council,31/12/2017,Children and Families,Safeguarding Targeted & Specialist,Third Party Payments,Section 17,551,14/12/2017,1712-00628,0.00,150.00,R,REDACTED PERSONAL DATA,No
Http://opendatacommunities.org/id/metropolitan-district-council/leeds,Leeds City Council,31/12/2017,Communities and Environment,Car Parking Services,Income,Penalties  Fines & Car Parking Charges,934,21/12/2017,1712-00629,0.00,30.00,R,REDACTED PERSONAL DATA,No
Http://opendatacommunities.org/id/metropolitan-district-council/leeds,Leeds City Council,31/12/2017,Children and Families,Safeguarding Targeted & Specialist,Third Party Payments,Services Rendered By Other Organisations,511,08/12/2017,1712-00630,0.00,327.80,R,REDACTED PERSONAL DATA,No
Http://opendatacommunities.org/id/metropolitan-district-council/leeds,Leeds City Council,31/12/2017,Resources and Housing,Commercial Services,Transport,Vehicle Spares,345,06/12/2017,1712-00631,0.00,69.55,R,Albert Jagger Limited,No
Http://opendatacommunities.org/id/metropolitan-district-council/leeds,Leeds City Council,31/12/2017,Communities and Environment,Communities,Supplies and Services,Computer Software & Equipment,214,05/12/2017,1712-00632,0.00,125.00,R,Alcium Software Ltd,No
Http://opendatacommunities.org/id/metropolitan-district-council/leeds,Leeds City Council,31/12/2017,Communities and Environment,Communities,Supplies and Services,Computer Software & Equipment,214,22/12/2017,1712-00633,0.00,1075.00,R,Alcium Software Ltd,No
Http://opendatacommunities.org/id/metropolitan-district-council/leeds,Leeds City Council,31/12/2017,Children and Families,Partnerships  ,Supplies and Services,Food & Drink,231,24/11/2017,1712-00634,0.00,28.92,R,Aldi 23 779,Yes
Http://opendatacommunities.org/id/metropolitan-district-council/leeds,Leeds City Council,31/12/2017,Communities and Environment,Parks And Countryside  ,Supplies and Services,Operational Furniture And Equipment,203,18/11/2017,1712-00635,0.00,8.30,R,Aldi 49 779,Yes
Http://opendatacommunities.org/id/metropolitan-district-council/leeds,Leeds City Council,31/12/2017,Children and Families,Safeguarding Targeted & Specialist  ,Supplies and Services,Food & Drink,231,27/11/2017,1712-00636,0.00,3.54,R,Aldi 49 779,Yes
Http://opendatacommunities.org/id/metropolitan-district-council/leeds,Leeds City Council,31/12/2017,City Development,Libraries  Arts & Heritage  ,Supplies and Services,Food & Drink,231,02/11/2017,1712-00637,0.00,36.90,R,Aldi 85 779,Yes
Http://opendatacommunities.org/id/metropolitan-district-council/leeds,Leeds City Council,31/12/2017,Children and Families,Safeguarding Targeted & Specialist  ,Supplies and Services,Food & Drink,231,13/11/2017,1712-00638,0.00,73.49,R,Aldi 85 779,Yes
Http://opendatacommunities.org/id/metropolitan-district-council/leeds,Leeds City Council,31/12/2017,Children and Families,Safeguarding Targeted & Specialist  ,Transfer Payments,Leaving Care Allowances,634,01/11/2017,1712-00639,0.00,3.72,R,Aldi 89 779,Yes
Http://opendatacommunities.org/id/metropolitan-district-council/leeds,Leeds City Council,31/12/2017,City Development,Libraries  Arts & Heritage  ,Supplies and Services,Food & Drink,231,03/11/2017,1712-00640,0.00,4.74,R,Aldi 89 779,Yes
Http://opendatacommunities.org/id/metropolitan-district-council/leeds,Leeds City Council,31/12/2017,Children and Families,Safeguarding Targeted & Specialist,Support Services,Legal Disbursements,411,08/12/2017,1712-00641,0.00,230.68,R,Alere Toxicology Plc,No
Http://opendatacommunities.org/id/metropolitan-district-council/leeds,Leeds City Council,31/12/2017,Children and Families,Safeguarding Targeted & Specialist,Support Services,Legal Disbursements,411,08/12/2017,1712-00642,0.00,120.48,R,Alere Toxicology Plc,No
Http://opendatacommunities.org/id/metropolitan-district-council/leeds,Leeds City Council,31/12/2017,Children and Families,Safeguarding Targeted & Specialist,Support Services,Legal Disbursements,411,18/12/2017,1712-00643,0.00,33.00,R,Alere Toxicology Plc,No
Http://opendatacommunities.org/id/metropolitan-district-council/leeds,Leeds City Council,31/12/2017,Children and Families,Safeguarding Targeted & Specialist,Support Services,Legal Disbursements,411,19/12/2017,1712-00644,0.00,230.68,R,Alere Toxicology Plc,No
Http://opendatacommunities.org/id/metropolitan-district-council/leeds,Leeds City Council,31/12/2017,City Development,Recreation,Income,Swimming Bath Charges,923,28/12/2017,1712-00645,0.00,166.60,R,REDACTED PERSONAL DATA,No
Http://opendatacommunities.org/id/metropolitan-district-council/leeds,Leeds City Council,31/12/2017,Children and Families,Safeguarding Targeted & Specialist,Support Services,Legal Disbursements,411,22/12/2017,1712-00646,0.00,857.00,R,Alex Taylor,No
Http://opendatacommunities.org/id/metropolitan-district-council/leeds,Leeds City Council,31/12/2017,Resources and Housing,Commercial Services,Transport,Vehicle Spares,345,21/12/2017,1712-00647,0.00,390.00,R,Alex Wagg,No
Http://opendatacommunities.org/id/metropolitan-district-council/leeds,Leeds City Council,31/12/2017,Resources and Housing,Commercial Services,Transport,Vehicle Spares,345,21/12/2017,1712-00648,0.00,385.00,R,Alex Wagg,No
Http://opendatacommunities.org/id/metropolitan-district-council/leeds,Leeds City Council,31/12/2017,Resources and Housing,Commercial Services,Supplies and Services,Other Hired And Contracted Services,265,21/12/2017,1712-00649,0.00,620.00,R,Alex Wagg,No
Http://opendatacommunities.org/id/metropolitan-district-council/leeds,Leeds City Council,31/12/2017,Adults and Health,Assessment And Care Management,Supplies and Services,Operational Furniture And Equipment,203,14/12/2017,1712-00650,0.00,200.00,R,Alex Wibrew,No
Http://opendatacommunities.org/id/metropolitan-district-council/leeds,Leeds City Council,31/12/2017,Children and Families,Safeguarding Targeted & Specialist,Transfer Payments,Leaving Care Allowances,634,11/12/2017,1712-00651,0.00,50.00,R,REDACTED PERSONAL DATA,No
Http://opendatacommunities.org/id/metropolitan-district-council/leeds,Leeds City Council,31/12/2017,Adults and Health,Services For Older People - 65 And Over,Third Party Payments,Residential Care Dementia,571,13/12/2017,1712-00652,0.00,14012.88,R,Alexander Residential Home,No
Http://opendatacommunities.org/id/metropolitan-district-council/leeds,Leeds City Council,31/12/2017,Adults and Health,Services For Older People - 65 And Over,Third Party Payments,Residential,580,13/12/2017,1712-00653,0.00,23522.27,R,Alexander Residential Home,No
Http://opendatacommunities.org/id/metropolitan-district-council/leeds,Leeds City Council,31/12/2017,Communities and Environment,Customer Access,Supplies and Services,Other Hired And Contracted Services,265,04/12/2017,1712-00654,0.00,726.25,R,Alexandra Costenco,No
Http://opendatacommunities.org/id/metropolitan-district-council/leeds,Leeds City Council,31/12/2017,Communities and Environment,Customer Access,Supplies and Services,Other Hired And Contracted Services,265,21/12/2017,1712-00655,0.00,617.25,R,Alexandra Costenco,No
Http://opendatacommunities.org/id/metropolitan-district-council/leeds,Leeds City Council,31/12/2017,Adults and Health,Services For Older People - 65 And Over,Third Party Payments,Residential Care Dementia,571,13/12/2017,1712-00656,0.00,1577.96,R,Alexandra Court,No
Http://opendatacommunities.org/id/metropolitan-district-council/leeds,Leeds City Council,31/12/2017,Adults and Health,Services For Older People - 65 And Over,Third Party Payments,Residential,580,13/12/2017,1712-00657,0.00,11156.44,R,Alexandra Court,No
Http://opendatacommunities.org/id/metropolitan-district-council/leeds,Leeds City Council,31/12/2017,Children and Families,Safeguarding Targeted & Specialist,Third Party Payments,Services Rendered By Other Organisations,511,01/12/2017,1712-00658,0.00,636.30,R,REDACTED PERSONAL DATA,No
Http://opendatacommunities.org/id/metropolitan-district-council/leeds,Leeds City Council,31/12/2017,Children and Families,Safeguarding Targeted & Specialist,Third Party Payments,Services Rendered By Other Organisations,511,08/12/2017,1712-00659,0.00,176.40,R,REDACTED PERSONAL DATA,No
Http://opendatacommunities.org/id/metropolitan-district-council/leeds,Leeds City Council,31/12/2017,Resources and Housing,Leeds Building Services,Supplies and Services,Other Hired And Contracted Services,265,08/12/2017,1712-00660,0.00,24545.64,R,Alfred Bagnall & Sons (Leeds) Ltd,No
Http://opendatacommunities.org/id/metropolitan-district-council/leeds,Leeds City Council,31/12/2017,Resources and Housing,Leeds Building Services,Supplies and Services,Other Hired And Contracted Services,265,15/12/2017,1712-00661,0.00,6729.31,R,Alfred Bagnall & Sons (Leeds) Ltd,No
Http://opendatacommunities.org/id/metropolitan-district-council/leeds,Leeds City Council,31/12/2017,Resources and Housing,Leeds Building Services,Supplies and Services,Other Hired And Contracted Services,265,15/12/2017,1712-00662,0.00,2240.00,R,Alfred Bagnall & Sons (Leeds) Ltd,No
Http://opendatacommunities.org/id/metropolitan-district-council/leeds,Leeds City Council,31/12/2017,Resources and Housing,Leeds Building Services,Supplies and Services,Other Hired And Contracted Services,265,28/12/2017,1712-00663,0.00,614.00,R,Alfred Bagnall & Sons (Leeds) Ltd,No
Http://opendatacommunities.org/id/metropolitan-district-council/leeds,Leeds City Council,31/12/2017,Children and Families,Safeguarding Targeted & Specialist,Premises,Maintenance Of Buildings,101,29/12/2017,1712-00664,0.00,6527.72,R,Alfred Bagnall & Sons (Leeds) Ltd,No
Http://opendatacommunities.org/id/metropolitan-district-council/leeds,Leeds City Council,31/12/2017,Communities and Environment,Customer Access,Supplies and Services,Other Hired And Contracted Services,265,04/12/2017,1712-00665,0.00,155.00,R,Ali Pourakaberian,No
Http://opendatacommunities.org/id/metropolitan-district-council/leeds,Leeds City Council,31/12/2017,Communities and Environment,Customer Access,Supplies and Services,Other Hired And Contracted Services,265,21/12/2017,1712-00666,0.00,99.90,R,Ali Pourakaberian,No
Http://opendatacommunities.org/id/metropolitan-district-council/leeds,Leeds City Council,31/12/2017,Adults and Health,Other Generic Services,Supplies and Services,Conference Meetings,253,20/12/2017,1712-00667,0.00,15.00,R,REDACTED PERSONAL DATA,No
Http://opendatacommunities.org/id/metropolitan-district-council/leeds,Leeds City Council,31/12/2017,Children and Families,Safeguarding Targeted & Specialist,Third Party Payments,Allowance Enhancements,547,12/12/2017,1712-00668,0.00,200.00,R,REDACTED PERSONAL DATA,No
Http://opendatacommunities.org/id/metropolitan-district-council/leeds,Leeds City Council,31/12/2017,Children and Families,Safeguarding Targeted & Specialist,Third Party Payments,Services Rendered By Other Organisations,511,01/12/2017,1712-00669,0.00,177.76,R,REDACTED PERSONAL DATA,No
Http://opendatacommunities.org/id/metropolitan-district-council/leeds,Leeds City Council,31/12/2017,Children and Families,Safeguarding Targeted & Specialist,Third Party Payments,Services Rendered By Other Organisations,511,08/12/2017,1712-00670,0.00,529.20,R,REDACTED PERSONAL DATA,No
Http://opendatacommunities.org/id/metropolitan-district-council/leeds,Leeds City Council,31/12/2017,City Development,Libraries  Arts & Heritage,Supplies and Services,Bought In Professional Services,277,06/12/2017,1712-00671,0.00,300.00,R,Alison Mcintyre,No
Http://opendatacommunities.org/id/metropolitan-district-council/leeds,Leeds City Council,31/12/2017,Children and Families,Safeguarding Targeted & Specialist,Transfer Payments,Leaving Care Allowances,634,08/12/2017,1712-00672,0.00,90.00,R,All Abode,No
Http://opendatacommunities.org/id/metropolitan-district-council/leeds,Leeds City Council,31/12/2017,Children and Families,Safeguarding Targeted & Specialist,Transfer Payments,Leaving Care Allowances,634,08/12/2017,1712-00673,0.00,30.00,R,All Abode,No
Http://opendatacommunities.org/id/metropolitan-district-council/leeds,Leeds City Council,31/12/2017,Children and Families,Safeguarding Targeted & Specialist,Transfer Payments,Leaving Care Allowances,634,19/12/2017,1712-00674,0.00,60.00,R,All Abode,No
Http://opendatacommunities.org/id/metropolitan-district-council/leeds,Leeds City Council,31/12/2017,Resources and Housing,Leeds Building Services,Supplies and Services,Other Hired And Contracted Services,265,01/12/2017,1712-00675,0.00,195.00,R,All Clear Solutions Ltd,No
Http://opendatacommunities.org/id/metropolitan-district-council/leeds,Leeds City Council,31/12/2017,Resources and Housing,Leeds Building Services,Supplies and Services,Other Hired And Contracted Services,265,01/12/2017,1712-00676,0.00,195.00,R,All Clear Solutions Ltd,No
Http://opendatacommunities.org/id/metropolitan-district-council/leeds,Leeds City Council,31/12/2017,Resources and Housing,Leeds Building Services,Supplies and Services,Other Hired And Contracted Services,265,01/12/2017,1712-00677,0.00,195.00,R,All Clear Solutions Ltd,No
Http://opendatacommunities.org/id/metropolitan-district-council/leeds,Leeds City Council,31/12/2017,Resources and Housing,Leeds Building Services,Supplies and Services,Other Hired And Contracted Services,265,01/12/2017,1712-00678,0.00,450.00,R,All Clear Solutions Ltd,No
Http://opendatacommunities.org/id/metropolitan-district-council/leeds,Leeds City Council,31/12/2017,Resources and Housing,Leeds Building Services,Supplies and Services,Other Hired And Contracted Services,265,01/12/2017,1712-00679,0.00,195.00,R,All Clear Solutions Ltd,No
Http://opendatacommunities.org/id/metropolitan-district-council/leeds,Leeds City Council,31/12/2017,Resources and Housing,Leeds Building Services,Supplies and Services,Other Hired And Contracted Services,265,15/12/2017,1712-00680,0.00,150.00,R,All Clear Solutions Ltd,No
Http://opendatacommunities.org/id/metropolitan-district-council/leeds,Leeds City Council,31/12/2017,Resources and Housing,Leeds Building Services,Supplies and Services,Other Hired And Contracted Services,265,15/12/2017,1712-00681,0.00,195.00,R,All Clear Solutions Ltd,No
Http://opendatacommunities.org/id/metropolitan-district-council/leeds,Leeds City Council,31/12/2017,Resources and Housing,Leeds Building Services,Supplies and Services,Other Hired And Contracted Services,265,22/12/2017,1712-00682,0.00,195.00,R,All Clear Solutions Ltd,No
Http://opendatacommunities.org/id/metropolitan-district-council/leeds,Leeds City Council,31/12/2017,Resources and Housing,Leeds Building Services,Supplies and Services,Other Hired And Contracted Services,265,22/12/2017,1712-00683,0.00,195.00,R,All Clear Solutions Ltd,No
Http://opendatacommunities.org/id/metropolitan-district-council/leeds,Leeds City Council,31/12/2017,Resources and Housing,Leeds Building Services,Supplies and Services,Other Hired And Contracted Services,265,22/12/2017,1712-00684,0.00,195.00,R,All Clear Solutions Ltd,No
Http://opendatacommunities.org/id/metropolitan-district-council/leeds,Leeds City Council,31/12/2017,Resources and Housing,Leeds Building Services,Supplies and Services,Other Hired And Contracted Services,265,22/12/2017,1712-00685,0.00,195.00,R,All Clear Solutions Ltd,No
Http://opendatacommunities.org/id/metropolitan-district-council/leeds,Leeds City Council,31/12/2017,Resources and Housing,Leeds Building Services,Supplies and Services,Other Hired And Contracted Services,265,29/12/2017,1712-00686,0.00,195.00,R,All Clear Solutions Ltd,No
Http://opendatacommunities.org/id/metropolitan-district-council/leeds,Leeds City Council,31/12/2017,Children and Families,Safeguarding Targeted & Specialist,Third Party Payments,Services Rendered By Other Organisations,511,01/12/2017,1712-00687,0.00,1605.90,R,All Stars Childcare,No
Http://opendatacommunities.org/id/metropolitan-district-council/leeds,Leeds City Council,31/12/2017,Children and Families,Safeguarding Targeted & Specialist,Third Party Payments,Services Rendered By Other Organisations,511,08/12/2017,1712-00688,0.00,5731.32,R,All Stars Childcare,No
Http://opendatacommunities.org/id/metropolitan-district-council/leeds,Leeds City Council,31/12/2017,Strategic Accounts,Miscellaneous,Supplies and Services,Non-Recurring Grants,227,04/12/2017,1712-00689,0.00,319.00,R,All Things Craft,No
Http://opendatacommunities.org/id/metropolitan-district-council/leeds,Leeds City Council,31/12/2017,Resources and Housing,Commercial Services  ,Premises,Maintenance Of Buildings,101,21/11/2017,1712-00690,0.00,380.00,R,Allans Sound Commu,Yes
Http://opendatacommunities.org/id/metropolitan-district-council/leeds,Leeds City Council as Accountable Body,31/12/2017,Social Services Pooled Budgets,Jcs For People With Learning Disabilitie,Third Party Payments,Sheltered Accommodation,569,13/12/2017,1712-00691,0.00,12248.52,R,Allerton Avenue,No
Http://opendatacommunities.org/id/metropolitan-district-council/leeds,Leeds City Council,31/12/2017,Strategic Accounts,Miscellaneous,Supplies and Services,Non-Recurring Grants,227,04/12/2017,1712-00692,0.00,300.00,R,Allerton Bywater Community Partnership,No
Http://opendatacommunities.org/id/metropolitan-district-council/leeds,Leeds City Council,31/12/2017,Strategic Accounts,Miscellaneous,Supplies and Services,Non-Recurring Grants,227,04/12/2017,1712-00693,0.00,300.00,R,Allerton Bywater Cricket Club,No
Http://opendatacommunities.org/id/metropolitan-district-council/leeds,Leeds City Council,31/12/2017,Strategic Landlord,Housing Management,Supplies and Services,Grants To Voluntary Organisations,293,01/12/2017,1712-00694,0.00,1750.00,R,Allerton Bywater Parish Council,No
Http://opendatacommunities.org/id/metropolitan-district-council/leeds,Leeds City Council,31/12/2017,Strategic Accounts,Miscellaneous,Supplies and Services,Non-Recurring Grants,227,22/12/2017,1712-00695,0.00,400.00,R,Allerton Bywater Parish Council,No
Http://opendatacommunities.org/id/metropolitan-district-council/leeds,Leeds City Council,31/12/2017,Resources and Housing,Finance,Supplies and Services,Bank Charges,263,01/12/2017,1712-00696,0.00,-61.72,R,Alliance & Leicester Commercial Bank,No
Http://opendatacommunities.org/id/metropolitan-district-council/leeds,Leeds City Council,31/12/2017,Resources and Housing,Finance,Supplies and Services,Bank Charges,263,06/12/2017,1712-00697,0.00,856.23,R,Alliance & Leicester Commercial Bank,No
Http://opendatacommunities.org/id/metropolitan-district-council/leeds,Leeds City Council,31/12/2017,Resources and Housing,Finance,Supplies and Services,Bank Charges,263,06/12/2017,1712-00698,0.00,100.00,R,Alliance & Leicester Commercial Bank,No
Http://opendatacommunities.org/id/metropolitan-district-council/leeds,Leeds City Council,31/12/2017,City Development,Highways,Capital,Other Costs,7,12/12/2017,1712-00699,0.00,8625.05,C,Allied Exploration & Geotechnics Ltd,No
Http://opendatacommunities.org/id/metropolitan-district-council/leeds,Leeds City Council,31/12/2017,City Development,Highways,Supplies and Services,Other Hired And Contracted Services,265,18/12/2017,1712-00700,0.00,10639.24,R,Allied Exploration & Geotechnics Ltd,No
Http://opendatacommunities.org/id/metropolitan-district-council/leeds,Leeds City Council,31/12/2017,City Development,Highways,Supplies and Services,Other Hired And Contracted Services,265,19/12/2017,1712-00701,0.00,22773.60,R,Allied Exploration & Geotechnics Ltd,No
Http://opendatacommunities.org/id/metropolitan-district-council/leeds,Leeds City Council,31/12/2017,City Development,Highways,Supplies and Services,Other Hired And Contracted Services,265,22/12/2017,1712-00702,0.00,805.00,R,Allied Exploration & Geotechnics Ltd,No
Http://opendatacommunities.org/id/metropolitan-district-council/leeds,Leeds City Council,31/12/2017,City Development,Highways,Supplies and Services,Other Hired And Contracted Services,265,22/12/2017,1712-00703,0.00,1311.80,R,Allied Exploration & Geotechnics Ltd,No
Http://opendatacommunities.org/id/metropolitan-district-council/leeds,Leeds City Council as Accountable Body,31/12/2017,Social Services Pooled Budgets,Jcs For People With Learning Disabilitie,Third Party Payments,Home Care,568,01/12/2017,1712-00704,0.00,724.24,R,Allied Healthcare,No
Http://opendatacommunities.org/id/metropolitan-district-council/leeds,Leeds City Council as Accountable Body,31/12/2017,Social Services Pooled Budgets,Jcs For People With Learning Disabilitie,Third Party Payments,Home Care,568,01/12/2017,1712-00705,0.00,200.16,R,Allied Healthcare,No
Http://opendatacommunities.org/id/metropolitan-district-council/leeds,Leeds City Council,31/12/2017,Children and Families,Partnerships,Third Party Payments,Services Rendered By Voluntary Sector,505,01/12/2017,1712-00706,0.00,684.00,R,Allied Healthcare,No
Http://opendatacommunities.org/id/metropolitan-district-council/leeds,Leeds City Council,31/12/2017,Adults and Health,Other Generic Services,Third Party Payments,Home Care,568,14/12/2017,1712-00707,0.00,20296.76,R,Allied Healthcare,No
Http://opendatacommunities.org/id/metropolitan-district-council/leeds,Leeds City Council,31/12/2017,Adults and Health,Other Generic Services,Third Party Payments,Home Care,568,14/12/2017,1712-00708,0.00,7316.34,R,Allied Healthcare,No
Http://opendatacommunities.org/id/metropolitan-district-council/leeds,Leeds City Council as Accountable Body,31/12/2017,Social Services Pooled Budgets,Jcs For People With Learning Disabilitie,Third Party Payments,Home Care,568,21/12/2017,1712-00709,0.00,15115.30,R,Allied Healthcare,No
Http://opendatacommunities.org/id/metropolitan-district-council/leeds,Leeds City Council,31/12/2017,Adults and Health,Services For Older People - 65 And Over,Third Party Payments,Home Care,568,22/12/2017,1712-00710,0.00,27781.73,R,Allied Healthcare,No
Http://opendatacommunities.org/id/metropolitan-district-council/leeds,Leeds City Council,31/12/2017,Adults and Health,Services For Older People Under 65 P/Dis,Third Party Payments,Home Care,568,22/12/2017,1712-00711,0.00,19712.32,R,Allied Healthcare,No
Http://opendatacommunities.org/id/metropolitan-district-council/leeds,Leeds City Council as Accountable Body,31/12/2017,Social Services Pooled Budgets,Jcs For People With Learning Disabilitie,Third Party Payments,Home Care,568,27/12/2017,1712-00712,0.00,16758.88,R,Allied Healthcare,No
Http://opendatacommunities.org/id/metropolitan-district-council/leeds,Leeds City Council,31/12/2017,Children and Families,Partnerships,Third Party Payments,Services Rendered By Voluntary Sector,505,27/12/2017,1712-00713,0.00,684.00,R,Allied Healthcare,No
Http://opendatacommunities.org/id/metropolitan-district-council/leeds,Leeds City Council,31/12/2017,Adults and Health,Public Health,Third Party Payments,Public Health Commissioned Services,526,22/12/2017,1712-00714,0.00,6.00,R,Allied Pharmacy Ltd,No
Http://opendatacommunities.org/id/metropolitan-district-council/leeds,Leeds City Council,31/12/2017,Resources and Housing,Finance,Supplies and Services,Bank Charges,263,01/12/2017,1712-00715,0.00,456.59,R,Allpay Limted,No
Http://opendatacommunities.org/id/metropolitan-district-council/leeds,Leeds City Council,31/12/2017,Resources and Housing,Finance,Supplies and Services,Bank Charges,263,01/12/2017,1712-00716,0.00,5.85,R,Allpay Limted,No
Http://opendatacommunities.org/id/metropolitan-district-council/leeds,Leeds City Council,31/12/2017,Resources and Housing,Finance,Supplies and Services,Bank Charges,263,01/12/2017,1712-00717,0.00,2346.85,R,Allpay Limted,No
Http://opendatacommunities.org/id/metropolitan-district-council/leeds,Leeds City Council,31/12/2017,Resources and Housing,Finance,Supplies and Services,Bank Charges,263,01/12/2017,1712-00718,0.00,11012.14,R,Allpay Limted,No
Http://opendatacommunities.org/id/metropolitan-district-council/leeds,Leeds City Council,31/12/2017,Resources and Housing,Finance,Supplies and Services,Bank Charges,263,01/12/2017,1712-00719,0.00,6436.65,R,Allpay Limted,No
Http://opendatacommunities.org/id/metropolitan-district-council/leeds,Leeds City Council,31/12/2017,Resources and Housing,Finance,Supplies and Services,Bank Charges,263,01/12/2017,1712-00720,0.00,88.72,R,Allpay Limted,No
Http://opendatacommunities.org/id/metropolitan-district-council/leeds,Leeds City Council,31/12/2017,Strategic Landlord,Housing Management,Supplies and Services,Other Hired And Contracted Services,265,08/12/2017,1712-00721,0.00,0.25,R,Allpay Limted,No
Http://opendatacommunities.org/id/metropolitan-district-council/leeds,Leeds City Council,31/12/2017,Strategic Landlord,Housing Management,Supplies and Services,Other Hired And Contracted Services,265,08/12/2017,1712-00722,0.00,447.22,R,Allpay Limted,No
Http://opendatacommunities.org/id/metropolitan-district-council/leeds,Leeds City Council,31/12/2017,Strategic Landlord,Housing Management,Supplies and Services,Other Hired And Contracted Services,265,08/12/2017,1712-00723,0.00,20.52,R,Allpay Limted,No
Http://opendatacommunities.org/id/metropolitan-district-council/leeds,Leeds City Council,31/12/2017,Resources and Housing,Strategic Housing Partnership & Support  ,Supplies and Services,Other Hired And Contracted Services,265,16/11/2017,1712-00724,0.00,179.74,R,Allpay Moto (Callpay/I,Yes
Http://opendatacommunities.org/id/metropolitan-district-council/leeds,Leeds City Council,31/12/2017,Resources and Housing,Democratic Services,Transport,Fuel (Non LCC Supplies),321,07/12/2017,1712-00725,0.00,468.78,R,Allstar Business Solutions Ltd,No
Http://opendatacommunities.org/id/metropolitan-district-council/leeds,Leeds City Council,31/12/2017,Children and Families,Learning Skills & Universal,Transport,Fuel (Non LCC Supplies),321,07/12/2017,1712-00726,0.00,1570.56,R,Allstar Business Solutions Ltd,No
Http://opendatacommunities.org/id/metropolitan-district-council/leeds,Leeds City Council,31/12/2017,Communities and Environment,Parks and Countryside,Transport,Fuel (Non LCC Supplies),321,07/12/2017,1712-00727,0.00,18.76,R,Allstar Business Solutions Ltd,No
Http://opendatacommunities.org/id/metropolitan-district-council/leeds,Leeds City Council,31/12/2017,City Development,Highways,Transport,Fuel (Non LCC Supplies),321,07/12/2017,1712-00728,0.00,458.90,R,Allstar Business Solutions Ltd,No
Http://opendatacommunities.org/id/metropolitan-district-council/leeds,Leeds City Council,31/12/2017,Resources and Housing,Leeds Building Services,Transport,Fuel (Non LCC Supplies),321,13/12/2017,1712-00729,0.00,35.23,R,Allstar Business Solutions Ltd,No
Http://opendatacommunities.org/id/metropolitan-district-council/leeds,Leeds City Council,31/12/2017,Resources and Housing,Leeds Building Services,Transport,Fuel (Non LCC Supplies),321,28/12/2017,1712-00730,0.00,30.91,R,Allstar Business Solutions Ltd,No
Http://opendatacommunities.org/id/metropolitan-district-council/leeds,Leeds City Council,31/12/2017,Resources and Housing,Strategic Housing Partnership & Support,Supplies and Services,Other Hired And Contracted Services,265,14/12/2017,1712-00731,0.00,600.00,R,Alpesh Patel,No
Http://opendatacommunities.org/id/metropolitan-district-council/leeds,Leeds City Council,31/12/2017,Communities and Environment,Parks and Countryside,Capital,Construction,3,13/12/2017,1712-00732,0.00,8665.60,C,Alpha Rail Limited,No
Http://opendatacommunities.org/id/metropolitan-district-council/leeds,Leeds City Council,31/12/2017,Communities and Environment,Parks and Countryside,Capital,Construction,3,21/12/2017,1712-00733,0.00,1256.00,C,Alpha Rail Limited,No
Http://opendatacommunities.org/id/metropolitan-district-council/leeds,Leeds City Council,31/12/2017,Children and Families,Safeguarding Targeted & Specialist,Support Services,Legal Disbursements,411,01/12/2017,1712-00734,0.00,97.25,R,Alphabiolabs,No
Http://opendatacommunities.org/id/metropolitan-district-council/leeds,Leeds City Council,31/12/2017,Children and Families,Safeguarding Targeted & Specialist,Support Services,Legal Disbursements,411,01/12/2017,1712-00735,0.00,524.00,R,Alphabiolabs,No
Http://opendatacommunities.org/id/metropolitan-district-council/leeds,Leeds City Council,31/12/2017,Children and Families,Safeguarding Targeted & Specialist,Support Services,Legal Disbursements,411,01/12/2017,1712-00736,0.00,23.75,R,Alphabiolabs,No
Http://opendatacommunities.org/id/metropolitan-district-council/leeds,Leeds City Council,31/12/2017,Children and Families,Safeguarding Targeted & Specialist,Third Party Payments,Section 17,551,01/12/2017,1712-00737,0.00,349.00,R,Alphabiolabs,No
Http://opendatacommunities.org/id/metropolitan-district-council/leeds,Leeds City Council,31/12/2017,Children and Families,Safeguarding Targeted & Specialist,Support Services,Legal Disbursements,411,06/12/2017,1712-00738,0.00,116.67,R,Alphabiolabs,No
Http://opendatacommunities.org/id/metropolitan-district-council/leeds,Leeds City Council,31/12/2017,Children and Families,Safeguarding Targeted & Specialist,Support Services,Legal Disbursements,411,08/12/2017,1712-00739,0.00,244.00,R,Alphabiolabs,No
Http://opendatacommunities.org/id/metropolitan-district-council/leeds,Leeds City Council,31/12/2017,Children and Families,Safeguarding Targeted & Specialist,Third Party Payments,Placement Support,550,08/12/2017,1712-00740,0.00,449.00,R,Alphabiolabs,No
Http://opendatacommunities.org/id/metropolitan-district-council/leeds,Leeds City Council,31/12/2017,Children and Families,Safeguarding Targeted & Specialist,Support Services,Legal Disbursements,411,12/12/2017,1712-00741,0.00,105.00,R,Alphabiolabs,No
Http://opendatacommunities.org/id/metropolitan-district-council/leeds,Leeds City Council,31/12/2017,Children and Families,Safeguarding Targeted & Specialist,Support Services,Legal Disbursements,411,12/12/2017,1712-00742,0.00,51.25,R,Alphabiolabs,No
Http://opendatacommunities.org/id/metropolitan-district-council/leeds,Leeds City Council,31/12/2017,Children and Families,Safeguarding Targeted & Specialist,Support Services,Legal Disbursements,411,12/12/2017,1712-00743,0.00,65.00,R,Alphabiolabs,No
Http://opendatacommunities.org/id/metropolitan-district-council/leeds,Leeds City Council,31/12/2017,Children and Families,Safeguarding Targeted & Specialist,Support Services,Legal Disbursements,411,12/12/2017,1712-00744,0.00,69.38,R,Alphabiolabs,No
Http://opendatacommunities.org/id/metropolitan-district-council/leeds,Leeds City Council,31/12/2017,Children and Families,Safeguarding Targeted & Specialist,Support Services,Legal Disbursements,411,12/12/2017,1712-00745,0.00,570.00,R,Alphabiolabs,No
Http://opendatacommunities.org/id/metropolitan-district-council/leeds,Leeds City Council,31/12/2017,Children and Families,Safeguarding Targeted & Specialist,Support Services,Legal Disbursements,411,12/12/2017,1712-00746,0.00,126.17,R,Alphabiolabs,No
Http://opendatacommunities.org/id/metropolitan-district-council/leeds,Leeds City Council,31/12/2017,Children and Families,Safeguarding Targeted & Specialist,Support Services,Legal Disbursements,411,12/12/2017,1712-00747,0.00,369.00,R,Alphabiolabs,No
Http://opendatacommunities.org/id/metropolitan-district-council/leeds,Leeds City Council,31/12/2017,Children and Families,Safeguarding Targeted & Specialist,Support Services,Legal Disbursements,411,12/12/2017,1712-00748,0.00,109.50,R,Alphabiolabs,No
Http://opendatacommunities.org/id/metropolitan-district-council/leeds,Leeds City Council,31/12/2017,Children and Families,Safeguarding Targeted & Specialist,Third Party Payments,Section 17,551,13/12/2017,1712-00749,0.00,202.50,R,Alphabiolabs,No
Http://opendatacommunities.org/id/metropolitan-district-council/leeds,Leeds City Council,31/12/2017,Children and Families,Safeguarding Targeted & Specialist,Third Party Payments,Section 17,551,13/12/2017,1712-00750,0.00,202.50,R,Alphabiolabs,No
Http://opendatacommunities.org/id/metropolitan-district-council/leeds,Leeds City Council,31/12/2017,Children and Families,Safeguarding Targeted & Specialist,Support Services,Legal Disbursements,411,18/12/2017,1712-00751,0.00,95.00,R,Alphabiolabs,No
Http://opendatacommunities.org/id/metropolitan-district-council/leeds,Leeds City Council,31/12/2017,Children and Families,Safeguarding Targeted & Specialist,Support Services,Legal Disbursements,411,19/12/2017,1712-00752,0.00,142.00,R,Alphabiolabs,No
Http://opendatacommunities.org/id/metropolitan-district-council/leeds,Leeds City Council,31/12/2017,Resources and Housing,Legal Services,Support Services,Legal Disbursements,411,19/12/2017,1712-00753,0.00,142.00,R,Alphabiolabs,No
Http://opendatacommunities.org/id/metropolitan-district-council/leeds,Leeds City Council,31/12/2017,Children and Families,Safeguarding Targeted & Specialist,Support Services,Legal Disbursements,411,20/12/2017,1712-00754,0.00,149.68,R,Alphabiolabs,No
Http://opendatacommunities.org/id/metropolitan-district-council/leeds,Leeds City Council,31/12/2017,Children and Families,Safeguarding Targeted & Specialist,Support Services,Legal Disbursements,411,22/12/2017,1712-00755,0.00,89.80,R,Alphabiolabs,No
Http://opendatacommunities.org/id/metropolitan-district-council/leeds,Leeds City Council,31/12/2017,Children and Families,Safeguarding Targeted & Specialist,Support Services,Legal Disbursements,411,22/12/2017,1712-00756,0.00,419.00,R,Alphabiolabs,No
Http://opendatacommunities.org/id/metropolitan-district-council/leeds,Leeds City Council,31/12/2017,Children and Families,Safeguarding Targeted & Specialist,Support Services,Legal Disbursements,411,22/12/2017,1712-00757,0.00,644.00,R,Alphabiolabs,No
Http://opendatacommunities.org/id/metropolitan-district-council/leeds,Leeds City Council,31/12/2017,Children and Families,Safeguarding Targeted & Specialist,Support Services,Legal Disbursements,411,22/12/2017,1712-00758,0.00,104.75,R,Alphabiolabs,No
Http://opendatacommunities.org/id/metropolitan-district-council/leeds,Leeds City Council,31/12/2017,Children and Families,Safeguarding Targeted & Specialist,Support Services,Legal Disbursements,411,22/12/2017,1712-00759,0.00,142.00,R,Alphabiolabs,No
Http://opendatacommunities.org/id/metropolitan-district-council/leeds,Leeds City Council,31/12/2017,Children and Families,Safeguarding Targeted & Specialist,Support Services,Legal Disbursements,411,22/12/2017,1712-00760,0.00,116.34,R,Alphabiolabs,No
Http://opendatacommunities.org/id/metropolitan-district-council/leeds,Leeds City Council,31/12/2017,Children and Families,Safeguarding Targeted & Specialist,Third Party Payments,Section 17,551,22/12/2017,1712-00761,0.00,429.00,R,Alphabiolabs,No
Http://opendatacommunities.org/id/metropolitan-district-council/leeds,Leeds City Council,31/12/2017,Children and Families,Safeguarding Targeted & Specialist,Third Party Payments,Section 17,551,27/12/2017,1712-00762,0.00,150.00,R,Alphabiolabs,No
Http://opendatacommunities.org/id/metropolitan-district-council/leeds,Leeds City Council,31/12/2017,Communities and Environment,Environmental Health,Supplies and Services,Other Hired And Contracted Services,265,14/12/2017,1712-00763,0.00,147.46,R,Als Environmental Limited,No
